Body Name,Date Paid,Transaction Number,Amount,Supplier Name,Supplier Type,Expense Area,Cost Centre Description,Expense Type
Cambridgeshire County Council,30-Nov-20,51301473140,"-147,514.76",MLL Telecom Limited,TRADE SUPPLIER,"Telephony, CPSN & MFD",EastNet,Computer hardware - purchase
Cambridgeshire County Council,30-Nov-20,51301457703,"-43,475.07",WHIPPET COACHES LIMITED,TRADE SUPPLIER,Passenger Transport other,Tendered Bus Costs,Support - subsidised bus routes
Cambridgeshire County Council,05-Nov-20,51301465172,"-21,044.57",Keys PCE Ltd,CARE ESTABLISHMENT,LAC Placements,Placements - residential homes,Agency Placements - Out of  County
Cambridgeshire County Council,05-Nov-20,51301465168,"-21,044.57",Keys PCE Ltd,CARE ESTABLISHMENT,LAC Placements,Placements - residential homes,Agency Placements - Out of  County
Cambridgeshire County Council,05-Nov-20,51301465174,"-18,329.15",Keys PCE Ltd,CARE ESTABLISHMENT,LAC Placements,Placements - residential homes,Agency Placements - Out of  County
Cambridgeshire County Council,26-Nov-20,51301478648,"-12,255.00",ST GEORGE'S COURT,CARE ESTABLISHMENT,OP - City & South Blocks,City and South - Long term blocks,Residential Care
Cambridgeshire County Council,26-Nov-20,51301478648,"-12,255.00",ST GEORGE'S COURT,CARE ESTABLISHMENT,OP - City & South Blocks,City and South - Long term blocks,Residential Care
Cambridgeshire County Council,26-Nov-20,51301478648,"-12,255.00",ST GEORGE'S COURT,CARE ESTABLISHMENT,OP - City & South Blocks,City and South - Long term blocks,Residential Care
Cambridgeshire County Council,26-Nov-20,51301478648,"-12,255.00",ST GEORGE'S COURT,CARE ESTABLISHMENT,OP - City & South Blocks,City and South - Long term blocks,Residential Care
Cambridgeshire County Council,26-Nov-20,51301478648,"-12,255.00",ST GEORGE'S COURT,CARE ESTABLISHMENT,OP - City & South Blocks,City and South - Long term blocks,Residential Care
Cambridgeshire County Council,26-Nov-20,51301478648,"-12,255.00",ST GEORGE'S COURT,CARE ESTABLISHMENT,OP - City & South Blocks,City and South - Long term blocks,Residential Care
Cambridgeshire County Council,26-Nov-20,51301478648,"-12,255.00",ST GEORGE'S COURT,CARE ESTABLISHMENT,OP - City & South Blocks,City and South - Long term blocks,Residential Care
Cambridgeshire County Council,26-Nov-20,51301478648,"-12,255.00",ST GEORGE'S COURT,CARE ESTABLISHMENT,OP - City & South Blocks,City and South - Long term blocks,Residential Care
Cambridgeshire County Council,26-Nov-20,51301478648,"-12,255.00",ST GEORGE'S COURT,CARE ESTABLISHMENT,OP - City & South Blocks,City and South - Long term blocks,Residential Care
Cambridgeshire County Council,26-Nov-20,51301478648,"-12,255.00",ST GEORGE'S COURT,CARE ESTABLISHMENT,OP - City & South Blocks,City and South - Long term blocks,Residential Care
Cambridgeshire County Council,26-Nov-20,51301478648,"-12,255.00",ST GEORGE'S COURT,CARE ESTABLISHMENT,OP - City & South Blocks,City and South - Long term blocks,Residential Care
Cambridgeshire County Council,26-Nov-20,51301478648,"-12,255.00",ST GEORGE'S COURT,CARE ESTABLISHMENT,OP - City & South Blocks,City and South - Long term blocks,Residential Care
Cambridgeshire County Council,20-Nov-20,51301471161,"-11,571.45",Key Transitions Ltd,CARE ESTABLISHMENT,LAC Placements,Placements - supported accommodation,Agency Placements - In County
Cambridgeshire County Council,26-Nov-20,51301478640,"-10,800.00",RHEOLA HEALTHCARE,CARE ESTABLISHMENT,OP - Hunts Blocks,Hunts - Long term blocks,Residential Care
Cambridgeshire County Council,26-Nov-20,51301478640,"-10,800.00",RHEOLA HEALTHCARE,CARE ESTABLISHMENT,OP - Hunts Blocks,Hunts - Long term blocks,Residential Care
Cambridgeshire County Council,26-Nov-20,51301478640,"-10,800.00",RHEOLA HEALTHCARE,CARE ESTABLISHMENT,OP - Hunts Blocks,Hunts - Long term blocks,Residential Care
Cambridgeshire County Council,26-Nov-20,51301478640,"-10,800.00",RHEOLA HEALTHCARE,CARE ESTABLISHMENT,OP - Hunts Blocks,Hunts - Long term blocks,Residential Care
Cambridgeshire County Council,26-Nov-20,51301478640,"-10,800.00",RHEOLA HEALTHCARE,CARE ESTABLISHMENT,OP - Hunts Blocks,Hunts - Long term blocks,Residential Care
Cambridgeshire County Council,26-Nov-20,51301478640,"-10,800.00",RHEOLA HEALTHCARE,CARE ESTABLISHMENT,OP - Hunts Blocks,Hunts - Long term blocks,Residential Care
Cambridgeshire County Council,26-Nov-20,51301478640,"-10,800.00",RHEOLA HEALTHCARE,CARE ESTABLISHMENT,OP - Hunts Blocks,Hunts - Long term blocks,Residential Care
Cambridgeshire County Council,26-Nov-20,51301478640,"-10,800.00",RHEOLA HEALTHCARE,CARE ESTABLISHMENT,OP - Hunts Blocks,Hunts - Long term blocks,Residential Care
Cambridgeshire County Council,26-Nov-20,51301478640,"-10,800.00",RHEOLA HEALTHCARE,CARE ESTABLISHMENT,OP - Hunts Blocks,Hunts - Long term blocks,Residential Care
Cambridgeshire County Council,26-Nov-20,51301478640,"-10,800.00",RHEOLA HEALTHCARE,CARE ESTABLISHMENT,OP - Hunts Blocks,Hunts - Long term blocks,Residential Care
Cambridgeshire County Council,26-Nov-20,51301478640,"-10,800.00",RHEOLA HEALTHCARE,CARE ESTABLISHMENT,OP - Hunts Blocks,Hunts - Long term blocks,Residential Care
Cambridgeshire County Council,26-Nov-20,51301478640,"-10,800.00",RHEOLA HEALTHCARE,CARE ESTABLISHMENT,OP - Hunts Blocks,Hunts - Long term blocks,Residential Care
Cambridgeshire County Council,26-Nov-20,51301478640,"-10,800.00",RHEOLA HEALTHCARE,CARE ESTABLISHMENT,OP - Hunts Blocks,Hunts - Long term blocks,Residential Care
Cambridgeshire County Council,26-Nov-20,51301478640,"-10,800.00",RHEOLA HEALTHCARE,CARE ESTABLISHMENT,OP - Hunts Blocks,Hunts - Long term blocks,Residential Care
Cambridgeshire County Council,26-Nov-20,51301478640,"-10,800.00",RHEOLA HEALTHCARE,CARE ESTABLISHMENT,OP - Hunts Blocks,Hunts - Long term blocks,Residential Care
Cambridgeshire County Council,26-Nov-20,51301478640,"-10,800.00",RHEOLA HEALTHCARE,CARE ESTABLISHMENT,OP - Hunts Blocks,Hunts - Long term blocks,Residential Care
Cambridgeshire County Council,26-Nov-20,51301478640,"-10,800.00",RHEOLA HEALTHCARE,CARE ESTABLISHMENT,OP - Hunts Blocks,Hunts - Long term blocks,Residential Care
Cambridgeshire County Council,26-Nov-20,51301478640,"-10,800.00",RHEOLA HEALTHCARE,CARE ESTABLISHMENT,OP - Hunts Blocks,Hunts - Long term blocks,Residential Care
Cambridgeshire County Council,26-Nov-20,51301478640,"-10,800.00",RHEOLA HEALTHCARE,CARE ESTABLISHMENT,OP - Hunts Blocks,Hunts - Long term blocks,Residential Care
Cambridgeshire County Council,26-Nov-20,51301478640,"-10,800.00",RHEOLA HEALTHCARE,CARE ESTABLISHMENT,OP - Hunts Blocks,Hunts - Long term blocks,Residential Care
Cambridgeshire County Council,26-Nov-20,51301478640,"-10,800.00",RHEOLA HEALTHCARE,CARE ESTABLISHMENT,OP - Hunts Blocks,Hunts - Long term blocks,Residential Care
Cambridgeshire County Council,26-Nov-20,51301478640,"-10,800.00",RHEOLA HEALTHCARE,CARE ESTABLISHMENT,OP - Hunts Blocks,Hunts - Long term blocks,Residential Care
Cambridgeshire County Council,26-Nov-20,51301478640,"-10,800.00",RHEOLA HEALTHCARE,CARE ESTABLISHMENT,OP - Hunts Blocks,Hunts - Long term blocks,Residential Care
Cambridgeshire County Council,26-Nov-20,51301478640,"-10,800.00",RHEOLA HEALTHCARE,CARE ESTABLISHMENT,OP - Hunts Blocks,Hunts - Long term blocks,Residential Care
Cambridgeshire County Council,26-Nov-20,51301478640,"-10,800.00",RHEOLA HEALTHCARE,CARE ESTABLISHMENT,OP - Hunts Blocks,Hunts - Long term blocks,Residential Care
Cambridgeshire County Council,26-Nov-20,51301478640,"-10,800.00",RHEOLA HEALTHCARE,CARE ESTABLISHMENT,OP - Hunts Blocks,Hunts - Long term blocks,Residential Care
Cambridgeshire County Council,26-Nov-20,51301478640,"-10,800.00",RHEOLA HEALTHCARE,CARE ESTABLISHMENT,OP - Hunts Blocks,Hunts - Long term blocks,Residential Care
Cambridgeshire County Council,26-Nov-20,51301478640,"-10,800.00",RHEOLA HEALTHCARE,CARE ESTABLISHMENT,OP - Hunts Blocks,Hunts - Long term blocks,Residential Care
Cambridgeshire County Council,26-Nov-20,51301478640,"-10,800.00",RHEOLA HEALTHCARE,CARE ESTABLISHMENT,OP - Hunts Blocks,Hunts - Long term blocks,Residential Care
Cambridgeshire County Council,26-Nov-20,51301478640,"-10,800.00",RHEOLA HEALTHCARE,CARE ESTABLISHMENT,OP - Hunts Blocks,Hunts - Long term blocks,Residential Care
Cambridgeshire County Council,26-Nov-20,51301478640,"-10,800.00",RHEOLA HEALTHCARE,CARE ESTABLISHMENT,OP - Hunts Blocks,Hunts - Long term blocks,Residential Care
Cambridgeshire County Council,26-Nov-20,51301478640,"-10,800.00",RHEOLA HEALTHCARE,CARE ESTABLISHMENT,OP - Hunts Blocks,Hunts - Long term blocks,Residential Care
Cambridgeshire County Council,26-Nov-20,51301478640,"-10,800.00",RHEOLA HEALTHCARE,CARE ESTABLISHMENT,OP - Hunts Blocks,Hunts - Long term blocks,Residential Care
Cambridgeshire County Council,26-Nov-20,51301478640,"-10,800.00",RHEOLA HEALTHCARE,CARE ESTABLISHMENT,OP - Hunts Blocks,Hunts - Long term blocks,Residential Care
Cambridgeshire County Council,26-Nov-20,51301478640,"-10,800.00",RHEOLA HEALTHCARE,CARE ESTABLISHMENT,OP - Hunts Blocks,Hunts - Long term blocks,Residential Care
Cambridgeshire County Council,26-Nov-20,51301478640,"-10,800.00",RHEOLA HEALTHCARE,CARE ESTABLISHMENT,OP - Hunts Blocks,Hunts - Long term blocks,Residential Care
Cambridgeshire County Council,26-Nov-20,51301478640,"-10,800.00",RHEOLA HEALTHCARE,CARE ESTABLISHMENT,OP - Hunts Blocks,Hunts - Long term blocks,Residential Care
Cambridgeshire County Council,23-Nov-20,51301361904,"-10,500.49",METROPOLITAN HOUSING TRUST LTD,TRUST (OTHER),Mental Health Commissioning,Mental Health Commissioning,Residential Care - Property Voids
Cambridgeshire County Council,26-Nov-20,51301478643,"-10,320.00",PRIMROSE HEALTHCARE,CARE ESTABLISHMENT,OP - City & South Blocks,City and South - Long term blocks,Residential Care
Cambridgeshire County Council,26-Nov-20,51301478643,"-10,320.00",PRIMROSE HEALTHCARE,CARE ESTABLISHMENT,OP - City & South Blocks,City and South - Long term blocks,Residential Care
Cambridgeshire County Council,26-Nov-20,51301478643,"-10,320.00",PRIMROSE HEALTHCARE,CARE ESTABLISHMENT,OP - City & South Blocks,City and South - Long term blocks,Residential Care
Cambridgeshire County Council,26-Nov-20,51301478643,"-10,320.00",PRIMROSE HEALTHCARE,CARE ESTABLISHMENT,OP - City & South Blocks,City and South - Long term blocks,Residential Care
Cambridgeshire County Council,26-Nov-20,51301478643,"-10,320.00",PRIMROSE HEALTHCARE,CARE ESTABLISHMENT,OP - City & South Blocks,City and South - Long term blocks,Residential Care
Cambridgeshire County Council,26-Nov-20,51301478643,"-10,320.00",PRIMROSE HEALTHCARE,CARE ESTABLISHMENT,OP - City & South Blocks,City and South - Long term blocks,Residential Care
Cambridgeshire County Council,26-Nov-20,51301478643,"-10,320.00",PRIMROSE HEALTHCARE,CARE ESTABLISHMENT,OP - City & South Blocks,City and South - Long term blocks,Residential Care
Cambridgeshire County Council,26-Nov-20,51301478643,"-10,320.00",PRIMROSE HEALTHCARE,CARE ESTABLISHMENT,OP - City & South Blocks,City and South - Long term blocks,Residential Care
Cambridgeshire County Council,26-Nov-20,51301478643,"-10,320.00",PRIMROSE HEALTHCARE,CARE ESTABLISHMENT,OP - City & South Blocks,City and South - Long term blocks,Residential Care
Cambridgeshire County Council,26-Nov-20,51301478643,"-10,320.00",PRIMROSE HEALTHCARE,CARE ESTABLISHMENT,OP - City & South Blocks,City and South - Long term blocks,Residential Care
Cambridgeshire County Council,26-Nov-20,51301478643,"-10,320.00",PRIMROSE HEALTHCARE,CARE ESTABLISHMENT,OP - City & South Blocks,City and South - Long term blocks,Residential Care
Cambridgeshire County Council,26-Nov-20,51301478643,"-10,320.00",PRIMROSE HEALTHCARE,CARE ESTABLISHMENT,OP - City & South Blocks,City and South - Long term blocks,Residential Care
Cambridgeshire County Council,26-Nov-20,51301478643,"-10,320.00",PRIMROSE HEALTHCARE,CARE ESTABLISHMENT,OP - City & South Blocks,City and South - Long term blocks,Residential Care
Cambridgeshire County Council,26-Nov-20,51301478643,"-10,320.00",PRIMROSE HEALTHCARE,CARE ESTABLISHMENT,OP - City & South Blocks,City and South - Long term blocks,Residential Care
Cambridgeshire County Council,26-Nov-20,51301478643,"-10,320.00",PRIMROSE HEALTHCARE,CARE ESTABLISHMENT,OP - City & South Blocks,City and South - Long term blocks,Residential Care
Cambridgeshire County Council,26-Nov-20,51301478643,"-10,320.00",PRIMROSE HEALTHCARE,CARE ESTABLISHMENT,OP - City & South Blocks,City and South - Long term blocks,Residential Care
Cambridgeshire County Council,26-Nov-20,51301478643,"-10,320.00",PRIMROSE HEALTHCARE,CARE ESTABLISHMENT,OP - City & South Blocks,City and South - Long term blocks,Residential Care
Cambridgeshire County Council,26-Nov-20,51301478643,"-10,320.00",PRIMROSE HEALTHCARE,CARE ESTABLISHMENT,OP - City & South Blocks,City and South - Long term blocks,Residential Care
Cambridgeshire County Council,26-Nov-20,51301478643,"-10,320.00",PRIMROSE HEALTHCARE,CARE ESTABLISHMENT,OP - City & South Blocks,City and South - Long term blocks,Residential Care
Cambridgeshire County Council,26-Nov-20,51301478643,"-10,320.00",PRIMROSE HEALTHCARE,CARE ESTABLISHMENT,OP - City & South Blocks,City and South - Long term blocks,Residential Care
Cambridgeshire County Council,26-Nov-20,51301478643,"-10,320.00",PRIMROSE HEALTHCARE,CARE ESTABLISHMENT,OP - City & South Blocks,City and South - Long term blocks,Residential Care
Cambridgeshire County Council,26-Nov-20,51301478643,"-10,320.00",PRIMROSE HEALTHCARE,CARE ESTABLISHMENT,OP - City & South Blocks,City and South - Long term blocks,Residential Care
Cambridgeshire County Council,26-Nov-20,51301478643,"-10,320.00",PRIMROSE HEALTHCARE,CARE ESTABLISHMENT,OP - City & South Blocks,City and South - Long term blocks,Residential Care
Cambridgeshire County Council,26-Nov-20,51301478643,"-10,320.00",PRIMROSE HEALTHCARE,CARE ESTABLISHMENT,OP - City & South Blocks,City and South - Long term blocks,Residential Care
Cambridgeshire County Council,26-Nov-20,51301478643,"-10,320.00",PRIMROSE HEALTHCARE,CARE ESTABLISHMENT,OP - City & South Blocks,City and South - Long term blocks,Residential Care
Cambridgeshire County Council,26-Nov-20,51301478643,"-10,320.00",PRIMROSE HEALTHCARE,CARE ESTABLISHMENT,OP - City & South Blocks,City and South - Long term blocks,Residential Care
Cambridgeshire County Council,26-Nov-20,51301478643,"-10,320.00",PRIMROSE HEALTHCARE,CARE ESTABLISHMENT,OP - City & South Blocks,City and South - Long term blocks,Residential Care
Cambridgeshire County Council,26-Nov-20,51301478643,"-10,320.00",PRIMROSE HEALTHCARE,CARE ESTABLISHMENT,OP - City & South Blocks,City and South - Long term blocks,Residential Care
Cambridgeshire County Council,26-Nov-20,51301478643,"-10,320.00",PRIMROSE HEALTHCARE,CARE ESTABLISHMENT,OP - City & South Blocks,City and South - Long term blocks,Residential Care
Cambridgeshire County Council,26-Nov-20,51301478643,"-10,320.00",PRIMROSE HEALTHCARE,CARE ESTABLISHMENT,OP - City & South Blocks,City and South - Long term blocks,Residential Care
Cambridgeshire County Council,26-Nov-20,51301478643,"-10,320.00",PRIMROSE HEALTHCARE,CARE ESTABLISHMENT,OP - City & South Blocks,City and South - Long term blocks,Residential Care
Cambridgeshire County Council,26-Nov-20,51301478643,"-10,320.00",PRIMROSE HEALTHCARE,CARE ESTABLISHMENT,OP - City & South Blocks,City and South - Long term blocks,Residential Care
Cambridgeshire County Council,26-Nov-20,51301478643,"-10,320.00",PRIMROSE HEALTHCARE,CARE ESTABLISHMENT,OP - City & South Blocks,City and South - Long term blocks,Residential Care
Cambridgeshire County Council,26-Nov-20,51301478643,"-10,320.00",PRIMROSE HEALTHCARE,CARE ESTABLISHMENT,OP - City & South Blocks,City and South - Long term blocks,Residential Care
Cambridgeshire County Council,26-Nov-20,51301478643,"-10,320.00",PRIMROSE HEALTHCARE,CARE ESTABLISHMENT,OP - City & South Blocks,City and South - Long term blocks,Residential Care
Cambridgeshire County Council,26-Nov-20,51301478643,"-10,320.00",PRIMROSE HEALTHCARE,CARE ESTABLISHMENT,OP - City & South Blocks,City and South - Long term blocks,Residential Care
Cambridgeshire County Council,26-Nov-20,51301478643,"-10,320.00",PRIMROSE HEALTHCARE,CARE ESTABLISHMENT,OP - City & South Blocks,City and South - Long term blocks,Residential Care
Cambridgeshire County Council,26-Nov-20,51301478643,"-10,320.00",PRIMROSE HEALTHCARE,CARE ESTABLISHMENT,OP - City & South Blocks,City and South - Long term blocks,Residential Care
Cambridgeshire County Council,26-Nov-20,51301478643,"-10,320.00",PRIMROSE HEALTHCARE,CARE ESTABLISHMENT,OP - City & South Blocks,City and South - Long term blocks,Residential Care
Cambridgeshire County Council,26-Nov-20,51301478643,"-10,320.00",PRIMROSE HEALTHCARE,CARE ESTABLISHMENT,OP - City & South Blocks,City and South - Long term blocks,Residential Care
Cambridgeshire County Council,26-Nov-20,51301478643,"-10,320.00",PRIMROSE HEALTHCARE,CARE ESTABLISHMENT,OP - City & South Blocks,City and South - Long term blocks,Residential Care
Cambridgeshire County Council,26-Nov-20,51301478643,"-10,320.00",PRIMROSE HEALTHCARE,CARE ESTABLISHMENT,OP - City & South Blocks,City and South - Long term blocks,Residential Care
Cambridgeshire County Council,26-Nov-20,51301478643,"-10,320.00",PRIMROSE HEALTHCARE,CARE ESTABLISHMENT,OP - City & South Blocks,City and South - Long term blocks,Residential Care
Cambridgeshire County Council,26-Nov-20,51301478643,"-10,320.00",PRIMROSE HEALTHCARE,CARE ESTABLISHMENT,OP - City & South Blocks,City and South - Long term blocks,Residential Care
Cambridgeshire County Council,26-Nov-20,51301478643,"-10,320.00",PRIMROSE HEALTHCARE,CARE ESTABLISHMENT,OP - City & South Blocks,City and South - Long term blocks,Residential Care
Cambridgeshire County Council,26-Nov-20,51301478643,"-10,320.00",PRIMROSE HEALTHCARE,CARE ESTABLISHMENT,OP - City & South Blocks,City and South - Long term blocks,Residential Care
Cambridgeshire County Council,26-Nov-20,51301478643,"-10,320.00",PRIMROSE HEALTHCARE,CARE ESTABLISHMENT,OP - City & South Blocks,City and South - Long term blocks,Residential Care
Cambridgeshire County Council,26-Nov-20,51301478643,"-10,320.00",PRIMROSE HEALTHCARE,CARE ESTABLISHMENT,OP - City & South Blocks,City and South - Long term blocks,Residential Care
Cambridgeshire County Council,26-Nov-20,51301478643,"-10,320.00",PRIMROSE HEALTHCARE,CARE ESTABLISHMENT,OP - City & South Blocks,City and South - Long term blocks,Residential Care
Cambridgeshire County Council,26-Nov-20,51301478643,"-10,320.00",PRIMROSE HEALTHCARE,CARE ESTABLISHMENT,OP - City & South Blocks,City and South - Long term blocks,Residential Care
Cambridgeshire County Council,26-Nov-20,51301478643,"-10,320.00",PRIMROSE HEALTHCARE,CARE ESTABLISHMENT,OP - City & South Blocks,City and South - Long term blocks,Residential Care
Cambridgeshire County Council,26-Nov-20,51301478643,"-10,320.00",PRIMROSE HEALTHCARE,CARE ESTABLISHMENT,OP - City & South Blocks,City and South - Long term blocks,Residential Care
Cambridgeshire County Council,26-Nov-20,51301478643,"-10,320.00",PRIMROSE HEALTHCARE,CARE ESTABLISHMENT,OP - City & South Blocks,City and South - Long term blocks,Residential Care
Cambridgeshire County Council,26-Nov-20,51301478643,"-10,320.00",PRIMROSE HEALTHCARE,CARE ESTABLISHMENT,OP - City & South Blocks,City and South - Long term blocks,Residential Care
Cambridgeshire County Council,26-Nov-20,51301478643,"-10,320.00",PRIMROSE HEALTHCARE,CARE ESTABLISHMENT,OP - City & South Blocks,City and South - Long term blocks,Residential Care
Cambridgeshire County Council,26-Nov-20,51301478643,"-10,320.00",PRIMROSE HEALTHCARE,CARE ESTABLISHMENT,OP - City & South Blocks,City and South - Long term blocks,Residential Care
Cambridgeshire County Council,26-Nov-20,51301478643,"-10,320.00",PRIMROSE HEALTHCARE,CARE ESTABLISHMENT,OP - City & South Blocks,City and South - Long term blocks,Residential Care
Cambridgeshire County Council,26-Nov-20,51301478643,"-10,320.00",PRIMROSE HEALTHCARE,CARE ESTABLISHMENT,OP - City & South Blocks,City and South - Long term blocks,Residential Care
Cambridgeshire County Council,26-Nov-20,51301478643,"-10,320.00",PRIMROSE HEALTHCARE,CARE ESTABLISHMENT,OP - City & South Blocks,City and South - Long term blocks,Residential Care
Cambridgeshire County Council,26-Nov-20,51301478643,"-10,320.00",PRIMROSE HEALTHCARE,CARE ESTABLISHMENT,OP - City & South Blocks,City and South - Long term blocks,Residential Care
Cambridgeshire County Council,26-Nov-20,51301478643,"-10,320.00",PRIMROSE HEALTHCARE,CARE ESTABLISHMENT,OP - City & South Blocks,City and South - Long term blocks,Residential Care
Cambridgeshire County Council,26-Nov-20,51301478643,"-10,320.00",PRIMROSE HEALTHCARE,CARE ESTABLISHMENT,OP - City & South Blocks,City and South - Long term blocks,Residential Care
Cambridgeshire County Council,26-Nov-20,51301478643,"-10,320.00",PRIMROSE HEALTHCARE,CARE ESTABLISHMENT,OP - City & South Blocks,City and South - Long term blocks,Residential Care
Cambridgeshire County Council,26-Nov-20,51301478643,"-10,320.00",PRIMROSE HEALTHCARE,CARE ESTABLISHMENT,OP - City & South Blocks,City and South - Long term blocks,Residential Care
Cambridgeshire County Council,26-Nov-20,51301478643,"-10,320.00",PRIMROSE HEALTHCARE,CARE ESTABLISHMENT,OP - City & South Blocks,City and South - Long term blocks,Residential Care
Cambridgeshire County Council,26-Nov-20,51301478643,"-10,320.00",PRIMROSE HEALTHCARE,CARE ESTABLISHMENT,OP - City & South Blocks,City and South - Long term blocks,Residential Care
Cambridgeshire County Council,26-Nov-20,51301478643,"-10,320.00",PRIMROSE HEALTHCARE,CARE ESTABLISHMENT,OP - City & South Blocks,City and South - Long term blocks,Residential Care
Cambridgeshire County Council,26-Nov-20,51301478643,"-10,320.00",PRIMROSE HEALTHCARE,CARE ESTABLISHMENT,OP - City & South Blocks,City and South - Long term blocks,Residential Care
Cambridgeshire County Council,26-Nov-20,51301478643,"-10,320.00",PRIMROSE HEALTHCARE,CARE ESTABLISHMENT,OP - City & South Blocks,City and South - Long term blocks,Residential Care
Cambridgeshire County Council,26-Nov-20,51301478643,"-10,320.00",PRIMROSE HEALTHCARE,CARE ESTABLISHMENT,OP - City & South Blocks,City and South - Long term blocks,Residential Care
Cambridgeshire County Council,26-Nov-20,51301478643,"-10,320.00",PRIMROSE HEALTHCARE,CARE ESTABLISHMENT,OP - City & South Blocks,City and South - Long term blocks,Residential Care
Cambridgeshire County Council,26-Nov-20,51301478643,"-10,320.00",PRIMROSE HEALTHCARE,CARE ESTABLISHMENT,OP - City & South Blocks,City and South - Long term blocks,Residential Care
Cambridgeshire County Council,26-Nov-20,51301478643,"-10,320.00",PRIMROSE HEALTHCARE,CARE ESTABLISHMENT,OP - City & South Blocks,City and South - Long term blocks,Residential Care
Cambridgeshire County Council,26-Nov-20,51301478643,"-10,320.00",PRIMROSE HEALTHCARE,CARE ESTABLISHMENT,OP - City & South Blocks,City and South - Long term blocks,Residential Care
Cambridgeshire County Council,26-Nov-20,51301478643,"-10,320.00",PRIMROSE HEALTHCARE,CARE ESTABLISHMENT,OP - City & South Blocks,City and South - Long term blocks,Residential Care
Cambridgeshire County Council,12-Nov-20,51301468399,"-9,668.68",SOUTH CAMBRIDGESHIRE DISTRICT COUNCIL,OTHER PUBLIC BODIES,Corporate Offices,Histon Library,Business rates
Cambridgeshire County Council,26-Nov-20,51301478646,"-9,030.00",FITZWILLIAM HEALTHCARE LTD,CARE ESTABLISHMENT,OP - City & South Blocks,City and South - Long term blocks,Residential Care
Cambridgeshire County Council,26-Nov-20,51301478646,"-9,030.00",FITZWILLIAM HEALTHCARE LTD,CARE ESTABLISHMENT,OP - City & South Blocks,City and South - Long term blocks,Residential Care
Cambridgeshire County Council,26-Nov-20,51301478646,"-9,030.00",FITZWILLIAM HEALTHCARE LTD,CARE ESTABLISHMENT,OP - City & South Blocks,City and South - Long term blocks,Residential Care
Cambridgeshire County Council,26-Nov-20,51301478646,"-9,030.00",FITZWILLIAM HEALTHCARE LTD,CARE ESTABLISHMENT,OP - City & South Blocks,City and South - Long term blocks,Residential Care
Cambridgeshire County Council,26-Nov-20,51301478646,"-9,030.00",FITZWILLIAM HEALTHCARE LTD,CARE ESTABLISHMENT,OP - City & South Blocks,City and South - Long term blocks,Residential Care
Cambridgeshire County Council,26-Nov-20,51301478646,"-9,030.00",FITZWILLIAM HEALTHCARE LTD,CARE ESTABLISHMENT,OP - City & South Blocks,City and South - Long term blocks,Residential Care
Cambridgeshire County Council,05-Nov-20,51301465006,"-8,778.00",SEMI INDEPENDENT HOUSE,CARE ESTABLISHMENT,LAC Placements,Placements - residential homes,Agency Placements - In County
Cambridgeshire County Council,26-Nov-20,51301478660,"-7,594.40",ETHELDRED HOUSE,CARE ESTABLISHMENT,OP - City & South Blocks,City and South - Long term blocks,Nursing Care
Cambridgeshire County Council,26-Nov-20,51301478660,"-7,594.40",ETHELDRED HOUSE,CARE ESTABLISHMENT,OP - City & South Blocks,City and South - Long term blocks,Nursing Care
Cambridgeshire County Council,26-Nov-20,51301478660,"-7,594.40",ETHELDRED HOUSE,CARE ESTABLISHMENT,OP - City & South Blocks,City and South - Long term blocks,Nursing Care
Cambridgeshire County Council,26-Nov-20,51301478660,"-7,594.40",ETHELDRED HOUSE,CARE ESTABLISHMENT,OP - City & South Blocks,City and South - Long term blocks,Nursing Care
Cambridgeshire County Council,26-Nov-20,51301478660,"-7,594.40",ETHELDRED HOUSE,CARE ESTABLISHMENT,OP - City & South Blocks,City and South - Long term blocks,Nursing Care
Cambridgeshire County Council,26-Nov-20,51301478660,"-7,594.40",ETHELDRED HOUSE,CARE ESTABLISHMENT,OP - City & South Blocks,City and South - Long term blocks,Nursing Care
Cambridgeshire County Council,26-Nov-20,51301478660,"-7,594.40",ETHELDRED HOUSE,CARE ESTABLISHMENT,OP - City & South Blocks,City and South - Long term blocks,Nursing Care
Cambridgeshire County Council,26-Nov-20,51301478660,"-7,594.40",ETHELDRED HOUSE,CARE ESTABLISHMENT,OP - City & South Blocks,City and South - Long term blocks,Nursing Care
Cambridgeshire County Council,26-Nov-20,51301478660,"-7,594.40",ETHELDRED HOUSE,CARE ESTABLISHMENT,OP - City & South Blocks,City and South - Long term blocks,Nursing Care
Cambridgeshire County Council,26-Nov-20,51301478660,"-7,594.40",ETHELDRED HOUSE,CARE ESTABLISHMENT,OP - City & South Blocks,City and South - Long term blocks,Nursing Care
Cambridgeshire County Council,26-Nov-20,51301478660,"-7,594.40",ETHELDRED HOUSE,CARE ESTABLISHMENT,OP - City & South Blocks,City and South - Long term blocks,Nursing Care
Cambridgeshire County Council,26-Nov-20,51301478660,"-7,594.40",ETHELDRED HOUSE,CARE ESTABLISHMENT,OP - City & South Blocks,City and South - Long term blocks,Nursing Care
Cambridgeshire County Council,26-Nov-20,51301478660,"-7,594.40",ETHELDRED HOUSE,CARE ESTABLISHMENT,OP - City & South Blocks,City and South - Long term blocks,Nursing Care
Cambridgeshire County Council,26-Nov-20,51301478660,"-7,594.40",ETHELDRED HOUSE,CARE ESTABLISHMENT,OP - City & South Blocks,City and South - Long term blocks,Nursing Care
Cambridgeshire County Council,26-Nov-20,51301478660,"-7,594.40",ETHELDRED HOUSE,CARE ESTABLISHMENT,OP - City & South Blocks,City and South - Long term blocks,Nursing Care
Cambridgeshire County Council,26-Nov-20,51301478648,"-7,002.86",ST GEORGE'S COURT,CARE ESTABLISHMENT,OP - City & South Blocks,City and South - Long term blocks,Residential Care
Cambridgeshire County Council,26-Nov-20,51301478660,"-6,509.49",ETHELDRED HOUSE,CARE ESTABLISHMENT,OP - City & South Blocks,City and South - Long term blocks,Nursing Care
Cambridgeshire County Council,05-Nov-20,51301465166,"-6,109.72",Keys PCE Ltd,CARE ESTABLISHMENT,LAC Placements,Placements - residential homes,Agency Placements - Out of  County
Cambridgeshire County Council,26-Nov-20,51301478686,"-4,900.00",MIDFIELD LODGE CARE CENTRE,CARE ESTABLISHMENT,OP - City & South Locality - Cost of Care,Older People - City & South - Care,Nursing Care
Cambridgeshire County Council,26-Nov-20,51301478686,"-4,900.00",MIDFIELD LODGE CARE CENTRE,CARE ESTABLISHMENT,OP - City & South Locality - Cost of Care,Older People - City & South - Care,Nursing Care
Cambridgeshire County Council,26-Nov-20,51301478686,"-4,900.00",MIDFIELD LODGE CARE CENTRE,CARE ESTABLISHMENT,OP - City & South Locality - Cost of Care,Older People - City & South - Care,Nursing Care
Cambridgeshire County Council,26-Nov-20,51301478686,"-4,900.00",MIDFIELD LODGE CARE CENTRE,CARE ESTABLISHMENT,OP - City & South Locality - Cost of Care,Older People - City & South - Care,Nursing Care
Cambridgeshire County Council,26-Nov-20,51301478686,"-4,900.00",MIDFIELD LODGE CARE CENTRE,CARE ESTABLISHMENT,OP - City & South Locality - Cost of Care,Older People - City & South - Care,Nursing Care
Cambridgeshire County Council,26-Nov-20,51301478686,"-4,900.00",MIDFIELD LODGE CARE CENTRE,CARE ESTABLISHMENT,OP - City & South Locality - Cost of Care,Older People - City & South - Care,Nursing Care
Cambridgeshire County Council,26-Nov-20,51301478640,"-4,628.57",RHEOLA HEALTHCARE,CARE ESTABLISHMENT,OP - Hunts Blocks,Hunts - Long term blocks,Residential Care
Cambridgeshire County Council,26-Nov-20,51301478648,"-4,440.00",ST GEORGE'S COURT,CARE ESTABLISHMENT,OP - City & South Blocks,City and South - Long term blocks,Residential Care
Cambridgeshire County Council,26-Nov-20,51301478648,"-4,440.00",ST GEORGE'S COURT,CARE ESTABLISHMENT,OP - City & South Blocks,City and South - Long term blocks,Residential Care
Cambridgeshire County Council,26-Nov-20,51301478648,"-4,440.00",ST GEORGE'S COURT,CARE ESTABLISHMENT,OP - City & South Blocks,City and South - Long term blocks,Residential Care
Cambridgeshire County Council,26-Nov-20,51301478648,"-4,440.00",ST GEORGE'S COURT,CARE ESTABLISHMENT,OP - City & South Blocks,City and South - Long term blocks,Residential Care
Cambridgeshire County Council,26-Nov-20,51301478648,"-4,440.00",ST GEORGE'S COURT,CARE ESTABLISHMENT,OP - City & South Blocks,City and South - Long term blocks,Residential Care
Cambridgeshire County Council,26-Nov-20,51301478648,"-4,440.00",ST GEORGE'S COURT,CARE ESTABLISHMENT,OP - City & South Blocks,City and South - Long term blocks,Residential Care
Cambridgeshire County Council,26-Nov-20,51301478648,"-4,440.00",ST GEORGE'S COURT,CARE ESTABLISHMENT,OP - City & South Blocks,City and South - Long term blocks,Residential Care
Cambridgeshire County Council,26-Nov-20,51301478648,"-4,440.00",ST GEORGE'S COURT,CARE ESTABLISHMENT,OP - City & South Blocks,City and South - Long term blocks,Residential Care
Cambridgeshire County Council,26-Nov-20,51301478648,"-4,440.00",ST GEORGE'S COURT,CARE ESTABLISHMENT,OP - City & South Blocks,City and South - Long term blocks,Residential Care
Cambridgeshire County Council,26-Nov-20,51301478648,"-4,440.00",ST GEORGE'S COURT,CARE ESTABLISHMENT,OP - City & South Blocks,City and South - Long term blocks,Residential Care
Cambridgeshire County Council,26-Nov-20,51301478648,"-4,440.00",ST GEORGE'S COURT,CARE ESTABLISHMENT,OP - City & South Blocks,City and South - Long term blocks,Residential Care
Cambridgeshire County Council,26-Nov-20,51301478648,"-4,440.00",ST GEORGE'S COURT,CARE ESTABLISHMENT,OP - City & South Blocks,City and South - Long term blocks,Residential Care
Cambridgeshire County Council,26-Nov-20,51301478686,"-4,200.00",MIDFIELD LODGE CARE CENTRE,CARE ESTABLISHMENT,OP - City & South Locality - Cost of Care,Older People - City & South - Care,Nursing Care
Cambridgeshire County Council,26-Nov-20,51301478672,"-3,954.00",FORD HOUSE CARE HOME,CARE ESTABLISHMENT,OP - Hunts Locality - Cost of Care,Hunts OP Team - Care,Nursing Care
Cambridgeshire County Council,26-Nov-20,51301478672,"-3,954.00",FORD HOUSE CARE HOME,CARE ESTABLISHMENT,OP - Hunts Locality - Cost of Care,Hunts OP Team - Care,Nursing Care
Cambridgeshire County Council,26-Nov-20,51301478672,"-3,954.00",FORD HOUSE CARE HOME,CARE ESTABLISHMENT,OP - Hunts Locality - Cost of Care,Hunts OP Team - Care,Nursing Care
Cambridgeshire County Council,26-Nov-20,51301478672,"-3,954.00",FORD HOUSE CARE HOME,CARE ESTABLISHMENT,OP - Hunts Locality - Cost of Care,Hunts OP Team - Care,Nursing Care
Cambridgeshire County Council,26-Nov-20,51301478672,"-3,954.00",FORD HOUSE CARE HOME,CARE ESTABLISHMENT,OP - Hunts Locality - Cost of Care,Hunts OP Team - Care,Nursing Care
Cambridgeshire County Council,26-Nov-20,51301478672,"-3,954.00",FORD HOUSE CARE HOME,CARE ESTABLISHMENT,OP - Hunts Locality - Cost of Care,Hunts OP Team - Care,Nursing Care
Cambridgeshire County Council,26-Nov-20,51301478646,"-3,870.00",FITZWILLIAM HEALTHCARE LTD,CARE ESTABLISHMENT,OP - City & South Blocks,City and South - Long term blocks,Residential Care
Cambridgeshire County Council,12-Nov-20,51301469193,"-3,864.22",Redacted Personal Data ,INDIVIDUAL,Children's Disability Direct Payments,CSC Direct Payments,Direct Payments
Cambridgeshire County Council,05-Nov-20,51301465011,"-3,681.48",Keys PCE Ltd,CARE ESTABLISHMENT,LAC Placements,Placements - residential homes,Agency Placements - Out of  County
Cambridgeshire County Council,17-Nov-20,51301470336,"-3,417.08",KEY2 FUTURES LTD,TRADE SUPPLIER,Unaccompanied Asylum Seeking Children,Unaccompanied Asylum Seeking Children <18,Asylum Seekers
Cambridgeshire County Council,26-Nov-20,51301478672,"-3,389.14",FORD HOUSE CARE HOME,CARE ESTABLISHMENT,OP - Hunts Locality - Cost of Care,Hunts OP Team - Care,Nursing Care
Cambridgeshire County Council,26-Nov-20,51300965713,"-3,387.50",Redacted Personal Data ,INDIVIDUAL,OP - Hunts Locality - Cost of Care,Hunts OP Team - Care,Direct Payments
Cambridgeshire County Council,20-Nov-20,51301471299,"-3,166.43",REGIONAL FOSTER PLACEMENTS,CARE ESTABLISHMENT,LAC Placements,Placements - independent fostering,Agency Placements - Out of  County
Cambridgeshire County Council,20-Nov-20,51301471285,"-3,166.43",REGIONAL FOSTER PLACEMENTS,CARE ESTABLISHMENT,LAC Placements,Placements - independent fostering,Agency Placements - Out of  County
Cambridgeshire County Council,26-Nov-20,51301478647,"-3,100.00",ALIWAL HEALTHCARE LTD,CARE ESTABLISHMENT,OP - Fenland Blocks,Fenland - Long term blocks,Residential Care
Cambridgeshire County Council,26-Nov-20,51301478647,"-3,100.00",ALIWAL HEALTHCARE LTD,CARE ESTABLISHMENT,OP - Fenland Blocks,Fenland - Long term blocks,Residential Care
Cambridgeshire County Council,26-Nov-20,51301478647,"-3,100.00",ALIWAL HEALTHCARE LTD,CARE ESTABLISHMENT,OP - Fenland Blocks,Fenland - Long term blocks,Residential Care
Cambridgeshire County Council,26-Nov-20,51301478647,"-3,100.00",ALIWAL HEALTHCARE LTD,CARE ESTABLISHMENT,OP - Fenland Blocks,Fenland - Long term blocks,Residential Care
Cambridgeshire County Council,20-Nov-20,51301471281,"-3,064.29",REGIONAL FOSTER PLACEMENTS,CARE ESTABLISHMENT,LAC Placements,Placements - independent fostering,Agency Placements - Out of  County
Cambridgeshire County Council,20-Nov-20,51301471292,"-3,064.29",REGIONAL FOSTER PLACEMENTS,CARE ESTABLISHMENT,LAC Placements,Placements - independent fostering,Agency Placements - Out of  County
Cambridgeshire County Council,16-Nov-20,51301469868,"-3,010.48",KISIMUL SCHOOL,CARE ESTABLISHMENT,LD - Young Adults Team,LD - Young Adults - Care,Residential Care
Cambridgeshire County Council,26-Nov-20,51301478686,"-2,960.00",MIDFIELD LODGE CARE CENTRE,CARE ESTABLISHMENT,OP - City & South Locality - Cost of Care,Older People - City & South - Care,Nursing Care
Cambridgeshire County Council,26-Nov-20,51301478686,"-2,960.00",MIDFIELD LODGE CARE CENTRE,CARE ESTABLISHMENT,OP - City & South Locality - Cost of Care,Older People - City & South - Care,Nursing Care
Cambridgeshire County Council,26-Nov-20,51301478686,"-2,960.00",MIDFIELD LODGE CARE CENTRE,CARE ESTABLISHMENT,OP - City & South Locality - Cost of Care,Older People - City & South - Care,Nursing Care
Cambridgeshire County Council,26-Nov-20,51301478686,"-2,960.00",MIDFIELD LODGE CARE CENTRE,CARE ESTABLISHMENT,OP - City & South Locality - Cost of Care,Older People - City & South - Care,Nursing Care
Cambridgeshire County Council,26-Nov-20,51301478686,"-2,960.00",MIDFIELD LODGE CARE CENTRE,CARE ESTABLISHMENT,OP - City & South Locality - Cost of Care,Older People - City & South - Care,Nursing Care
Cambridgeshire County Council,26-Nov-20,51301478686,"-2,960.00",MIDFIELD LODGE CARE CENTRE,CARE ESTABLISHMENT,OP - City & South Locality - Cost of Care,Older People - City & South - Care,Nursing Care
Cambridgeshire County Council,26-Nov-20,51301476209,"-2,790.92",CONSULTUS CARE AND NURSING,CARE ESTABLISHMENT,LD - Hunts Locality - Cost of Care,LD - Huntingdonshire - Special Needs,Short Term Other
Cambridgeshire County Council,26-Nov-20,51301476209,"-2,790.92",CONSULTUS CARE AND NURSING,CARE ESTABLISHMENT,LD - Hunts Locality - Cost of Care,LD - Huntingdonshire - Special Needs,Short Term Other
Cambridgeshire County Council,26-Nov-20,51301478686,"-2,537.14",MIDFIELD LODGE CARE CENTRE,CARE ESTABLISHMENT,OP - City & South Locality - Cost of Care,Older People - City & South - Care,Nursing Care
Cambridgeshire County Council,26-Nov-20,51301478648,"-2,537.14",ST GEORGE'S COURT,CARE ESTABLISHMENT,OP - City & South Blocks,City and South - Long term blocks,Residential Care
Cambridgeshire County Council,26-Nov-20,51301478650,"-2,220.00",ETHELDRED HOUSE,CARE ESTABLISHMENT,OP - City & South Blocks,City and South - Long term blocks,Residential Care
Cambridgeshire County Council,26-Nov-20,51301478650,"-2,220.00",ETHELDRED HOUSE,CARE ESTABLISHMENT,OP - City & South Blocks,City and South - Long term blocks,Residential Care
Cambridgeshire County Council,26-Nov-20,51301478650,"-2,220.00",ETHELDRED HOUSE,CARE ESTABLISHMENT,OP - City & South Blocks,City and South - Long term blocks,Residential Care
Cambridgeshire County Council,26-Nov-20,51301478650,"-2,220.00",ETHELDRED HOUSE,CARE ESTABLISHMENT,OP - City & South Blocks,City and South - Long term blocks,Residential Care
Cambridgeshire County Council,26-Nov-20,51301478650,"-2,220.00",ETHELDRED HOUSE,CARE ESTABLISHMENT,OP - City & South Blocks,City and South - Long term blocks,Residential Care
Cambridgeshire County Council,26-Nov-20,51301478650,"-2,220.00",ETHELDRED HOUSE,CARE ESTABLISHMENT,OP - City & South Blocks,City and South - Long term blocks,Residential Care
Cambridgeshire County Council,26-Nov-20,51301478650,"-2,220.00",ETHELDRED HOUSE,CARE ESTABLISHMENT,OP - City & South Blocks,City and South - Long term blocks,Residential Care
Cambridgeshire County Council,26-Nov-20,51301478650,"-2,220.00",ETHELDRED HOUSE,CARE ESTABLISHMENT,OP - City & South Blocks,City and South - Long term blocks,Residential Care
Cambridgeshire County Council,26-Nov-20,51301478650,"-2,220.00",ETHELDRED HOUSE,CARE ESTABLISHMENT,OP - City & South Blocks,City and South - Long term blocks,Residential Care
Cambridgeshire County Council,26-Nov-20,51301478650,"-2,220.00",ETHELDRED HOUSE,CARE ESTABLISHMENT,OP - City & South Blocks,City and South - Long term blocks,Residential Care
Cambridgeshire County Council,26-Nov-20,51301478650,"-2,220.00",ETHELDRED HOUSE,CARE ESTABLISHMENT,OP - City & South Blocks,City and South - Long term blocks,Residential Care
Cambridgeshire County Council,26-Nov-20,51301478650,"-2,220.00",ETHELDRED HOUSE,CARE ESTABLISHMENT,OP - City & South Blocks,City and South - Long term blocks,Residential Care
Cambridgeshire County Council,26-Nov-20,51301478650,"-2,220.00",ETHELDRED HOUSE,CARE ESTABLISHMENT,OP - City & South Blocks,City and South - Long term blocks,Residential Care
Cambridgeshire County Council,26-Nov-20,51301478650,"-2,220.00",ETHELDRED HOUSE,CARE ESTABLISHMENT,OP - City & South Blocks,City and South - Long term blocks,Residential Care
Cambridgeshire County Council,26-Nov-20,51301478650,"-2,220.00",ETHELDRED HOUSE,CARE ESTABLISHMENT,OP - City & South Blocks,City and South - Long term blocks,Residential Care
Cambridgeshire County Council,26-Nov-20,51301478709,"-2,220.00",THE CAMBRIDGE NURSING CENTRE,CARE ESTABLISHMENT,OP - City & South Locality - Cost of Care,Older People - City & South - Care,Nursing Care
Cambridgeshire County Council,26-Nov-20,51301478709,"-2,220.00",THE CAMBRIDGE NURSING CENTRE,CARE ESTABLISHMENT,OP - City & South Locality - Cost of Care,Older People - City & South - Care,Nursing Care
Cambridgeshire County Council,26-Nov-20,51301478709,"-2,220.00",THE CAMBRIDGE NURSING CENTRE,CARE ESTABLISHMENT,OP - City & South Locality - Cost of Care,Older People - City & South - Care,Nursing Care
Cambridgeshire County Council,26-Nov-20,51301478709,"-2,220.00",THE CAMBRIDGE NURSING CENTRE,CARE ESTABLISHMENT,OP - City & South Locality - Cost of Care,Older People - City & South - Care,Nursing Care
Cambridgeshire County Council,26-Nov-20,51301478709,"-2,220.00",THE CAMBRIDGE NURSING CENTRE,CARE ESTABLISHMENT,OP - City & South Locality - Cost of Care,Older People - City & South - Care,Nursing Care
Cambridgeshire County Council,26-Nov-20,51301478709,"-2,220.00",THE CAMBRIDGE NURSING CENTRE,CARE ESTABLISHMENT,OP - City & South Locality - Cost of Care,Older People - City & South - Care,Nursing Care
Cambridgeshire County Council,12-Nov-20,51301469190,"-2,092.67",Redacted Personal Data ,INDIVIDUAL,Children's Disability Direct Payments,CSC Direct Payments,Direct Payments
Cambridgeshire County Council,11-Nov-20,51301468478,"-2,031.42",Keys PCE Ltd,CARE ESTABLISHMENT,LAC Placements,Placements - residential homes,Agency Placements - In County
Cambridgeshire County Council,11-Nov-20,51301468481,"-2,031.42",Keys PCE Ltd,CARE ESTABLISHMENT,LAC Placements,Placements - residential homes,Agency Placements - Out of  County
Cambridgeshire County Council,05-Nov-20,51301464999,"-2,031.42",Keys PCE Ltd,CARE ESTABLISHMENT,LAC Placements,Placements - residential homes,Agency Placements - Out of  County
Cambridgeshire County Council,26-Nov-20,51301476209,"-1,993.51",CONSULTUS CARE AND NURSING,CARE ESTABLISHMENT,LD - Hunts Locality - Cost of Care,LD - Huntingdonshire - Special Needs,Short Term Other
Cambridgeshire County Council,19-Nov-20,51301470710,"-1,932.80",Next Steps Ltd,COMPANY,LAC Placements,Placements - 16+,Agency Placements - In County
Cambridgeshire County Council,16-Nov-20,51301469862,"-1,916.72",KISIMUL SCHOOL,CARE ESTABLISHMENT,LD - Young Adults Team,LD - Young Adults - Care,Residential Care
Cambridgeshire County Council,16-Nov-20,51301469862,"-1,916.72",KISIMUL SCHOOL,CARE ESTABLISHMENT,LD - Young Adults Team,LD - Young Adults - Care,Residential Care
Cambridgeshire County Council,16-Nov-20,51301469862,"-1,916.72",KISIMUL SCHOOL,CARE ESTABLISHMENT,LD - Young Adults Team,LD - Young Adults - Care,Residential Care
Cambridgeshire County Council,16-Nov-20,51301469862,"-1,916.72",KISIMUL SCHOOL,CARE ESTABLISHMENT,LD - Young Adults Team,LD - Young Adults - Care,Residential Care
Cambridgeshire County Council,16-Nov-20,51301469862,"-1,916.72",KISIMUL SCHOOL,CARE ESTABLISHMENT,LD - Young Adults Team,LD - Young Adults - Care,Residential Care
Cambridgeshire County Council,16-Nov-20,51301469862,"-1,916.72",KISIMUL SCHOOL,CARE ESTABLISHMENT,LD - Young Adults Team,LD - Young Adults - Care,Residential Care
Cambridgeshire County Council,16-Nov-20,51301469862,"-1,916.72",KISIMUL SCHOOL,CARE ESTABLISHMENT,LD - Young Adults Team,LD - Young Adults - Care,Residential Care
Cambridgeshire County Council,16-Nov-20,51301469862,"-1,916.72",KISIMUL SCHOOL,CARE ESTABLISHMENT,LD - Young Adults Team,LD - Young Adults - Care,Residential Care
Cambridgeshire County Council,16-Nov-20,51301469862,"-1,916.72",KISIMUL SCHOOL,CARE ESTABLISHMENT,LD - Young Adults Team,LD - Young Adults - Care,Residential Care
Cambridgeshire County Council,16-Nov-20,51301469862,"-1,916.72",KISIMUL SCHOOL,CARE ESTABLISHMENT,LD - Young Adults Team,LD - Young Adults - Care,Residential Care
Cambridgeshire County Council,16-Nov-20,51301469862,"-1,916.72",KISIMUL SCHOOL,CARE ESTABLISHMENT,LD - Young Adults Team,LD - Young Adults - Care,Residential Care
Cambridgeshire County Council,16-Nov-20,51301469862,"-1,916.72",KISIMUL SCHOOL,CARE ESTABLISHMENT,LD - Young Adults Team,LD - Young Adults - Care,Residential Care
Cambridgeshire County Council,16-Nov-20,51301469862,"-1,916.72",KISIMUL SCHOOL,CARE ESTABLISHMENT,LD - Young Adults Team,LD - Young Adults - Care,Residential Care
Cambridgeshire County Council,16-Nov-20,51301469862,"-1,916.72",KISIMUL SCHOOL,CARE ESTABLISHMENT,LD - Young Adults Team,LD - Young Adults - Care,Residential Care
Cambridgeshire County Council,16-Nov-20,51301469862,"-1,916.72",KISIMUL SCHOOL,CARE ESTABLISHMENT,LD - Young Adults Team,LD - Young Adults - Care,Residential Care
Cambridgeshire County Council,16-Nov-20,51301469862,"-1,916.72",KISIMUL SCHOOL,CARE ESTABLISHMENT,LD - Young Adults Team,LD - Young Adults - Care,Residential Care
Cambridgeshire County Council,16-Nov-20,51301469862,"-1,916.72",KISIMUL SCHOOL,CARE ESTABLISHMENT,LD - Young Adults Team,LD - Young Adults - Care,Residential Care
Cambridgeshire County Council,16-Nov-20,51301469862,"-1,916.72",KISIMUL SCHOOL,CARE ESTABLISHMENT,LD - Young Adults Team,LD - Young Adults - Care,Residential Care
Cambridgeshire County Council,16-Nov-20,51301469862,"-1,916.72",KISIMUL SCHOOL,CARE ESTABLISHMENT,LD - Young Adults Team,LD - Young Adults - Care,Residential Care
Cambridgeshire County Council,16-Nov-20,51301469862,"-1,916.72",KISIMUL SCHOOL,CARE ESTABLISHMENT,LD - Young Adults Team,LD - Young Adults - Care,Residential Care
Cambridgeshire County Council,16-Nov-20,51301469862,"-1,916.72",KISIMUL SCHOOL,CARE ESTABLISHMENT,LD - Young Adults Team,LD - Young Adults - Care,Residential Care
Cambridgeshire County Council,16-Nov-20,51301469862,"-1,916.72",KISIMUL SCHOOL,CARE ESTABLISHMENT,LD - Young Adults Team,LD - Young Adults - Care,Residential Care
Cambridgeshire County Council,16-Nov-20,51301469862,"-1,916.72",KISIMUL SCHOOL,CARE ESTABLISHMENT,LD - Young Adults Team,LD - Young Adults - Care,Residential Care
Cambridgeshire County Council,16-Nov-20,51301469862,"-1,916.72",KISIMUL SCHOOL,CARE ESTABLISHMENT,LD - Young Adults Team,LD - Young Adults - Care,Residential Care
Cambridgeshire County Council,16-Nov-20,51301469862,"-1,916.72",KISIMUL SCHOOL,CARE ESTABLISHMENT,LD - Young Adults Team,LD - Young Adults - Care,Residential Care
Cambridgeshire County Council,16-Nov-20,51301469862,"-1,916.72",KISIMUL SCHOOL,CARE ESTABLISHMENT,LD - Young Adults Team,LD - Young Adults - Care,Residential Care
Cambridgeshire County Council,16-Nov-20,51301469862,"-1,916.72",KISIMUL SCHOOL,CARE ESTABLISHMENT,LD - Young Adults Team,LD - Young Adults - Care,Residential Care
Cambridgeshire County Council,16-Nov-20,51301469862,"-1,916.72",KISIMUL SCHOOL,CARE ESTABLISHMENT,LD - Young Adults Team,LD - Young Adults - Care,Residential Care
Cambridgeshire County Council,16-Nov-20,51301469862,"-1,916.72",KISIMUL SCHOOL,CARE ESTABLISHMENT,LD - Young Adults Team,LD - Young Adults - Care,Residential Care
Cambridgeshire County Council,16-Nov-20,51301469862,"-1,916.72",KISIMUL SCHOOL,CARE ESTABLISHMENT,LD - Young Adults Team,LD - Young Adults - Care,Residential Care
Cambridgeshire County Council,16-Nov-20,51301469862,"-1,916.72",KISIMUL SCHOOL,CARE ESTABLISHMENT,LD - Young Adults Team,LD - Young Adults - Care,Residential Care
Cambridgeshire County Council,16-Nov-20,51301469862,"-1,916.72",KISIMUL SCHOOL,CARE ESTABLISHMENT,LD - Young Adults Team,LD - Young Adults - Care,Residential Care
Cambridgeshire County Council,16-Nov-20,51301469862,"-1,916.72",KISIMUL SCHOOL,CARE ESTABLISHMENT,LD - Young Adults Team,LD - Young Adults - Care,Residential Care
Cambridgeshire County Council,16-Nov-20,51301469862,"-1,916.72",KISIMUL SCHOOL,CARE ESTABLISHMENT,LD - Young Adults Team,LD - Young Adults - Care,Residential Care
Cambridgeshire County Council,16-Nov-20,51301469862,"-1,916.72",KISIMUL SCHOOL,CARE ESTABLISHMENT,LD - Young Adults Team,LD - Young Adults - Care,Residential Care
Cambridgeshire County Council,16-Nov-20,51301469862,"-1,916.72",KISIMUL SCHOOL,CARE ESTABLISHMENT,LD - Young Adults Team,LD - Young Adults - Care,Residential Care
Cambridgeshire County Council,16-Nov-20,51301469862,"-1,916.72",KISIMUL SCHOOL,CARE ESTABLISHMENT,LD - Young Adults Team,LD - Young Adults - Care,Residential Care
Cambridgeshire County Council,16-Nov-20,51301469862,"-1,916.72",KISIMUL SCHOOL,CARE ESTABLISHMENT,LD - Young Adults Team,LD - Young Adults - Care,Residential Care
Cambridgeshire County Council,16-Nov-20,51301469862,"-1,916.72",KISIMUL SCHOOL,CARE ESTABLISHMENT,LD - Young Adults Team,LD - Young Adults - Care,Residential Care
Cambridgeshire County Council,16-Nov-20,51301469862,"-1,916.72",KISIMUL SCHOOL,CARE ESTABLISHMENT,LD - Young Adults Team,LD - Young Adults - Care,Residential Care
Cambridgeshire County Council,16-Nov-20,51301469862,"-1,916.72",KISIMUL SCHOOL,CARE ESTABLISHMENT,LD - Young Adults Team,LD - Young Adults - Care,Residential Care
Cambridgeshire County Council,16-Nov-20,51301469862,"-1,916.72",KISIMUL SCHOOL,CARE ESTABLISHMENT,LD - Young Adults Team,LD - Young Adults - Care,Residential Care
Cambridgeshire County Council,16-Nov-20,51301469862,"-1,916.72",KISIMUL SCHOOL,CARE ESTABLISHMENT,LD - Young Adults Team,LD - Young Adults - Care,Residential Care
Cambridgeshire County Council,16-Nov-20,51301469862,"-1,916.72",KISIMUL SCHOOL,CARE ESTABLISHMENT,LD - Young Adults Team,LD - Young Adults - Care,Residential Care
Cambridgeshire County Council,16-Nov-20,51301469862,"-1,916.72",KISIMUL SCHOOL,CARE ESTABLISHMENT,LD - Young Adults Team,LD - Young Adults - Care,Residential Care
Cambridgeshire County Council,16-Nov-20,51301469862,"-1,916.72",KISIMUL SCHOOL,CARE ESTABLISHMENT,LD - Young Adults Team,LD - Young Adults - Care,Residential Care
Cambridgeshire County Council,16-Nov-20,51301469862,"-1,916.72",KISIMUL SCHOOL,CARE ESTABLISHMENT,LD - Young Adults Team,LD - Young Adults - Care,Residential Care
Cambridgeshire County Council,26-Nov-20,51301478650,"-1,902.86",ETHELDRED HOUSE,CARE ESTABLISHMENT,OP - City & South Blocks,City and South - Long term blocks,Residential Care
Cambridgeshire County Council,26-Nov-20,51301478709,"-1,902.86",THE CAMBRIDGE NURSING CENTRE,CARE ESTABLISHMENT,OP - City & South Locality - Cost of Care,Older People - City & South - Care,Nursing Care
Cambridgeshire County Council,12-Nov-20,51301469002,"-1,861.62",DIMENSIONS (UK) LTD,CARE ESTABLISHMENT,LD - South Locality - Cost of Care,LD - South Cambs - Care,Supported Living
Cambridgeshire County Council,12-Nov-20,51301469002,"-1,861.62",DIMENSIONS (UK) LTD,CARE ESTABLISHMENT,LD - South Locality - Cost of Care,LD - South Cambs - Care,Supported Living
Cambridgeshire County Council,12-Nov-20,51301469002,"-1,861.62",DIMENSIONS (UK) LTD,CARE ESTABLISHMENT,LD - South Locality - Cost of Care,LD - South Cambs - Care,Supported Living
Cambridgeshire County Council,12-Nov-20,51301469002,"-1,861.62",DIMENSIONS (UK) LTD,CARE ESTABLISHMENT,LD - South Locality - Cost of Care,LD - South Cambs - Care,Supported Living
Cambridgeshire County Council,12-Nov-20,51301469002,"-1,861.62",DIMENSIONS (UK) LTD,CARE ESTABLISHMENT,LD - South Locality - Cost of Care,LD - South Cambs - Care,Supported Living
Cambridgeshire County Council,12-Nov-20,51301469002,"-1,861.62",DIMENSIONS (UK) LTD,CARE ESTABLISHMENT,LD - South Locality - Cost of Care,LD - South Cambs - Care,Supported Living
Cambridgeshire County Council,12-Nov-20,51301469002,"-1,861.62",DIMENSIONS (UK) LTD,CARE ESTABLISHMENT,LD - South Locality - Cost of Care,LD - South Cambs - Care,Supported Living
Cambridgeshire County Council,12-Nov-20,51301469002,"-1,861.62",DIMENSIONS (UK) LTD,CARE ESTABLISHMENT,LD - South Locality - Cost of Care,LD - South Cambs - Care,Supported Living
Cambridgeshire County Council,12-Nov-20,51301469002,"-1,861.62",DIMENSIONS (UK) LTD,CARE ESTABLISHMENT,LD - South Locality - Cost of Care,LD - South Cambs - Care,Supported Living
Cambridgeshire County Council,12-Nov-20,51301469002,"-1,861.62",DIMENSIONS (UK) LTD,CARE ESTABLISHMENT,LD - South Locality - Cost of Care,LD - South Cambs - Care,Supported Living
Cambridgeshire County Council,12-Nov-20,51301469002,"-1,861.62",DIMENSIONS (UK) LTD,CARE ESTABLISHMENT,LD - South Locality - Cost of Care,LD - South Cambs - Care,Supported Living
Cambridgeshire County Council,12-Nov-20,51301469002,"-1,861.62",DIMENSIONS (UK) LTD,CARE ESTABLISHMENT,LD - South Locality - Cost of Care,LD - South Cambs - Care,Supported Living
Cambridgeshire County Council,12-Nov-20,51301469002,"-1,861.62",DIMENSIONS (UK) LTD,CARE ESTABLISHMENT,LD - South Locality - Cost of Care,LD - South Cambs - Care,Supported Living
Cambridgeshire County Council,12-Nov-20,51301469002,"-1,861.62",DIMENSIONS (UK) LTD,CARE ESTABLISHMENT,LD - South Locality - Cost of Care,LD - South Cambs - Care,Supported Living
Cambridgeshire County Council,12-Nov-20,51301469002,"-1,861.62",DIMENSIONS (UK) LTD,CARE ESTABLISHMENT,LD - South Locality - Cost of Care,LD - South Cambs - Care,Supported Living
Cambridgeshire County Council,12-Nov-20,51301469002,"-1,861.62",DIMENSIONS (UK) LTD,CARE ESTABLISHMENT,LD - South Locality - Cost of Care,LD - South Cambs - Care,Supported Living
Cambridgeshire County Council,12-Nov-20,51301469002,"-1,861.62",DIMENSIONS (UK) LTD,CARE ESTABLISHMENT,LD - South Locality - Cost of Care,LD - South Cambs - Care,Supported Living
Cambridgeshire County Council,12-Nov-20,51301469002,"-1,861.62",DIMENSIONS (UK) LTD,CARE ESTABLISHMENT,LD - South Locality - Cost of Care,LD - South Cambs - Care,Supported Living
Cambridgeshire County Council,12-Nov-20,51301469002,"-1,861.62",DIMENSIONS (UK) LTD,CARE ESTABLISHMENT,LD - South Locality - Cost of Care,LD - South Cambs - Care,Supported Living
Cambridgeshire County Council,12-Nov-20,51301469002,"-1,861.62",DIMENSIONS (UK) LTD,CARE ESTABLISHMENT,LD - South Locality - Cost of Care,LD - South Cambs - Care,Supported Living
Cambridgeshire County Council,12-Nov-20,51301469002,"-1,861.62",DIMENSIONS (UK) LTD,CARE ESTABLISHMENT,LD - South Locality - Cost of Care,LD - South Cambs - Care,Supported Living
Cambridgeshire County Council,12-Nov-20,51301469002,"-1,861.62",DIMENSIONS (UK) LTD,CARE ESTABLISHMENT,LD - South Locality - Cost of Care,LD - South Cambs - Care,Supported Living
Cambridgeshire County Council,12-Nov-20,51301469002,"-1,861.62",DIMENSIONS (UK) LTD,CARE ESTABLISHMENT,LD - South Locality - Cost of Care,LD - South Cambs - Care,Supported Living
Cambridgeshire County Council,12-Nov-20,51301469002,"-1,861.62",DIMENSIONS (UK) LTD,CARE ESTABLISHMENT,LD - South Locality - Cost of Care,LD - South Cambs - Care,Supported Living
Cambridgeshire County Council,12-Nov-20,51301469002,"-1,861.62",DIMENSIONS (UK) LTD,CARE ESTABLISHMENT,LD - South Locality - Cost of Care,LD - South Cambs - Care,Supported Living
Cambridgeshire County Council,12-Nov-20,51301469002,"-1,861.62",DIMENSIONS (UK) LTD,CARE ESTABLISHMENT,LD - South Locality - Cost of Care,LD - South Cambs - Care,Supported Living
Cambridgeshire County Council,12-Nov-20,51301469002,"-1,861.62",DIMENSIONS (UK) LTD,CARE ESTABLISHMENT,LD - South Locality - Cost of Care,LD - South Cambs - Care,Supported Living
Cambridgeshire County Council,12-Nov-20,51301469002,"-1,861.62",DIMENSIONS (UK) LTD,CARE ESTABLISHMENT,LD - South Locality - Cost of Care,LD - South Cambs - Care,Supported Living
Cambridgeshire County Council,12-Nov-20,51301469002,"-1,861.62",DIMENSIONS (UK) LTD,CARE ESTABLISHMENT,LD - South Locality - Cost of Care,LD - South Cambs - Care,Supported Living
Cambridgeshire County Council,12-Nov-20,51301469002,"-1,861.62",DIMENSIONS (UK) LTD,CARE ESTABLISHMENT,LD - South Locality - Cost of Care,LD - South Cambs - Care,Supported Living
Cambridgeshire County Council,12-Nov-20,51301469002,"-1,861.62",DIMENSIONS (UK) LTD,CARE ESTABLISHMENT,LD - South Locality - Cost of Care,LD - South Cambs - Care,Supported Living
Cambridgeshire County Council,12-Nov-20,51301469002,"-1,861.62",DIMENSIONS (UK) LTD,CARE ESTABLISHMENT,LD - South Locality - Cost of Care,LD - South Cambs - Care,Supported Living
Cambridgeshire County Council,12-Nov-20,51301469002,"-1,861.62",DIMENSIONS (UK) LTD,CARE ESTABLISHMENT,LD - South Locality - Cost of Care,LD - South Cambs - Care,Supported Living
Cambridgeshire County Council,12-Nov-20,51301469002,"-1,861.62",DIMENSIONS (UK) LTD,CARE ESTABLISHMENT,LD - South Locality - Cost of Care,LD - South Cambs - Care,Supported Living
Cambridgeshire County Council,11-Nov-20,51301468485,"-1,825.74",Keys PCE Ltd,CARE ESTABLISHMENT,LAC Placements,Placements - residential homes,Agency Placements - Out of  County
Cambridgeshire County Council,26-Nov-20,51301459319,"-1,825.47",EAGLE WOOD NEUROLOGICAL CARE,CARE ESTABLISHMENT,OPMH - City & South,Older People Mental Health E Cambs,Nursing Care
Cambridgeshire County Council,26-Nov-20,51301459319,"-1,825.47",EAGLE WOOD NEUROLOGICAL CARE,CARE ESTABLISHMENT,OPMH - City & South,Older People Mental Health E Cambs,Nursing Care
Cambridgeshire County Council,26-Nov-20,51301459319,"-1,825.47",EAGLE WOOD NEUROLOGICAL CARE,CARE ESTABLISHMENT,OPMH - City & South,Older People Mental Health E Cambs,Nursing Care
Cambridgeshire County Council,26-Nov-20,51301459319,"-1,825.47",EAGLE WOOD NEUROLOGICAL CARE,CARE ESTABLISHMENT,OPMH - City & South,Older People Mental Health E Cambs,Nursing Care
Cambridgeshire County Council,26-Nov-20,51301459319,"-1,825.47",EAGLE WOOD NEUROLOGICAL CARE,CARE ESTABLISHMENT,OPMH - City & South,Older People Mental Health E Cambs,Nursing Care
Cambridgeshire County Council,26-Nov-20,51301459319,"-1,825.47",EAGLE WOOD NEUROLOGICAL CARE,CARE ESTABLISHMENT,OPMH - City & South,Older People Mental Health E Cambs,Nursing Care
Cambridgeshire County Council,26-Nov-20,51301459319,"-1,825.47",EAGLE WOOD NEUROLOGICAL CARE,CARE ESTABLISHMENT,OPMH - City & South,Older People Mental Health E Cambs,Nursing Care
Cambridgeshire County Council,26-Nov-20,51301459319,"-1,825.47",EAGLE WOOD NEUROLOGICAL CARE,CARE ESTABLISHMENT,OPMH - City & South,Older People Mental Health E Cambs,Nursing Care
Cambridgeshire County Council,26-Nov-20,51301459319,"-1,825.47",EAGLE WOOD NEUROLOGICAL CARE,CARE ESTABLISHMENT,OPMH - City & South,Older People Mental Health E Cambs,Nursing Care
Cambridgeshire County Council,26-Nov-20,51301459319,"-1,825.47",EAGLE WOOD NEUROLOGICAL CARE,CARE ESTABLISHMENT,OPMH - City & South,Older People Mental Health E Cambs,Nursing Care
Cambridgeshire County Council,26-Nov-20,51301459319,"-1,825.47",EAGLE WOOD NEUROLOGICAL CARE,CARE ESTABLISHMENT,OPMH - City & South,Older People Mental Health E Cambs,Nursing Care
Cambridgeshire County Council,26-Nov-20,51301459319,"-1,825.47",EAGLE WOOD NEUROLOGICAL CARE,CARE ESTABLISHMENT,OPMH - City & South,Older People Mental Health E Cambs,Nursing Care
Cambridgeshire County Council,12-Nov-20,51301431250,"-1,792.46",HUNTINGDON MENCAP LTD,CARE ESTABLISHMENT,LD - Hunts Locality - Cost of Care,LD - Huntingdonshire - Care,Domiciliary Care
Cambridgeshire County Council,12-Nov-20,51301431250,"-1,792.46",HUNTINGDON MENCAP LTD,CARE ESTABLISHMENT,LD - Hunts Locality - Cost of Care,LD - Huntingdonshire - Care,Domiciliary Care
Cambridgeshire County Council,12-Nov-20,51301431250,"-1,792.46",HUNTINGDON MENCAP LTD,CARE ESTABLISHMENT,LD - Hunts Locality - Cost of Care,LD - Huntingdonshire - Care,Domiciliary Care
Cambridgeshire County Council,12-Nov-20,51301431250,"-1,792.46",HUNTINGDON MENCAP LTD,CARE ESTABLISHMENT,LD - Hunts Locality - Cost of Care,LD - Huntingdonshire - Care,Domiciliary Care
Cambridgeshire County Council,12-Nov-20,51301431250,"-1,792.46",HUNTINGDON MENCAP LTD,CARE ESTABLISHMENT,LD - Hunts Locality - Cost of Care,LD - Huntingdonshire - Care,Domiciliary Care
Cambridgeshire County Council,12-Nov-20,51301431250,"-1,792.46",HUNTINGDON MENCAP LTD,CARE ESTABLISHMENT,LD - Hunts Locality - Cost of Care,LD - Huntingdonshire - Care,Domiciliary Care
Cambridgeshire County Council,12-Nov-20,51301431250,"-1,792.46",HUNTINGDON MENCAP LTD,CARE ESTABLISHMENT,LD - Hunts Locality - Cost of Care,LD - Huntingdonshire - Care,Domiciliary Care
Cambridgeshire County Council,12-Nov-20,51301431250,"-1,792.46",HUNTINGDON MENCAP LTD,CARE ESTABLISHMENT,LD - Hunts Locality - Cost of Care,LD - Huntingdonshire - Care,Domiciliary Care
Cambridgeshire County Council,12-Nov-20,51301431250,"-1,792.46",HUNTINGDON MENCAP LTD,CARE ESTABLISHMENT,LD - Hunts Locality - Cost of Care,LD - Huntingdonshire - Care,Domiciliary Care
Cambridgeshire County Council,12-Nov-20,51301431250,"-1,792.46",HUNTINGDON MENCAP LTD,CARE ESTABLISHMENT,LD - Hunts Locality - Cost of Care,LD - Huntingdonshire - Care,Domiciliary Care
Cambridgeshire County Council,12-Nov-20,51301431250,"-1,792.46",HUNTINGDON MENCAP LTD,CARE ESTABLISHMENT,LD - Hunts Locality - Cost of Care,LD - Huntingdonshire - Care,Domiciliary Care
Cambridgeshire County Council,12-Nov-20,51301431250,"-1,792.46",HUNTINGDON MENCAP LTD,CARE ESTABLISHMENT,LD - Hunts Locality - Cost of Care,LD - Huntingdonshire - Care,Domiciliary Care
Cambridgeshire County Council,12-Nov-20,51301431250,"-1,792.46",HUNTINGDON MENCAP LTD,CARE ESTABLISHMENT,LD - Hunts Locality - Cost of Care,LD - Huntingdonshire - Care,Domiciliary Care
Cambridgeshire County Council,12-Nov-20,51301431250,"-1,792.46",HUNTINGDON MENCAP LTD,CARE ESTABLISHMENT,LD - Hunts Locality - Cost of Care,LD - Huntingdonshire - Care,Domiciliary Care
Cambridgeshire County Council,12-Nov-20,51301431250,"-1,792.46",HUNTINGDON MENCAP LTD,CARE ESTABLISHMENT,LD - Hunts Locality - Cost of Care,LD - Huntingdonshire - Care,Domiciliary Care
Cambridgeshire County Council,12-Nov-20,51301431250,"-1,792.46",HUNTINGDON MENCAP LTD,CARE ESTABLISHMENT,LD - Hunts Locality - Cost of Care,LD - Huntingdonshire - Care,Domiciliary Care
Cambridgeshire County Council,12-Nov-20,51301431250,"-1,792.46",HUNTINGDON MENCAP LTD,CARE ESTABLISHMENT,LD - Hunts Locality - Cost of Care,LD - Huntingdonshire - Care,Domiciliary Care
Cambridgeshire County Council,12-Nov-20,51301431250,"-1,792.46",HUNTINGDON MENCAP LTD,CARE ESTABLISHMENT,LD - Hunts Locality - Cost of Care,LD - Huntingdonshire - Care,Domiciliary Care
Cambridgeshire County Council,12-Nov-20,51301431250,"-1,792.46",HUNTINGDON MENCAP LTD,CARE ESTABLISHMENT,LD - Hunts Locality - Cost of Care,LD - Huntingdonshire - Care,Domiciliary Care
Cambridgeshire County Council,12-Nov-20,51301431250,"-1,784.46",HUNTINGDON MENCAP LTD,CARE ESTABLISHMENT,LD - Hunts Locality - Cost of Care,LD - Huntingdonshire - Care,Domiciliary Care
Cambridgeshire County Council,12-Nov-20,51301431250,"-1,784.46",HUNTINGDON MENCAP LTD,CARE ESTABLISHMENT,LD - Hunts Locality - Cost of Care,LD - Huntingdonshire - Care,Domiciliary Care
Cambridgeshire County Council,12-Nov-20,51301431250,"-1,784.46",HUNTINGDON MENCAP LTD,CARE ESTABLISHMENT,LD - Hunts Locality - Cost of Care,LD - Huntingdonshire - Care,Domiciliary Care
Cambridgeshire County Council,12-Nov-20,51301431250,"-1,784.46",HUNTINGDON MENCAP LTD,CARE ESTABLISHMENT,LD - Hunts Locality - Cost of Care,LD - Huntingdonshire - Care,Domiciliary Care
Cambridgeshire County Council,12-Nov-20,51301431250,"-1,784.46",HUNTINGDON MENCAP LTD,CARE ESTABLISHMENT,LD - Hunts Locality - Cost of Care,LD - Huntingdonshire - Care,Domiciliary Care
Cambridgeshire County Council,12-Nov-20,51301431250,"-1,784.46",HUNTINGDON MENCAP LTD,CARE ESTABLISHMENT,LD - Hunts Locality - Cost of Care,LD - Huntingdonshire - Care,Domiciliary Care
Cambridgeshire County Council,12-Nov-20,51301431250,"-1,784.46",HUNTINGDON MENCAP LTD,CARE ESTABLISHMENT,LD - Hunts Locality - Cost of Care,LD - Huntingdonshire - Care,Domiciliary Care
Cambridgeshire County Council,12-Nov-20,51301431250,"-1,784.46",HUNTINGDON MENCAP LTD,CARE ESTABLISHMENT,LD - Hunts Locality - Cost of Care,LD - Huntingdonshire - Care,Domiciliary Care
Cambridgeshire County Council,12-Nov-20,51301431250,"-1,784.46",HUNTINGDON MENCAP LTD,CARE ESTABLISHMENT,LD - Hunts Locality - Cost of Care,LD - Huntingdonshire - Care,Domiciliary Care
Cambridgeshire County Council,12-Nov-20,51301431250,"-1,784.46",HUNTINGDON MENCAP LTD,CARE ESTABLISHMENT,LD - Hunts Locality - Cost of Care,LD - Huntingdonshire - Care,Domiciliary Care
Cambridgeshire County Council,12-Nov-20,51301431250,"-1,784.46",HUNTINGDON MENCAP LTD,CARE ESTABLISHMENT,LD - Hunts Locality - Cost of Care,LD - Huntingdonshire - Care,Domiciliary Care
Cambridgeshire County Council,12-Nov-20,51301431250,"-1,784.46",HUNTINGDON MENCAP LTD,CARE ESTABLISHMENT,LD - Hunts Locality - Cost of Care,LD - Huntingdonshire - Care,Domiciliary Care
Cambridgeshire County Council,05-Nov-20,51301464810,"-1,763.20",NEW CHAPTERS FOSTERCARE,CARE ESTABLISHMENT,LAC Placements,Placements - independent fostering,Agency Placements - Out of  County
Cambridgeshire County Council,12-Nov-20,51301431250,"-1,755.54",HUNTINGDON MENCAP LTD,CARE ESTABLISHMENT,LD - Hunts Locality - Cost of Care,LD - Huntingdonshire - Care,Domiciliary Care
Cambridgeshire County Council,12-Nov-20,51301431250,"-1,755.54",HUNTINGDON MENCAP LTD,CARE ESTABLISHMENT,LD - Hunts Locality - Cost of Care,LD - Huntingdonshire - Care,Domiciliary Care
Cambridgeshire County Council,12-Nov-20,51301431250,"-1,755.54",HUNTINGDON MENCAP LTD,CARE ESTABLISHMENT,LD - Hunts Locality - Cost of Care,LD - Huntingdonshire - Care,Domiciliary Care
Cambridgeshire County Council,12-Nov-20,51301431250,"-1,755.54",HUNTINGDON MENCAP LTD,CARE ESTABLISHMENT,LD - Hunts Locality - Cost of Care,LD - Huntingdonshire - Care,Domiciliary Care
Cambridgeshire County Council,12-Nov-20,51301431250,"-1,755.54",HUNTINGDON MENCAP LTD,CARE ESTABLISHMENT,LD - Hunts Locality - Cost of Care,LD - Huntingdonshire - Care,Domiciliary Care
Cambridgeshire County Council,12-Nov-20,51301431250,"-1,755.54",HUNTINGDON MENCAP LTD,CARE ESTABLISHMENT,LD - Hunts Locality - Cost of Care,LD - Huntingdonshire - Care,Domiciliary Care
Cambridgeshire County Council,12-Nov-20,51301431250,"-1,755.54",HUNTINGDON MENCAP LTD,CARE ESTABLISHMENT,LD - Hunts Locality - Cost of Care,LD - Huntingdonshire - Care,Domiciliary Care
Cambridgeshire County Council,12-Nov-20,51301431250,"-1,755.54",HUNTINGDON MENCAP LTD,CARE ESTABLISHMENT,LD - Hunts Locality - Cost of Care,LD - Huntingdonshire - Care,Domiciliary Care
Cambridgeshire County Council,12-Nov-20,51301431250,"-1,755.54",HUNTINGDON MENCAP LTD,CARE ESTABLISHMENT,LD - Hunts Locality - Cost of Care,LD - Huntingdonshire - Care,Domiciliary Care
Cambridgeshire County Council,12-Nov-20,51301431250,"-1,755.54",HUNTINGDON MENCAP LTD,CARE ESTABLISHMENT,LD - Hunts Locality - Cost of Care,LD - Huntingdonshire - Care,Domiciliary Care
Cambridgeshire County Council,12-Nov-20,51301431250,"-1,755.54",HUNTINGDON MENCAP LTD,CARE ESTABLISHMENT,LD - Hunts Locality - Cost of Care,LD - Huntingdonshire - Care,Domiciliary Care
Cambridgeshire County Council,12-Nov-20,51301431250,"-1,755.54",HUNTINGDON MENCAP LTD,CARE ESTABLISHMENT,LD - Hunts Locality - Cost of Care,LD - Huntingdonshire - Care,Domiciliary Care
Cambridgeshire County Council,12-Nov-20,51301431250,"-1,755.54",HUNTINGDON MENCAP LTD,CARE ESTABLISHMENT,LD - Hunts Locality - Cost of Care,LD - Huntingdonshire - Care,Domiciliary Care
Cambridgeshire County Council,12-Nov-20,51301431250,"-1,755.54",HUNTINGDON MENCAP LTD,CARE ESTABLISHMENT,LD - Hunts Locality - Cost of Care,LD - Huntingdonshire - Care,Domiciliary Care
Cambridgeshire County Council,12-Nov-20,51301431250,"-1,755.54",HUNTINGDON MENCAP LTD,CARE ESTABLISHMENT,LD - Hunts Locality - Cost of Care,LD - Huntingdonshire - Care,Domiciliary Care
Cambridgeshire County Council,12-Nov-20,51301431250,"-1,755.54",HUNTINGDON MENCAP LTD,CARE ESTABLISHMENT,LD - Hunts Locality - Cost of Care,LD - Huntingdonshire - Care,Domiciliary Care
Cambridgeshire County Council,12-Nov-20,51301431250,"-1,755.54",HUNTINGDON MENCAP LTD,CARE ESTABLISHMENT,LD - Hunts Locality - Cost of Care,LD - Huntingdonshire - Care,Domiciliary Care
Cambridgeshire County Council,26-Nov-20,51301469003,"-1,702.46",CONSULTUS CARE AND NURSING,CARE ESTABLISHMENT,LD - Hunts Locality - Cost of Care,LD - Huntingdonshire - Care,Short Term Other
Cambridgeshire County Council,26-Nov-20,51301469003,"-1,702.46",CONSULTUS CARE AND NURSING,CARE ESTABLISHMENT,LD - Hunts Locality - Cost of Care,LD - Huntingdonshire - Care,Short Term Other
Cambridgeshire County Council,26-Nov-20,51301469003,"-1,702.46",CONSULTUS CARE AND NURSING,CARE ESTABLISHMENT,LD - Hunts Locality - Cost of Care,LD - Huntingdonshire - Care,Short Term Other
Cambridgeshire County Council,26-Nov-20,51301469003,"-1,702.46",CONSULTUS CARE AND NURSING,CARE ESTABLISHMENT,LD - Hunts Locality - Cost of Care,LD - Huntingdonshire - Care,Short Term Other
Cambridgeshire County Council,26-Nov-20,51301469003,"-1,702.46",CONSULTUS CARE AND NURSING,CARE ESTABLISHMENT,LD - Hunts Locality - Cost of Care,LD - Huntingdonshire - Care,Short Term Other
Cambridgeshire County Council,26-Nov-20,51301469003,"-1,702.46",CONSULTUS CARE AND NURSING,CARE ESTABLISHMENT,LD - Hunts Locality - Cost of Care,LD - Huntingdonshire - Care,Short Term Other
Cambridgeshire County Council,26-Nov-20,51301469003,"-1,702.46",CONSULTUS CARE AND NURSING,CARE ESTABLISHMENT,LD - Hunts Locality - Cost of Care,LD - Huntingdonshire - Care,Short Term Other
Cambridgeshire County Council,26-Nov-20,51301469003,"-1,702.46",CONSULTUS CARE AND NURSING,CARE ESTABLISHMENT,LD - Hunts Locality - Cost of Care,LD - Huntingdonshire - Care,Short Term Other
Cambridgeshire County Council,26-Nov-20,51301469003,"-1,702.46",CONSULTUS CARE AND NURSING,CARE ESTABLISHMENT,LD - Hunts Locality - Cost of Care,LD - Huntingdonshire - Care,Short Term Other
Cambridgeshire County Council,26-Nov-20,51301469003,"-1,702.46",CONSULTUS CARE AND NURSING,CARE ESTABLISHMENT,LD - Hunts Locality - Cost of Care,LD - Huntingdonshire - Care,Short Term Other
Cambridgeshire County Council,26-Nov-20,51301469003,"-1,702.46",CONSULTUS CARE AND NURSING,CARE ESTABLISHMENT,LD - Hunts Locality - Cost of Care,LD - Huntingdonshire - Care,Short Term Other
Cambridgeshire County Council,26-Nov-20,51301469003,"-1,702.46",CONSULTUS CARE AND NURSING,CARE ESTABLISHMENT,LD - Hunts Locality - Cost of Care,LD - Huntingdonshire - Care,Short Term Other
Cambridgeshire County Council,26-Nov-20,51301469003,"-1,702.46",CONSULTUS CARE AND NURSING,CARE ESTABLISHMENT,LD - Hunts Locality - Cost of Care,LD - Huntingdonshire - Care,Short Term Other
Cambridgeshire County Council,26-Nov-20,51301469003,"-1,702.46",CONSULTUS CARE AND NURSING,CARE ESTABLISHMENT,LD - Hunts Locality - Cost of Care,LD - Huntingdonshire - Care,Short Term Other
Cambridgeshire County Council,26-Nov-20,51301469003,"-1,702.46",CONSULTUS CARE AND NURSING,CARE ESTABLISHMENT,LD - Hunts Locality - Cost of Care,LD - Huntingdonshire - Care,Short Term Other
Cambridgeshire County Council,26-Nov-20,51301469003,"-1,702.46",CONSULTUS CARE AND NURSING,CARE ESTABLISHMENT,LD - Hunts Locality - Cost of Care,LD - Huntingdonshire - Care,Short Term Other
Cambridgeshire County Council,26-Nov-20,51301469003,"-1,702.46",CONSULTUS CARE AND NURSING,CARE ESTABLISHMENT,LD - Hunts Locality - Cost of Care,LD - Huntingdonshire - Care,Short Term Other
Cambridgeshire County Council,26-Nov-20,51301469003,"-1,702.46",CONSULTUS CARE AND NURSING,CARE ESTABLISHMENT,LD - Hunts Locality - Cost of Care,LD - Huntingdonshire - Care,Short Term Other
Cambridgeshire County Council,26-Nov-20,51301469003,"-1,702.46",CONSULTUS CARE AND NURSING,CARE ESTABLISHMENT,LD - Hunts Locality - Cost of Care,LD - Huntingdonshire - Care,Short Term Other
Cambridgeshire County Council,26-Nov-20,51301469003,"-1,702.46",CONSULTUS CARE AND NURSING,CARE ESTABLISHMENT,LD - Hunts Locality - Cost of Care,LD - Huntingdonshire - Care,Short Term Other
Cambridgeshire County Council,26-Nov-20,51301469003,"-1,702.46",CONSULTUS CARE AND NURSING,CARE ESTABLISHMENT,LD - Hunts Locality - Cost of Care,LD - Huntingdonshire - Care,Short Term Other
Cambridgeshire County Council,26-Nov-20,51301469003,"-1,702.46",CONSULTUS CARE AND NURSING,CARE ESTABLISHMENT,LD - Hunts Locality - Cost of Care,LD - Huntingdonshire - Care,Short Term Other
Cambridgeshire County Council,26-Nov-20,51301469003,"-1,702.46",CONSULTUS CARE AND NURSING,CARE ESTABLISHMENT,LD - Hunts Locality - Cost of Care,LD - Huntingdonshire - Care,Short Term Other
Cambridgeshire County Council,26-Nov-20,51301469003,"-1,702.46",CONSULTUS CARE AND NURSING,CARE ESTABLISHMENT,LD - Hunts Locality - Cost of Care,LD - Huntingdonshire - Care,Short Term Other
Cambridgeshire County Council,26-Nov-20,51301469003,"-1,702.46",CONSULTUS CARE AND NURSING,CARE ESTABLISHMENT,LD - Hunts Locality - Cost of Care,LD - Huntingdonshire - Care,Short Term Other
Cambridgeshire County Council,26-Nov-20,51301469003,"-1,702.46",CONSULTUS CARE AND NURSING,CARE ESTABLISHMENT,LD - Hunts Locality - Cost of Care,LD - Huntingdonshire - Care,Short Term Other
Cambridgeshire County Council,26-Nov-20,51301469003,"-1,702.46",CONSULTUS CARE AND NURSING,CARE ESTABLISHMENT,LD - Hunts Locality - Cost of Care,LD - Huntingdonshire - Care,Short Term Other
Cambridgeshire County Council,26-Nov-20,51301469003,"-1,702.46",CONSULTUS CARE AND NURSING,CARE ESTABLISHMENT,LD - Hunts Locality - Cost of Care,LD - Huntingdonshire - Care,Short Term Other
Cambridgeshire County Council,26-Nov-20,51301469003,"-1,702.46",CONSULTUS CARE AND NURSING,CARE ESTABLISHMENT,LD - Hunts Locality - Cost of Care,LD - Huntingdonshire - Care,Short Term Other
Cambridgeshire County Council,26-Nov-20,51301469003,"-1,702.46",CONSULTUS CARE AND NURSING,CARE ESTABLISHMENT,LD - Hunts Locality - Cost of Care,LD - Huntingdonshire - Care,Short Term Other
Cambridgeshire County Council,26-Nov-20,51301469003,"-1,702.46",CONSULTUS CARE AND NURSING,CARE ESTABLISHMENT,LD - Hunts Locality - Cost of Care,LD - Huntingdonshire - Care,Short Term Other
Cambridgeshire County Council,26-Nov-20,51301469003,"-1,702.46",CONSULTUS CARE AND NURSING,CARE ESTABLISHMENT,LD - Hunts Locality - Cost of Care,LD - Huntingdonshire - Care,Short Term Other
Cambridgeshire County Council,26-Nov-20,51301469003,"-1,702.46",CONSULTUS CARE AND NURSING,CARE ESTABLISHMENT,LD - Hunts Locality - Cost of Care,LD - Huntingdonshire - Care,Short Term Other
Cambridgeshire County Council,26-Nov-20,51301469003,"-1,702.46",CONSULTUS CARE AND NURSING,CARE ESTABLISHMENT,LD - Hunts Locality - Cost of Care,LD - Huntingdonshire - Care,Short Term Other
Cambridgeshire County Council,26-Nov-20,51301469003,"-1,702.46",CONSULTUS CARE AND NURSING,CARE ESTABLISHMENT,LD - Hunts Locality - Cost of Care,LD - Huntingdonshire - Care,Short Term Other
Cambridgeshire County Council,26-Nov-20,51301469003,"-1,702.46",CONSULTUS CARE AND NURSING,CARE ESTABLISHMENT,LD - Hunts Locality - Cost of Care,LD - Huntingdonshire - Care,Short Term Other
Cambridgeshire County Council,26-Nov-20,51301469003,"-1,702.46",CONSULTUS CARE AND NURSING,CARE ESTABLISHMENT,LD - Hunts Locality - Cost of Care,LD - Huntingdonshire - Care,Short Term Other
Cambridgeshire County Council,26-Nov-20,51301469003,"-1,702.46",CONSULTUS CARE AND NURSING,CARE ESTABLISHMENT,LD - Hunts Locality - Cost of Care,LD - Huntingdonshire - Care,Short Term Other
Cambridgeshire County Council,26-Nov-20,51301469003,"-1,702.46",CONSULTUS CARE AND NURSING,CARE ESTABLISHMENT,LD - Hunts Locality - Cost of Care,LD - Huntingdonshire - Care,Short Term Other
Cambridgeshire County Council,26-Nov-20,51301469003,"-1,702.46",CONSULTUS CARE AND NURSING,CARE ESTABLISHMENT,LD - Hunts Locality - Cost of Care,LD - Huntingdonshire - Care,Short Term Other
Cambridgeshire County Council,26-Nov-20,51301469003,"-1,702.46",CONSULTUS CARE AND NURSING,CARE ESTABLISHMENT,LD - Hunts Locality - Cost of Care,LD - Huntingdonshire - Care,Short Term Other
Cambridgeshire County Council,26-Nov-20,51301469003,"-1,702.46",CONSULTUS CARE AND NURSING,CARE ESTABLISHMENT,LD - Hunts Locality - Cost of Care,LD - Huntingdonshire - Care,Short Term Other
Cambridgeshire County Council,26-Nov-20,51301469003,"-1,702.46",CONSULTUS CARE AND NURSING,CARE ESTABLISHMENT,LD - Hunts Locality - Cost of Care,LD - Huntingdonshire - Care,Short Term Other
Cambridgeshire County Council,26-Nov-20,51301469003,"-1,702.46",CONSULTUS CARE AND NURSING,CARE ESTABLISHMENT,LD - Hunts Locality - Cost of Care,LD - Huntingdonshire - Care,Short Term Other
Cambridgeshire County Council,26-Nov-20,51301469003,"-1,702.46",CONSULTUS CARE AND NURSING,CARE ESTABLISHMENT,LD - Hunts Locality - Cost of Care,LD - Huntingdonshire - Care,Short Term Other
Cambridgeshire County Council,26-Nov-20,51301469003,"-1,702.46",CONSULTUS CARE AND NURSING,CARE ESTABLISHMENT,LD - Hunts Locality - Cost of Care,LD - Huntingdonshire - Care,Short Term Other
Cambridgeshire County Council,26-Nov-20,51301469003,"-1,702.46",CONSULTUS CARE AND NURSING,CARE ESTABLISHMENT,LD - Hunts Locality - Cost of Care,LD - Huntingdonshire - Care,Short Term Other
Cambridgeshire County Council,26-Nov-20,51301469003,"-1,702.46",CONSULTUS CARE AND NURSING,CARE ESTABLISHMENT,LD - Hunts Locality - Cost of Care,LD - Huntingdonshire - Care,Short Term Other
Cambridgeshire County Council,26-Nov-20,51301469003,"-1,702.46",CONSULTUS CARE AND NURSING,CARE ESTABLISHMENT,LD - Hunts Locality - Cost of Care,LD - Huntingdonshire - Care,Short Term Other
Cambridgeshire County Council,26-Nov-20,51301469003,"-1,702.46",CONSULTUS CARE AND NURSING,CARE ESTABLISHMENT,LD - Hunts Locality - Cost of Care,LD - Huntingdonshire - Care,Short Term Other
Cambridgeshire County Council,26-Nov-20,51301469003,"-1,702.46",CONSULTUS CARE AND NURSING,CARE ESTABLISHMENT,LD - Hunts Locality - Cost of Care,LD - Huntingdonshire - Care,Short Term Other
Cambridgeshire County Council,26-Nov-20,51301469003,"-1,702.46",CONSULTUS CARE AND NURSING,CARE ESTABLISHMENT,LD - Hunts Locality - Cost of Care,LD - Huntingdonshire - Care,Short Term Other
Cambridgeshire County Council,26-Nov-20,51301469003,"-1,702.46",CONSULTUS CARE AND NURSING,CARE ESTABLISHMENT,LD - Hunts Locality - Cost of Care,LD - Huntingdonshire - Care,Short Term Other
Cambridgeshire County Council,26-Nov-20,51301469003,"-1,702.46",CONSULTUS CARE AND NURSING,CARE ESTABLISHMENT,LD - Hunts Locality - Cost of Care,LD - Huntingdonshire - Care,Short Term Other
Cambridgeshire County Council,26-Nov-20,51301469003,"-1,702.46",CONSULTUS CARE AND NURSING,CARE ESTABLISHMENT,LD - Hunts Locality - Cost of Care,LD - Huntingdonshire - Care,Short Term Other
Cambridgeshire County Council,26-Nov-20,51301469003,"-1,702.46",CONSULTUS CARE AND NURSING,CARE ESTABLISHMENT,LD - Hunts Locality - Cost of Care,LD - Huntingdonshire - Care,Short Term Other
Cambridgeshire County Council,26-Nov-20,51301469003,"-1,702.46",CONSULTUS CARE AND NURSING,CARE ESTABLISHMENT,LD - Hunts Locality - Cost of Care,LD - Huntingdonshire - Care,Short Term Other
Cambridgeshire County Council,26-Nov-20,51301469003,"-1,702.46",CONSULTUS CARE AND NURSING,CARE ESTABLISHMENT,LD - Hunts Locality - Cost of Care,LD - Huntingdonshire - Care,Short Term Other
Cambridgeshire County Council,06-Nov-20,51301465781,"-1,663.90",THE NATIONAL FOSTERING AGENCY,CARE ESTABLISHMENT,LAC Placements,Placements - independent fostering,Agency Placements - Out of  County
Cambridgeshire County Council,03-Nov-20,51301463846,"-1,491.22",J & G GROUNDWORKS & SURFACING,PARTNERSHIP,Highways - Rights of Way,Highways - Rights of Way,ROW Maintenance
Cambridgeshire County Council,26-Nov-20,51301478643,"-1,474.29",PRIMROSE HEALTHCARE,CARE ESTABLISHMENT,OP - City & South Blocks,City and South - Long term blocks,Residential Care
Cambridgeshire County Council,16-Nov-20,51301447636,"-1,404.00",ST MARTINS CENTRE,CARE ESTABLISHMENT,OP - City & South Locality - Cost of Care,Older People - City & South - Care,Day Care
Cambridgeshire County Council,26-Nov-20,51301479705,"-1,400.00",WOODLANDS CARE CENTRE,CARE ESTABLISHMENT,Strategic Management - Adults,Adults Assistant Director,Nursing Care
Cambridgeshire County Council,26-Nov-20,51301479705,"-1,400.00",WOODLANDS CARE CENTRE,CARE ESTABLISHMENT,Strategic Management - Adults,Adults Assistant Director,Nursing Care
Cambridgeshire County Council,26-Nov-20,51301479705,"-1,400.00",WOODLANDS CARE CENTRE,CARE ESTABLISHMENT,Strategic Management - Adults,Adults Assistant Director,Nursing Care
Cambridgeshire County Council,26-Nov-20,51301479705,"-1,400.00",WOODLANDS CARE CENTRE,CARE ESTABLISHMENT,Strategic Management - Adults,Adults Assistant Director,Nursing Care
Cambridgeshire County Council,26-Nov-20,51301479705,"-1,400.00",WOODLANDS CARE CENTRE,CARE ESTABLISHMENT,Strategic Management - Adults,Adults Assistant Director,Nursing Care
Cambridgeshire County Council,26-Nov-20,51301479705,"-1,400.00",WOODLANDS CARE CENTRE,CARE ESTABLISHMENT,Strategic Management - Adults,Adults Assistant Director,Nursing Care
Cambridgeshire County Council,26-Nov-20,51301479705,"-1,400.00",WOODLANDS CARE CENTRE,CARE ESTABLISHMENT,Strategic Management - Adults,Adults Assistant Director,Nursing Care
Cambridgeshire County Council,26-Nov-20,51301479705,"-1,400.00",WOODLANDS CARE CENTRE,CARE ESTABLISHMENT,Strategic Management - Adults,Adults Assistant Director,Nursing Care
Cambridgeshire County Council,26-Nov-20,51301479705,"-1,400.00",WOODLANDS CARE CENTRE,CARE ESTABLISHMENT,Strategic Management - Adults,Adults Assistant Director,Nursing Care
Cambridgeshire County Council,26-Nov-20,51301479705,"-1,400.00",WOODLANDS CARE CENTRE,CARE ESTABLISHMENT,Strategic Management - Adults,Adults Assistant Director,Nursing Care
Cambridgeshire County Council,26-Nov-20,51301479705,"-1,400.00",WOODLANDS CARE CENTRE,CARE ESTABLISHMENT,Strategic Management - Adults,Adults Assistant Director,Nursing Care
Cambridgeshire County Council,26-Nov-20,51301479705,"-1,400.00",WOODLANDS CARE CENTRE,CARE ESTABLISHMENT,Strategic Management - Adults,Adults Assistant Director,Nursing Care
Cambridgeshire County Council,26-Nov-20,51301479705,"-1,400.00",WOODLANDS CARE CENTRE,CARE ESTABLISHMENT,Strategic Management - Adults,Adults Assistant Director,Nursing Care
Cambridgeshire County Council,26-Nov-20,51301465586,"-1,400.00",OAKLANDS CARE HOME,CARE ESTABLISHMENT,Strategic Management - Adults,Adults Assistant Director,Nursing Care
Cambridgeshire County Council,26-Nov-20,51301465586,"-1,400.00",OAKLANDS CARE HOME,CARE ESTABLISHMENT,Strategic Management - Adults,Adults Assistant Director,Nursing Care
Cambridgeshire County Council,26-Nov-20,51301465586,"-1,400.00",OAKLANDS CARE HOME,CARE ESTABLISHMENT,Strategic Management - Adults,Adults Assistant Director,Nursing Care
Cambridgeshire County Council,26-Nov-20,51301465586,"-1,400.00",OAKLANDS CARE HOME,CARE ESTABLISHMENT,Strategic Management - Adults,Adults Assistant Director,Nursing Care
Cambridgeshire County Council,26-Nov-20,51301465586,"-1,400.00",OAKLANDS CARE HOME,CARE ESTABLISHMENT,Strategic Management - Adults,Adults Assistant Director,Nursing Care
Cambridgeshire County Council,26-Nov-20,51301465586,"-1,400.00",OAKLANDS CARE HOME,CARE ESTABLISHMENT,Strategic Management - Adults,Adults Assistant Director,Nursing Care
Cambridgeshire County Council,26-Nov-20,51301465586,"-1,400.00",OAKLANDS CARE HOME,CARE ESTABLISHMENT,Strategic Management - Adults,Adults Assistant Director,Nursing Care
Cambridgeshire County Council,26-Nov-20,51301465586,"-1,400.00",OAKLANDS CARE HOME,CARE ESTABLISHMENT,Strategic Management - Adults,Adults Assistant Director,Nursing Care
Cambridgeshire County Council,26-Nov-20,51301465586,"-1,400.00",OAKLANDS CARE HOME,CARE ESTABLISHMENT,Strategic Management - Adults,Adults Assistant Director,Nursing Care
Cambridgeshire County Council,06-Nov-20,51301465648,"-1,400.00",WOODLANDS CARE CENTRE,CARE ESTABLISHMENT,Strategic Management - Adults,Adults Assistant Director,Nursing Care
Cambridgeshire County Council,06-Nov-20,51301465648,"-1,400.00",WOODLANDS CARE CENTRE,CARE ESTABLISHMENT,Strategic Management - Adults,Adults Assistant Director,Nursing Care
Cambridgeshire County Council,06-Nov-20,51301465648,"-1,400.00",WOODLANDS CARE CENTRE,CARE ESTABLISHMENT,Strategic Management - Adults,Adults Assistant Director,Nursing Care
Cambridgeshire County Council,06-Nov-20,51301465648,"-1,400.00",WOODLANDS CARE CENTRE,CARE ESTABLISHMENT,Strategic Management - Adults,Adults Assistant Director,Nursing Care
Cambridgeshire County Council,06-Nov-20,51301465648,"-1,400.00",WOODLANDS CARE CENTRE,CARE ESTABLISHMENT,Strategic Management - Adults,Adults Assistant Director,Nursing Care
Cambridgeshire County Council,06-Nov-20,51301465648,"-1,400.00",WOODLANDS CARE CENTRE,CARE ESTABLISHMENT,Strategic Management - Adults,Adults Assistant Director,Nursing Care
Cambridgeshire County Council,06-Nov-20,51301465648,"-1,400.00",WOODLANDS CARE CENTRE,CARE ESTABLISHMENT,Strategic Management - Adults,Adults Assistant Director,Nursing Care
Cambridgeshire County Council,06-Nov-20,51301465648,"-1,400.00",WOODLANDS CARE CENTRE,CARE ESTABLISHMENT,Strategic Management - Adults,Adults Assistant Director,Nursing Care
Cambridgeshire County Council,06-Nov-20,51301465648,"-1,400.00",WOODLANDS CARE CENTRE,CARE ESTABLISHMENT,Strategic Management - Adults,Adults Assistant Director,Nursing Care
Cambridgeshire County Council,06-Nov-20,51301465648,"-1,400.00",WOODLANDS CARE CENTRE,CARE ESTABLISHMENT,Strategic Management - Adults,Adults Assistant Director,Nursing Care
Cambridgeshire County Council,06-Nov-20,51301465648,"-1,400.00",WOODLANDS CARE CENTRE,CARE ESTABLISHMENT,Strategic Management - Adults,Adults Assistant Director,Nursing Care
Cambridgeshire County Council,06-Nov-20,51301465648,"-1,400.00",WOODLANDS CARE CENTRE,CARE ESTABLISHMENT,Strategic Management - Adults,Adults Assistant Director,Nursing Care
Cambridgeshire County Council,06-Nov-20,51301465648,"-1,400.00",WOODLANDS CARE CENTRE,CARE ESTABLISHMENT,Strategic Management - Adults,Adults Assistant Director,Nursing Care
Cambridgeshire County Council,26-Nov-20,51301465584,"-1,400.00",OAKLANDS CARE HOME,CARE ESTABLISHMENT,Strategic Management - Adults,Adults Assistant Director,Nursing Care
Cambridgeshire County Council,26-Nov-20,51301465584,"-1,400.00",OAKLANDS CARE HOME,CARE ESTABLISHMENT,Strategic Management - Adults,Adults Assistant Director,Nursing Care
Cambridgeshire County Council,26-Nov-20,51301465584,"-1,400.00",OAKLANDS CARE HOME,CARE ESTABLISHMENT,Strategic Management - Adults,Adults Assistant Director,Nursing Care
Cambridgeshire County Council,26-Nov-20,51301465584,"-1,400.00",OAKLANDS CARE HOME,CARE ESTABLISHMENT,Strategic Management - Adults,Adults Assistant Director,Nursing Care
Cambridgeshire County Council,26-Nov-20,51301465584,"-1,400.00",OAKLANDS CARE HOME,CARE ESTABLISHMENT,Strategic Management - Adults,Adults Assistant Director,Nursing Care
Cambridgeshire County Council,26-Nov-20,51301465584,"-1,400.00",OAKLANDS CARE HOME,CARE ESTABLISHMENT,Strategic Management - Adults,Adults Assistant Director,Nursing Care
Cambridgeshire County Council,26-Nov-20,51301465584,"-1,400.00",OAKLANDS CARE HOME,CARE ESTABLISHMENT,Strategic Management - Adults,Adults Assistant Director,Nursing Care
Cambridgeshire County Council,26-Nov-20,51301465584,"-1,400.00",OAKLANDS CARE HOME,CARE ESTABLISHMENT,Strategic Management - Adults,Adults Assistant Director,Nursing Care
Cambridgeshire County Council,26-Nov-20,51301465584,"-1,400.00",OAKLANDS CARE HOME,CARE ESTABLISHMENT,Strategic Management - Adults,Adults Assistant Director,Nursing Care
Cambridgeshire County Council,26-Nov-20,51301479617,"-1,377.56",CHERRY HINTON NURSING HOME,CARE ESTABLISHMENT,Physical Disablity - Cost of Care,Countywide PD Service - Care,Residential Care
Cambridgeshire County Council,26-Nov-20,51301479617,"-1,377.56",CHERRY HINTON NURSING HOME,CARE ESTABLISHMENT,Physical Disablity - Cost of Care,Countywide PD Service - Care,Residential Care
Cambridgeshire County Council,26-Nov-20,51301479617,"-1,377.56",CHERRY HINTON NURSING HOME,CARE ESTABLISHMENT,Physical Disablity - Cost of Care,Countywide PD Service - Care,Residential Care
Cambridgeshire County Council,26-Nov-20,51301479617,"-1,377.56",CHERRY HINTON NURSING HOME,CARE ESTABLISHMENT,Physical Disablity - Cost of Care,Countywide PD Service - Care,Residential Care
Cambridgeshire County Council,26-Nov-20,51301479617,"-1,377.56",CHERRY HINTON NURSING HOME,CARE ESTABLISHMENT,Physical Disablity - Cost of Care,Countywide PD Service - Care,Residential Care
Cambridgeshire County Council,12-Nov-20,51301469002,"-1,329.73",DIMENSIONS (UK) LTD,CARE ESTABLISHMENT,LD - South Locality - Cost of Care,LD - South Cambs - Care,Supported Living
Cambridgeshire County Council,20-Nov-20,51300988345,"-1,320.00",ORDNANCE SURVEY,OTHER PUBLIC BODIES,Digital Systems,IT & Digital,Computer software - purchase
Cambridgeshire County Council,26-Nov-20,51301478685,"-1,320.00",HC-ONE,CARE ESTABLISHMENT,OP - Hunts Locality - Cost of Care,Hunts OP Team - Care,Nursing Care
Cambridgeshire County Council,26-Nov-20,51301478685,"-1,320.00",HC-ONE,CARE ESTABLISHMENT,OP - Hunts Locality - Cost of Care,Hunts OP Team - Care,Nursing Care
Cambridgeshire County Council,26-Nov-20,51301478685,"-1,320.00",HC-ONE,CARE ESTABLISHMENT,OP - Hunts Locality - Cost of Care,Hunts OP Team - Care,Nursing Care
Cambridgeshire County Council,26-Nov-20,51301478685,"-1,320.00",HC-ONE,CARE ESTABLISHMENT,OP - Hunts Locality - Cost of Care,Hunts OP Team - Care,Nursing Care
Cambridgeshire County Council,26-Nov-20,51301478685,"-1,320.00",HC-ONE,CARE ESTABLISHMENT,OP - Hunts Locality - Cost of Care,Hunts OP Team - Care,Nursing Care
Cambridgeshire County Council,26-Nov-20,51301478685,"-1,320.00",HC-ONE,CARE ESTABLISHMENT,OP - Hunts Locality - Cost of Care,Hunts OP Team - Care,Nursing Care
Cambridgeshire County Council,26-Nov-20,51301479572,"-1,275.00",WOODLANDS CARE CENTRE,CARE ESTABLISHMENT,OPMH - City & South,Older People Mental Health City & South,Nursing Care
Cambridgeshire County Council,26-Nov-20,51301479572,"-1,275.00",WOODLANDS CARE CENTRE,CARE ESTABLISHMENT,OPMH - City & South,Older People Mental Health City & South,Nursing Care
Cambridgeshire County Council,26-Nov-20,51301479572,"-1,275.00",WOODLANDS CARE CENTRE,CARE ESTABLISHMENT,OPMH - City & South,Older People Mental Health City & South,Nursing Care
Cambridgeshire County Council,26-Nov-20,51301479572,"-1,275.00",WOODLANDS CARE CENTRE,CARE ESTABLISHMENT,OPMH - City & South,Older People Mental Health City & South,Nursing Care
Cambridgeshire County Council,26-Nov-20,51301479572,"-1,275.00",WOODLANDS CARE CENTRE,CARE ESTABLISHMENT,OPMH - City & South,Older People Mental Health City & South,Nursing Care
Cambridgeshire County Council,26-Nov-20,51301479572,"-1,275.00",WOODLANDS CARE CENTRE,CARE ESTABLISHMENT,OPMH - City & South,Older People Mental Health City & South,Nursing Care
Cambridgeshire County Council,26-Nov-20,51301479572,"-1,275.00",WOODLANDS CARE CENTRE,CARE ESTABLISHMENT,OPMH - City & South,Older People Mental Health City & South,Nursing Care
Cambridgeshire County Council,26-Nov-20,51301479572,"-1,275.00",WOODLANDS CARE CENTRE,CARE ESTABLISHMENT,OPMH - City & South,Older People Mental Health City & South,Nursing Care
Cambridgeshire County Council,26-Nov-20,51301479572,"-1,275.00",WOODLANDS CARE CENTRE,CARE ESTABLISHMENT,OPMH - City & South,Older People Mental Health City & South,Nursing Care
Cambridgeshire County Council,26-Nov-20,51301479572,"-1,275.00",WOODLANDS CARE CENTRE,CARE ESTABLISHMENT,OPMH - City & South,Older People Mental Health City & South,Nursing Care
Cambridgeshire County Council,26-Nov-20,51301479572,"-1,275.00",WOODLANDS CARE CENTRE,CARE ESTABLISHMENT,OPMH - City & South,Older People Mental Health City & South,Nursing Care
Cambridgeshire County Council,26-Nov-20,51301479572,"-1,275.00",WOODLANDS CARE CENTRE,CARE ESTABLISHMENT,OPMH - City & South,Older People Mental Health City & South,Nursing Care
Cambridgeshire County Council,26-Nov-20,51301479572,"-1,275.00",WOODLANDS CARE CENTRE,CARE ESTABLISHMENT,OPMH - City & South,Older People Mental Health City & South,Nursing Care
Cambridgeshire County Council,26-Nov-20,51301479572,"-1,275.00",WOODLANDS CARE CENTRE,CARE ESTABLISHMENT,OPMH - City & South,Older People Mental Health City & South,Nursing Care
Cambridgeshire County Council,26-Nov-20,51301479572,"-1,275.00",WOODLANDS CARE CENTRE,CARE ESTABLISHMENT,OPMH - City & South,Older People Mental Health City & South,Nursing Care
Cambridgeshire County Council,26-Nov-20,51301479572,"-1,275.00",WOODLANDS CARE CENTRE,CARE ESTABLISHMENT,OPMH - City & South,Older People Mental Health City & South,Nursing Care
Cambridgeshire County Council,26-Nov-20,51301479572,"-1,275.00",WOODLANDS CARE CENTRE,CARE ESTABLISHMENT,OPMH - City & South,Older People Mental Health City & South,Nursing Care
Cambridgeshire County Council,26-Nov-20,51301479572,"-1,275.00",WOODLANDS CARE CENTRE,CARE ESTABLISHMENT,OPMH - City & South,Older People Mental Health City & South,Nursing Care
Cambridgeshire County Council,26-Nov-20,51301479572,"-1,275.00",WOODLANDS CARE CENTRE,CARE ESTABLISHMENT,OPMH - City & South,Older People Mental Health City & South,Nursing Care
Cambridgeshire County Council,26-Nov-20,51301479572,"-1,275.00",WOODLANDS CARE CENTRE,CARE ESTABLISHMENT,OPMH - City & South,Older People Mental Health City & South,Nursing Care
Cambridgeshire County Council,26-Nov-20,51301479572,"-1,275.00",WOODLANDS CARE CENTRE,CARE ESTABLISHMENT,OPMH - City & South,Older People Mental Health City & South,Nursing Care
Cambridgeshire County Council,26-Nov-20,51301479572,"-1,275.00",WOODLANDS CARE CENTRE,CARE ESTABLISHMENT,OPMH - City & South,Older People Mental Health City & South,Nursing Care
Cambridgeshire County Council,26-Nov-20,51301479572,"-1,275.00",WOODLANDS CARE CENTRE,CARE ESTABLISHMENT,OPMH - City & South,Older People Mental Health City & South,Nursing Care
Cambridgeshire County Council,26-Nov-20,51301479572,"-1,275.00",WOODLANDS CARE CENTRE,CARE ESTABLISHMENT,OPMH - City & South,Older People Mental Health City & South,Nursing Care
Cambridgeshire County Council,26-Nov-20,51301479572,"-1,275.00",WOODLANDS CARE CENTRE,CARE ESTABLISHMENT,OPMH - City & South,Older People Mental Health City & South,Nursing Care
Cambridgeshire County Council,26-Nov-20,51301479572,"-1,275.00",WOODLANDS CARE CENTRE,CARE ESTABLISHMENT,OPMH - City & South,Older People Mental Health City & South,Nursing Care
Cambridgeshire County Council,26-Nov-20,51301479572,"-1,275.00",WOODLANDS CARE CENTRE,CARE ESTABLISHMENT,OPMH - City & South,Older People Mental Health City & South,Nursing Care
Cambridgeshire County Council,26-Nov-20,51301479572,"-1,275.00",WOODLANDS CARE CENTRE,CARE ESTABLISHMENT,OPMH - City & South,Older People Mental Health City & South,Nursing Care
Cambridgeshire County Council,26-Nov-20,51301479572,"-1,275.00",WOODLANDS CARE CENTRE,CARE ESTABLISHMENT,OPMH - City & South,Older People Mental Health City & South,Nursing Care
Cambridgeshire County Council,26-Nov-20,51301479572,"-1,275.00",WOODLANDS CARE CENTRE,CARE ESTABLISHMENT,OPMH - City & South,Older People Mental Health City & South,Nursing Care
Cambridgeshire County Council,26-Nov-20,51301479572,"-1,275.00",WOODLANDS CARE CENTRE,CARE ESTABLISHMENT,OPMH - City & South,Older People Mental Health City & South,Nursing Care
Cambridgeshire County Council,26-Nov-20,51301479572,"-1,275.00",WOODLANDS CARE CENTRE,CARE ESTABLISHMENT,OPMH - City & South,Older People Mental Health City & South,Nursing Care
Cambridgeshire County Council,26-Nov-20,51301479572,"-1,275.00",WOODLANDS CARE CENTRE,CARE ESTABLISHMENT,OPMH - City & South,Older People Mental Health City & South,Nursing Care
Cambridgeshire County Council,26-Nov-20,51301479572,"-1,275.00",WOODLANDS CARE CENTRE,CARE ESTABLISHMENT,OPMH - City & South,Older People Mental Health City & South,Nursing Care
Cambridgeshire County Council,26-Nov-20,51301479572,"-1,275.00",WOODLANDS CARE CENTRE,CARE ESTABLISHMENT,OPMH - City & South,Older People Mental Health City & South,Nursing Care
Cambridgeshire County Council,26-Nov-20,51301479572,"-1,275.00",WOODLANDS CARE CENTRE,CARE ESTABLISHMENT,OPMH - City & South,Older People Mental Health City & South,Nursing Care
Cambridgeshire County Council,26-Nov-20,51301479572,"-1,275.00",WOODLANDS CARE CENTRE,CARE ESTABLISHMENT,OPMH - City & South,Older People Mental Health City & South,Nursing Care
Cambridgeshire County Council,26-Nov-20,51301479572,"-1,275.00",WOODLANDS CARE CENTRE,CARE ESTABLISHMENT,OPMH - City & South,Older People Mental Health City & South,Nursing Care
Cambridgeshire County Council,26-Nov-20,51301479572,"-1,275.00",WOODLANDS CARE CENTRE,CARE ESTABLISHMENT,OPMH - City & South,Older People Mental Health City & South,Nursing Care
Cambridgeshire County Council,26-Nov-20,51301479572,"-1,275.00",WOODLANDS CARE CENTRE,CARE ESTABLISHMENT,OPMH - City & South,Older People Mental Health City & South,Nursing Care
Cambridgeshire County Council,26-Nov-20,51301479572,"-1,275.00",WOODLANDS CARE CENTRE,CARE ESTABLISHMENT,OPMH - City & South,Older People Mental Health City & South,Nursing Care
Cambridgeshire County Council,26-Nov-20,51301479572,"-1,275.00",WOODLANDS CARE CENTRE,CARE ESTABLISHMENT,OPMH - City & South,Older People Mental Health City & South,Nursing Care
Cambridgeshire County Council,26-Nov-20,51301479572,"-1,275.00",WOODLANDS CARE CENTRE,CARE ESTABLISHMENT,OPMH - City & South,Older People Mental Health City & South,Nursing Care
Cambridgeshire County Council,26-Nov-20,51301479572,"-1,275.00",WOODLANDS CARE CENTRE,CARE ESTABLISHMENT,OPMH - City & South,Older People Mental Health City & South,Nursing Care
Cambridgeshire County Council,26-Nov-20,51301479572,"-1,275.00",WOODLANDS CARE CENTRE,CARE ESTABLISHMENT,OPMH - City & South,Older People Mental Health City & South,Nursing Care
Cambridgeshire County Council,26-Nov-20,51301479572,"-1,275.00",WOODLANDS CARE CENTRE,CARE ESTABLISHMENT,OPMH - City & South,Older People Mental Health City & South,Nursing Care
Cambridgeshire County Council,26-Nov-20,51301479572,"-1,275.00",WOODLANDS CARE CENTRE,CARE ESTABLISHMENT,OPMH - City & South,Older People Mental Health City & South,Nursing Care
Cambridgeshire County Council,26-Nov-20,51301479572,"-1,275.00",WOODLANDS CARE CENTRE,CARE ESTABLISHMENT,OPMH - City & South,Older People Mental Health City & South,Nursing Care
Cambridgeshire County Council,26-Nov-20,51301479572,"-1,275.00",WOODLANDS CARE CENTRE,CARE ESTABLISHMENT,OPMH - City & South,Older People Mental Health City & South,Nursing Care
Cambridgeshire County Council,26-Nov-20,51301479572,"-1,275.00",WOODLANDS CARE CENTRE,CARE ESTABLISHMENT,OPMH - City & South,Older People Mental Health City & South,Nursing Care
Cambridgeshire County Council,26-Nov-20,51301479572,"-1,275.00",WOODLANDS CARE CENTRE,CARE ESTABLISHMENT,OPMH - City & South,Older People Mental Health City & South,Nursing Care
Cambridgeshire County Council,26-Nov-20,51301479572,"-1,275.00",WOODLANDS CARE CENTRE,CARE ESTABLISHMENT,OPMH - City & South,Older People Mental Health City & South,Nursing Care
Cambridgeshire County Council,26-Nov-20,51301479572,"-1,275.00",WOODLANDS CARE CENTRE,CARE ESTABLISHMENT,OPMH - City & South,Older People Mental Health City & South,Nursing Care
Cambridgeshire County Council,26-Nov-20,51301479572,"-1,275.00",WOODLANDS CARE CENTRE,CARE ESTABLISHMENT,OPMH - City & South,Older People Mental Health City & South,Nursing Care
Cambridgeshire County Council,26-Nov-20,51301479572,"-1,275.00",WOODLANDS CARE CENTRE,CARE ESTABLISHMENT,OPMH - City & South,Older People Mental Health City & South,Nursing Care
Cambridgeshire County Council,26-Nov-20,51301479572,"-1,275.00",WOODLANDS CARE CENTRE,CARE ESTABLISHMENT,OPMH - City & South,Older People Mental Health City & South,Nursing Care
Cambridgeshire County Council,26-Nov-20,51301479572,"-1,275.00",WOODLANDS CARE CENTRE,CARE ESTABLISHMENT,OPMH - City & South,Older People Mental Health City & South,Nursing Care
Cambridgeshire County Council,26-Nov-20,51301479572,"-1,275.00",WOODLANDS CARE CENTRE,CARE ESTABLISHMENT,OPMH - City & South,Older People Mental Health City & South,Nursing Care
Cambridgeshire County Council,26-Nov-20,51301479572,"-1,275.00",WOODLANDS CARE CENTRE,CARE ESTABLISHMENT,OPMH - City & South,Older People Mental Health City & South,Nursing Care
Cambridgeshire County Council,26-Nov-20,51301479572,"-1,275.00",WOODLANDS CARE CENTRE,CARE ESTABLISHMENT,OPMH - City & South,Older People Mental Health City & South,Nursing Care
Cambridgeshire County Council,26-Nov-20,51301479572,"-1,275.00",WOODLANDS CARE CENTRE,CARE ESTABLISHMENT,OPMH - City & South,Older People Mental Health City & South,Nursing Care
Cambridgeshire County Council,26-Nov-20,51301479572,"-1,275.00",WOODLANDS CARE CENTRE,CARE ESTABLISHMENT,OPMH - City & South,Older People Mental Health City & South,Nursing Care
Cambridgeshire County Council,26-Nov-20,51301479572,"-1,275.00",WOODLANDS CARE CENTRE,CARE ESTABLISHMENT,OPMH - City & South,Older People Mental Health City & South,Nursing Care
Cambridgeshire County Council,26-Nov-20,51301479572,"-1,275.00",WOODLANDS CARE CENTRE,CARE ESTABLISHMENT,OPMH - City & South,Older People Mental Health City & South,Nursing Care
Cambridgeshire County Council,26-Nov-20,51301471349,"-1,255.38",Sport Works Ltd,EDUCATION,Community Support Service,Community Support Service ECF,Childcare Costs
Cambridgeshire County Council,26-Nov-20,51301479596,"-1,250.00",CHERRY HINTON NURSING HOME,CARE ESTABLISHMENT,OP - City & South Locality - Cost of Care,Older People - City & South - Care,Nursing Care
Cambridgeshire County Council,26-Nov-20,51301479596,"-1,250.00",CHERRY HINTON NURSING HOME,CARE ESTABLISHMENT,OP - City & South Locality - Cost of Care,Older People - City & South - Care,Nursing Care
Cambridgeshire County Council,26-Nov-20,51301479596,"-1,250.00",CHERRY HINTON NURSING HOME,CARE ESTABLISHMENT,OP - City & South Locality - Cost of Care,Older People - City & South - Care,Nursing Care
Cambridgeshire County Council,26-Nov-20,51301479596,"-1,250.00",CHERRY HINTON NURSING HOME,CARE ESTABLISHMENT,OP - City & South Locality - Cost of Care,Older People - City & South - Care,Nursing Care
Cambridgeshire County Council,26-Nov-20,51301479596,"-1,250.00",CHERRY HINTON NURSING HOME,CARE ESTABLISHMENT,OP - City & South Locality - Cost of Care,Older People - City & South - Care,Nursing Care
Cambridgeshire County Council,26-Nov-20,51301479686,"-1,234.44",WOODLANDS CARE CENTRE,CARE ESTABLISHMENT,OP - City & South Locality - Cost of Care,Older People - City & South - Care,Nursing Care
Cambridgeshire County Council,26-Nov-20,51301479686,"-1,234.44",WOODLANDS CARE CENTRE,CARE ESTABLISHMENT,OP - City & South Locality - Cost of Care,Older People - City & South - Care,Nursing Care
Cambridgeshire County Council,26-Nov-20,51301479686,"-1,234.44",WOODLANDS CARE CENTRE,CARE ESTABLISHMENT,OP - City & South Locality - Cost of Care,Older People - City & South - Care,Nursing Care
Cambridgeshire County Council,26-Nov-20,51301479686,"-1,234.44",WOODLANDS CARE CENTRE,CARE ESTABLISHMENT,OP - City & South Locality - Cost of Care,Older People - City & South - Care,Nursing Care
Cambridgeshire County Council,26-Nov-20,51301479686,"-1,234.44",WOODLANDS CARE CENTRE,CARE ESTABLISHMENT,OP - City & South Locality - Cost of Care,Older People - City & South - Care,Nursing Care
Cambridgeshire County Council,26-Nov-20,51301479686,"-1,234.44",WOODLANDS CARE CENTRE,CARE ESTABLISHMENT,OP - City & South Locality - Cost of Care,Older People - City & South - Care,Nursing Care
Cambridgeshire County Council,26-Nov-20,51301478685,"-1,200.00",HC-ONE,CARE ESTABLISHMENT,OP - Hunts Locality - Cost of Care,Hunts OP Team - Care,Nursing Care
Cambridgeshire County Council,26-Nov-20,51301478685,"-1,200.00",HC-ONE,CARE ESTABLISHMENT,OP - Hunts Locality - Cost of Care,Hunts OP Team - Care,Nursing Care
Cambridgeshire County Council,26-Nov-20,51301478685,"-1,200.00",HC-ONE,CARE ESTABLISHMENT,OP - Hunts Locality - Cost of Care,Hunts OP Team - Care,Nursing Care
Cambridgeshire County Council,26-Nov-20,51301478685,"-1,200.00",HC-ONE,CARE ESTABLISHMENT,OP - Hunts Locality - Cost of Care,Hunts OP Team - Care,Nursing Care
Cambridgeshire County Council,26-Nov-20,51301478685,"-1,200.00",HC-ONE,CARE ESTABLISHMENT,OP - Hunts Locality - Cost of Care,Hunts OP Team - Care,Nursing Care
Cambridgeshire County Council,26-Nov-20,51301478685,"-1,200.00",HC-ONE,CARE ESTABLISHMENT,OP - Hunts Locality - Cost of Care,Hunts OP Team - Care,Nursing Care
Cambridgeshire County Council,26-Nov-20,51301478688,"-1,200.00",THE RED HOUSE RESIDENTIAL & NURSING HOME,CARE ESTABLISHMENT,OP - Hunts Locality - Cost of Care,Hunts OP Team - Care,Residential Care
Cambridgeshire County Council,26-Nov-20,51301478688,"-1,200.00",THE RED HOUSE RESIDENTIAL & NURSING HOME,CARE ESTABLISHMENT,OP - Hunts Locality - Cost of Care,Hunts OP Team - Care,Residential Care
Cambridgeshire County Council,26-Nov-20,51301478688,"-1,200.00",THE RED HOUSE RESIDENTIAL & NURSING HOME,CARE ESTABLISHMENT,OP - Hunts Locality - Cost of Care,Hunts OP Team - Care,Residential Care
Cambridgeshire County Council,26-Nov-20,51301478688,"-1,200.00",THE RED HOUSE RESIDENTIAL & NURSING HOME,CARE ESTABLISHMENT,OP - Hunts Locality - Cost of Care,Hunts OP Team - Care,Residential Care
Cambridgeshire County Council,26-Nov-20,51301478688,"-1,200.00",THE RED HOUSE RESIDENTIAL & NURSING HOME,CARE ESTABLISHMENT,OP - Hunts Locality - Cost of Care,Hunts OP Team - Care,Residential Care
Cambridgeshire County Council,26-Nov-20,51301478688,"-1,200.00",THE RED HOUSE RESIDENTIAL & NURSING HOME,CARE ESTABLISHMENT,OP - Hunts Locality - Cost of Care,Hunts OP Team - Care,Residential Care
Cambridgeshire County Council,05-Nov-20,51301465104,"-1,197.00",BRUTON KNOWLES,TRADE SUPPLIER,GCP - Chisholm Trail cycle links,GCP - Chisholm Trail cycle links,Construction - External Professional Fees
Cambridgeshire County Council,06-Nov-20,51301465621,"-1,170.00",BETTER HEALTHCARE SERVICES LTD,CARE ESTABLISHMENT,OPMH - Hunts & Fens,Older People Mental Health Hunts,Homecare
Cambridgeshire County Council,06-Nov-20,51301465621,"-1,170.00",BETTER HEALTHCARE SERVICES LTD,CARE ESTABLISHMENT,OPMH - Hunts & Fens,Older People Mental Health Hunts,Homecare
Cambridgeshire County Council,06-Nov-20,51301465621,"-1,170.00",BETTER HEALTHCARE SERVICES LTD,CARE ESTABLISHMENT,OPMH - Hunts & Fens,Older People Mental Health Hunts,Homecare
Cambridgeshire County Council,06-Nov-20,51301465621,"-1,170.00",BETTER HEALTHCARE SERVICES LTD,CARE ESTABLISHMENT,OPMH - Hunts & Fens,Older People Mental Health Hunts,Homecare
Cambridgeshire County Council,06-Nov-20,51301465621,"-1,170.00",BETTER HEALTHCARE SERVICES LTD,CARE ESTABLISHMENT,OPMH - Hunts & Fens,Older People Mental Health Hunts,Homecare
Cambridgeshire County Council,06-Nov-20,51301465621,"-1,170.00",BETTER HEALTHCARE SERVICES LTD,CARE ESTABLISHMENT,OPMH - Hunts & Fens,Older People Mental Health Hunts,Homecare
Cambridgeshire County Council,06-Nov-20,51301465621,"-1,170.00",BETTER HEALTHCARE SERVICES LTD,CARE ESTABLISHMENT,OPMH - Hunts & Fens,Older People Mental Health Hunts,Homecare
Cambridgeshire County Council,06-Nov-20,51301465621,"-1,170.00",BETTER HEALTHCARE SERVICES LTD,CARE ESTABLISHMENT,OPMH - Hunts & Fens,Older People Mental Health Hunts,Homecare
Cambridgeshire County Council,06-Nov-20,51301465621,"-1,170.00",BETTER HEALTHCARE SERVICES LTD,CARE ESTABLISHMENT,OPMH - Hunts & Fens,Older People Mental Health Hunts,Homecare
Cambridgeshire County Council,06-Nov-20,51301465621,"-1,170.00",BETTER HEALTHCARE SERVICES LTD,CARE ESTABLISHMENT,OPMH - Hunts & Fens,Older People Mental Health Hunts,Homecare
Cambridgeshire County Council,06-Nov-20,51301465621,"-1,170.00",BETTER HEALTHCARE SERVICES LTD,CARE ESTABLISHMENT,OPMH - Hunts & Fens,Older People Mental Health Hunts,Homecare
Cambridgeshire County Council,06-Nov-20,51301465621,"-1,170.00",BETTER HEALTHCARE SERVICES LTD,CARE ESTABLISHMENT,OPMH - Hunts & Fens,Older People Mental Health Hunts,Homecare
Cambridgeshire County Council,06-Nov-20,51301465621,"-1,170.00",BETTER HEALTHCARE SERVICES LTD,CARE ESTABLISHMENT,OPMH - Hunts & Fens,Older People Mental Health Hunts,Homecare
Cambridgeshire County Council,06-Nov-20,51301465621,"-1,170.00",BETTER HEALTHCARE SERVICES LTD,CARE ESTABLISHMENT,OPMH - Hunts & Fens,Older People Mental Health Hunts,Homecare
Cambridgeshire County Council,06-Nov-20,51301465621,"-1,170.00",BETTER HEALTHCARE SERVICES LTD,CARE ESTABLISHMENT,OPMH - Hunts & Fens,Older People Mental Health Hunts,Homecare
Cambridgeshire County Council,06-Nov-20,51301465621,"-1,170.00",BETTER HEALTHCARE SERVICES LTD,CARE ESTABLISHMENT,OPMH - Hunts & Fens,Older People Mental Health Hunts,Homecare
Cambridgeshire County Council,06-Nov-20,51301465621,"-1,170.00",BETTER HEALTHCARE SERVICES LTD,CARE ESTABLISHMENT,OPMH - Hunts & Fens,Older People Mental Health Hunts,Homecare
Cambridgeshire County Council,06-Nov-20,51301465621,"-1,170.00",BETTER HEALTHCARE SERVICES LTD,CARE ESTABLISHMENT,OPMH - Hunts & Fens,Older People Mental Health Hunts,Homecare
Cambridgeshire County Council,06-Nov-20,51301465621,"-1,170.00",BETTER HEALTHCARE SERVICES LTD,CARE ESTABLISHMENT,OPMH - Hunts & Fens,Older People Mental Health Hunts,Homecare
Cambridgeshire County Council,06-Nov-20,51301465621,"-1,170.00",BETTER HEALTHCARE SERVICES LTD,CARE ESTABLISHMENT,OPMH - Hunts & Fens,Older People Mental Health Hunts,Homecare
Cambridgeshire County Council,06-Nov-20,51301465621,"-1,170.00",BETTER HEALTHCARE SERVICES LTD,CARE ESTABLISHMENT,OPMH - Hunts & Fens,Older People Mental Health Hunts,Homecare
Cambridgeshire County Council,06-Nov-20,51301465621,"-1,170.00",BETTER HEALTHCARE SERVICES LTD,CARE ESTABLISHMENT,OPMH - Hunts & Fens,Older People Mental Health Hunts,Homecare
Cambridgeshire County Council,06-Nov-20,51301465621,"-1,170.00",BETTER HEALTHCARE SERVICES LTD,CARE ESTABLISHMENT,OPMH - Hunts & Fens,Older People Mental Health Hunts,Homecare
Cambridgeshire County Council,06-Nov-20,51301465621,"-1,170.00",BETTER HEALTHCARE SERVICES LTD,CARE ESTABLISHMENT,OPMH - Hunts & Fens,Older People Mental Health Hunts,Homecare
Cambridgeshire County Council,06-Nov-20,51301465621,"-1,170.00",BETTER HEALTHCARE SERVICES LTD,CARE ESTABLISHMENT,OPMH - Hunts & Fens,Older People Mental Health Hunts,Homecare
Cambridgeshire County Council,06-Nov-20,51301465621,"-1,170.00",BETTER HEALTHCARE SERVICES LTD,CARE ESTABLISHMENT,OPMH - Hunts & Fens,Older People Mental Health Hunts,Homecare
Cambridgeshire County Council,06-Nov-20,51301465621,"-1,170.00",BETTER HEALTHCARE SERVICES LTD,CARE ESTABLISHMENT,OPMH - Hunts & Fens,Older People Mental Health Hunts,Homecare
Cambridgeshire County Council,06-Nov-20,51301465621,"-1,170.00",BETTER HEALTHCARE SERVICES LTD,CARE ESTABLISHMENT,OPMH - Hunts & Fens,Older People Mental Health Hunts,Homecare
Cambridgeshire County Council,06-Nov-20,51301465621,"-1,170.00",BETTER HEALTHCARE SERVICES LTD,CARE ESTABLISHMENT,OPMH - Hunts & Fens,Older People Mental Health Hunts,Homecare
Cambridgeshire County Council,06-Nov-20,51301465621,"-1,170.00",BETTER HEALTHCARE SERVICES LTD,CARE ESTABLISHMENT,OPMH - Hunts & Fens,Older People Mental Health Hunts,Homecare
Cambridgeshire County Council,06-Nov-20,51301465621,"-1,170.00",BETTER HEALTHCARE SERVICES LTD,CARE ESTABLISHMENT,OPMH - Hunts & Fens,Older People Mental Health Hunts,Homecare
Cambridgeshire County Council,06-Nov-20,51301465621,"-1,170.00",BETTER HEALTHCARE SERVICES LTD,CARE ESTABLISHMENT,OPMH - Hunts & Fens,Older People Mental Health Hunts,Homecare
Cambridgeshire County Council,06-Nov-20,51301465621,"-1,170.00",BETTER HEALTHCARE SERVICES LTD,CARE ESTABLISHMENT,OPMH - Hunts & Fens,Older People Mental Health Hunts,Homecare
Cambridgeshire County Council,06-Nov-20,51301465621,"-1,170.00",BETTER HEALTHCARE SERVICES LTD,CARE ESTABLISHMENT,OPMH - Hunts & Fens,Older People Mental Health Hunts,Homecare
Cambridgeshire County Council,06-Nov-20,51301465621,"-1,170.00",BETTER HEALTHCARE SERVICES LTD,CARE ESTABLISHMENT,OPMH - Hunts & Fens,Older People Mental Health Hunts,Homecare
Cambridgeshire County Council,26-Nov-20,51301477049,"-1,169.55",GUYATT HOUSE CARE LTD,CARE ESTABLISHMENT,LD - Young Adults Team,LD - Young Adults - Care,Supported Living
Cambridgeshire County Council,26-Nov-20,51301477049,"-1,169.55",GUYATT HOUSE CARE LTD,CARE ESTABLISHMENT,LD - Young Adults Team,LD - Young Adults - Care,Supported Living
Cambridgeshire County Council,16-Nov-20,51301469864,"-1,162.09",KISIMUL SCHOOL,CARE ESTABLISHMENT,LD - Hunts Locality - Cost of Care,LD - Huntingdonshire - Care,Residential Care
Cambridgeshire County Council,16-Nov-20,51301469864,"-1,162.09",KISIMUL SCHOOL,CARE ESTABLISHMENT,LD - Hunts Locality - Cost of Care,LD - Huntingdonshire - Care,Residential Care
Cambridgeshire County Council,16-Nov-20,51301469864,"-1,162.09",KISIMUL SCHOOL,CARE ESTABLISHMENT,LD - Hunts Locality - Cost of Care,LD - Huntingdonshire - Care,Residential Care
Cambridgeshire County Council,16-Nov-20,51301469864,"-1,162.09",KISIMUL SCHOOL,CARE ESTABLISHMENT,LD - Hunts Locality - Cost of Care,LD - Huntingdonshire - Care,Residential Care
Cambridgeshire County Council,16-Nov-20,51301469864,"-1,162.09",KISIMUL SCHOOL,CARE ESTABLISHMENT,LD - Hunts Locality - Cost of Care,LD - Huntingdonshire - Care,Residential Care
Cambridgeshire County Council,16-Nov-20,51301469864,"-1,162.09",KISIMUL SCHOOL,CARE ESTABLISHMENT,LD - Hunts Locality - Cost of Care,LD - Huntingdonshire - Care,Residential Care
Cambridgeshire County Council,16-Nov-20,51301469864,"-1,162.09",KISIMUL SCHOOL,CARE ESTABLISHMENT,LD - Hunts Locality - Cost of Care,LD - Huntingdonshire - Care,Residential Care
Cambridgeshire County Council,16-Nov-20,51301469864,"-1,162.09",KISIMUL SCHOOL,CARE ESTABLISHMENT,LD - Hunts Locality - Cost of Care,LD - Huntingdonshire - Care,Residential Care
Cambridgeshire County Council,16-Nov-20,51301469864,"-1,162.09",KISIMUL SCHOOL,CARE ESTABLISHMENT,LD - Hunts Locality - Cost of Care,LD - Huntingdonshire - Care,Residential Care
Cambridgeshire County Council,16-Nov-20,51301469864,"-1,162.09",KISIMUL SCHOOL,CARE ESTABLISHMENT,LD - Hunts Locality - Cost of Care,LD - Huntingdonshire - Care,Residential Care
Cambridgeshire County Council,16-Nov-20,51301469864,"-1,162.09",KISIMUL SCHOOL,CARE ESTABLISHMENT,LD - Hunts Locality - Cost of Care,LD - Huntingdonshire - Care,Residential Care
Cambridgeshire County Council,16-Nov-20,51301469864,"-1,162.09",KISIMUL SCHOOL,CARE ESTABLISHMENT,LD - Hunts Locality - Cost of Care,LD - Huntingdonshire - Care,Residential Care
Cambridgeshire County Council,16-Nov-20,51301469864,"-1,162.09",KISIMUL SCHOOL,CARE ESTABLISHMENT,LD - Hunts Locality - Cost of Care,LD - Huntingdonshire - Care,Residential Care
Cambridgeshire County Council,16-Nov-20,51301469864,"-1,162.09",KISIMUL SCHOOL,CARE ESTABLISHMENT,LD - Hunts Locality - Cost of Care,LD - Huntingdonshire - Care,Residential Care
Cambridgeshire County Council,16-Nov-20,51301469864,"-1,162.09",KISIMUL SCHOOL,CARE ESTABLISHMENT,LD - Hunts Locality - Cost of Care,LD - Huntingdonshire - Care,Residential Care
Cambridgeshire County Council,16-Nov-20,51301469864,"-1,162.09",KISIMUL SCHOOL,CARE ESTABLISHMENT,LD - Hunts Locality - Cost of Care,LD - Huntingdonshire - Care,Residential Care
Cambridgeshire County Council,16-Nov-20,51301469864,"-1,162.09",KISIMUL SCHOOL,CARE ESTABLISHMENT,LD - Hunts Locality - Cost of Care,LD - Huntingdonshire - Care,Residential Care
Cambridgeshire County Council,16-Nov-20,51301469864,"-1,162.09",KISIMUL SCHOOL,CARE ESTABLISHMENT,LD - Hunts Locality - Cost of Care,LD - Huntingdonshire - Care,Residential Care
Cambridgeshire County Council,16-Nov-20,51301469864,"-1,162.09",KISIMUL SCHOOL,CARE ESTABLISHMENT,LD - Hunts Locality - Cost of Care,LD - Huntingdonshire - Care,Residential Care
Cambridgeshire County Council,26-Nov-20,51301465645,"-1,158.08",BARCHESTER HEALTHCARE HOMES LTD,CARE ESTABLISHMENT,OPMH - City & South,Older People Mental Health City & South,Nursing Care
Cambridgeshire County Council,26-Nov-20,51301465645,"-1,158.08",BARCHESTER HEALTHCARE HOMES LTD,CARE ESTABLISHMENT,OPMH - City & South,Older People Mental Health City & South,Nursing Care
Cambridgeshire County Council,26-Nov-20,51301465645,"-1,158.08",BARCHESTER HEALTHCARE HOMES LTD,CARE ESTABLISHMENT,OPMH - City & South,Older People Mental Health City & South,Nursing Care
Cambridgeshire County Council,26-Nov-20,51301465645,"-1,158.08",BARCHESTER HEALTHCARE HOMES LTD,CARE ESTABLISHMENT,OPMH - City & South,Older People Mental Health City & South,Nursing Care
Cambridgeshire County Council,26-Nov-20,51301465645,"-1,158.08",BARCHESTER HEALTHCARE HOMES LTD,CARE ESTABLISHMENT,OPMH - City & South,Older People Mental Health City & South,Nursing Care
Cambridgeshire County Council,26-Nov-20,51301465645,"-1,158.08",BARCHESTER HEALTHCARE HOMES LTD,CARE ESTABLISHMENT,OPMH - City & South,Older People Mental Health City & South,Nursing Care
Cambridgeshire County Council,26-Nov-20,51301465645,"-1,158.08",BARCHESTER HEALTHCARE HOMES LTD,CARE ESTABLISHMENT,OPMH - City & South,Older People Mental Health City & South,Nursing Care
Cambridgeshire County Council,26-Nov-20,51301465645,"-1,158.08",BARCHESTER HEALTHCARE HOMES LTD,CARE ESTABLISHMENT,OPMH - City & South,Older People Mental Health City & South,Nursing Care
Cambridgeshire County Council,26-Nov-20,51301465645,"-1,158.08",BARCHESTER HEALTHCARE HOMES LTD,CARE ESTABLISHMENT,OPMH - City & South,Older People Mental Health City & South,Nursing Care
Cambridgeshire County Council,26-Nov-20,51301465645,"-1,158.08",BARCHESTER HEALTHCARE HOMES LTD,CARE ESTABLISHMENT,OPMH - City & South,Older People Mental Health City & South,Nursing Care
Cambridgeshire County Council,26-Nov-20,51301465645,"-1,158.08",BARCHESTER HEALTHCARE HOMES LTD,CARE ESTABLISHMENT,OPMH - City & South,Older People Mental Health City & South,Nursing Care
Cambridgeshire County Council,26-Nov-20,51301465645,"-1,158.08",BARCHESTER HEALTHCARE HOMES LTD,CARE ESTABLISHMENT,OPMH - City & South,Older People Mental Health City & South,Nursing Care
Cambridgeshire County Council,26-Nov-20,51301465645,"-1,158.08",BARCHESTER HEALTHCARE HOMES LTD,CARE ESTABLISHMENT,OPMH - City & South,Older People Mental Health City & South,Nursing Care
Cambridgeshire County Council,26-Nov-20,51301465645,"-1,158.08",BARCHESTER HEALTHCARE HOMES LTD,CARE ESTABLISHMENT,OPMH - City & South,Older People Mental Health City & South,Nursing Care
Cambridgeshire County Council,26-Nov-20,51301465645,"-1,158.08",BARCHESTER HEALTHCARE HOMES LTD,CARE ESTABLISHMENT,OPMH - City & South,Older People Mental Health City & South,Nursing Care
Cambridgeshire County Council,26-Nov-20,51301465645,"-1,158.08",BARCHESTER HEALTHCARE HOMES LTD,CARE ESTABLISHMENT,OPMH - City & South,Older People Mental Health City & South,Nursing Care
Cambridgeshire County Council,26-Nov-20,51301465645,"-1,158.08",BARCHESTER HEALTHCARE HOMES LTD,CARE ESTABLISHMENT,OPMH - City & South,Older People Mental Health City & South,Nursing Care
Cambridgeshire County Council,26-Nov-20,51301465645,"-1,158.08",BARCHESTER HEALTHCARE HOMES LTD,CARE ESTABLISHMENT,OPMH - City & South,Older People Mental Health City & South,Nursing Care
Cambridgeshire County Council,26-Nov-20,51301465645,"-1,158.08",BARCHESTER HEALTHCARE HOMES LTD,CARE ESTABLISHMENT,OPMH - City & South,Older People Mental Health City & South,Nursing Care
Cambridgeshire County Council,26-Nov-20,51301465645,"-1,158.08",BARCHESTER HEALTHCARE HOMES LTD,CARE ESTABLISHMENT,OPMH - City & South,Older People Mental Health City & South,Nursing Care
Cambridgeshire County Council,26-Nov-20,51301465645,"-1,158.08",BARCHESTER HEALTHCARE HOMES LTD,CARE ESTABLISHMENT,OPMH - City & South,Older People Mental Health City & South,Nursing Care
Cambridgeshire County Council,26-Nov-20,51301465645,"-1,158.08",BARCHESTER HEALTHCARE HOMES LTD,CARE ESTABLISHMENT,OPMH - City & South,Older People Mental Health City & South,Nursing Care
Cambridgeshire County Council,26-Nov-20,51301465645,"-1,158.08",BARCHESTER HEALTHCARE HOMES LTD,CARE ESTABLISHMENT,OPMH - City & South,Older People Mental Health City & South,Nursing Care
Cambridgeshire County Council,26-Nov-20,51301465645,"-1,158.08",BARCHESTER HEALTHCARE HOMES LTD,CARE ESTABLISHMENT,OPMH - City & South,Older People Mental Health City & South,Nursing Care
Cambridgeshire County Council,26-Nov-20,51301465645,"-1,158.08",BARCHESTER HEALTHCARE HOMES LTD,CARE ESTABLISHMENT,OPMH - City & South,Older People Mental Health City & South,Nursing Care
Cambridgeshire County Council,12-Nov-20,51301469078,"-1,145.94",CARE MANAGEMENT GROUP (64-66 CARLTON),CARE ESTABLISHMENT,LD - East Locality - Cost of Care,LD - East Cambs - Care,Residential Care
Cambridgeshire County Council,12-Nov-20,51301469078,"-1,145.94",CARE MANAGEMENT GROUP (64-66 CARLTON),CARE ESTABLISHMENT,LD - East Locality - Cost of Care,LD - East Cambs - Care,Residential Care
Cambridgeshire County Council,12-Nov-20,51301469078,"-1,145.94",CARE MANAGEMENT GROUP (64-66 CARLTON),CARE ESTABLISHMENT,LD - East Locality - Cost of Care,LD - East Cambs - Care,Residential Care
Cambridgeshire County Council,12-Nov-20,51301469078,"-1,145.94",CARE MANAGEMENT GROUP (64-66 CARLTON),CARE ESTABLISHMENT,LD - East Locality - Cost of Care,LD - East Cambs - Care,Residential Care
Cambridgeshire County Council,12-Nov-20,51301469078,"-1,145.94",CARE MANAGEMENT GROUP (64-66 CARLTON),CARE ESTABLISHMENT,LD - East Locality - Cost of Care,LD - East Cambs - Care,Residential Care
Cambridgeshire County Council,12-Nov-20,51301469078,"-1,145.94",CARE MANAGEMENT GROUP (64-66 CARLTON),CARE ESTABLISHMENT,LD - East Locality - Cost of Care,LD - East Cambs - Care,Residential Care
Cambridgeshire County Council,12-Nov-20,51301469078,"-1,145.94",CARE MANAGEMENT GROUP (64-66 CARLTON),CARE ESTABLISHMENT,LD - East Locality - Cost of Care,LD - East Cambs - Care,Residential Care
Cambridgeshire County Council,12-Nov-20,51301469078,"-1,145.94",CARE MANAGEMENT GROUP (64-66 CARLTON),CARE ESTABLISHMENT,LD - East Locality - Cost of Care,LD - East Cambs - Care,Residential Care
Cambridgeshire County Council,12-Nov-20,51301469078,"-1,145.94",CARE MANAGEMENT GROUP (64-66 CARLTON),CARE ESTABLISHMENT,LD - East Locality - Cost of Care,LD - East Cambs - Care,Residential Care
Cambridgeshire County Council,12-Nov-20,51301469078,"-1,145.94",CARE MANAGEMENT GROUP (64-66 CARLTON),CARE ESTABLISHMENT,LD - East Locality - Cost of Care,LD - East Cambs - Care,Residential Care
Cambridgeshire County Council,12-Nov-20,51301469078,"-1,145.94",CARE MANAGEMENT GROUP (64-66 CARLTON),CARE ESTABLISHMENT,LD - East Locality - Cost of Care,LD - East Cambs - Care,Residential Care
Cambridgeshire County Council,12-Nov-20,51301469078,"-1,145.94",CARE MANAGEMENT GROUP (64-66 CARLTON),CARE ESTABLISHMENT,LD - East Locality - Cost of Care,LD - East Cambs - Care,Residential Care
Cambridgeshire County Council,12-Nov-20,51301469078,"-1,145.94",CARE MANAGEMENT GROUP (64-66 CARLTON),CARE ESTABLISHMENT,LD - East Locality - Cost of Care,LD - East Cambs - Care,Residential Care
Cambridgeshire County Council,12-Nov-20,51301469078,"-1,145.94",CARE MANAGEMENT GROUP (64-66 CARLTON),CARE ESTABLISHMENT,LD - East Locality - Cost of Care,LD - East Cambs - Care,Residential Care
Cambridgeshire County Council,12-Nov-20,51301469078,"-1,145.94",CARE MANAGEMENT GROUP (64-66 CARLTON),CARE ESTABLISHMENT,LD - East Locality - Cost of Care,LD - East Cambs - Care,Residential Care
Cambridgeshire County Council,12-Nov-20,51301469078,"-1,145.94",CARE MANAGEMENT GROUP (64-66 CARLTON),CARE ESTABLISHMENT,LD - East Locality - Cost of Care,LD - East Cambs - Care,Residential Care
Cambridgeshire County Council,12-Nov-20,51301469078,"-1,145.94",CARE MANAGEMENT GROUP (64-66 CARLTON),CARE ESTABLISHMENT,LD - East Locality - Cost of Care,LD - East Cambs - Care,Residential Care
Cambridgeshire County Council,12-Nov-20,51301469078,"-1,145.94",CARE MANAGEMENT GROUP (64-66 CARLTON),CARE ESTABLISHMENT,LD - East Locality - Cost of Care,LD - East Cambs - Care,Residential Care
Cambridgeshire County Council,12-Nov-20,51301469078,"-1,145.94",CARE MANAGEMENT GROUP (64-66 CARLTON),CARE ESTABLISHMENT,LD - East Locality - Cost of Care,LD - East Cambs - Care,Residential Care
Cambridgeshire County Council,12-Nov-20,51301469078,"-1,145.94",CARE MANAGEMENT GROUP (64-66 CARLTON),CARE ESTABLISHMENT,LD - East Locality - Cost of Care,LD - East Cambs - Care,Residential Care
Cambridgeshire County Council,12-Nov-20,51301469078,"-1,145.94",CARE MANAGEMENT GROUP (64-66 CARLTON),CARE ESTABLISHMENT,LD - East Locality - Cost of Care,LD - East Cambs - Care,Residential Care
Cambridgeshire County Council,12-Nov-20,51301469078,"-1,145.94",CARE MANAGEMENT GROUP (64-66 CARLTON),CARE ESTABLISHMENT,LD - East Locality - Cost of Care,LD - East Cambs - Care,Residential Care
Cambridgeshire County Council,12-Nov-20,51301469078,"-1,145.94",CARE MANAGEMENT GROUP (64-66 CARLTON),CARE ESTABLISHMENT,LD - East Locality - Cost of Care,LD - East Cambs - Care,Residential Care
Cambridgeshire County Council,12-Nov-20,51301469078,"-1,145.94",CARE MANAGEMENT GROUP (64-66 CARLTON),CARE ESTABLISHMENT,LD - East Locality - Cost of Care,LD - East Cambs - Care,Residential Care
Cambridgeshire County Council,12-Nov-20,51301469078,"-1,145.94",CARE MANAGEMENT GROUP (64-66 CARLTON),CARE ESTABLISHMENT,LD - East Locality - Cost of Care,LD - East Cambs - Care,Residential Care
Cambridgeshire County Council,12-Nov-20,51301469078,"-1,145.94",CARE MANAGEMENT GROUP (64-66 CARLTON),CARE ESTABLISHMENT,LD - East Locality - Cost of Care,LD - East Cambs - Care,Residential Care
Cambridgeshire County Council,12-Nov-20,51301469078,"-1,145.94",CARE MANAGEMENT GROUP (64-66 CARLTON),CARE ESTABLISHMENT,LD - East Locality - Cost of Care,LD - East Cambs - Care,Residential Care
Cambridgeshire County Council,12-Nov-20,51301469078,"-1,145.94",CARE MANAGEMENT GROUP (64-66 CARLTON),CARE ESTABLISHMENT,LD - East Locality - Cost of Care,LD - East Cambs - Care,Residential Care
Cambridgeshire County Council,12-Nov-20,51301469078,"-1,145.94",CARE MANAGEMENT GROUP (64-66 CARLTON),CARE ESTABLISHMENT,LD - East Locality - Cost of Care,LD - East Cambs - Care,Residential Care
Cambridgeshire County Council,12-Nov-20,51301469078,"-1,145.94",CARE MANAGEMENT GROUP (64-66 CARLTON),CARE ESTABLISHMENT,LD - East Locality - Cost of Care,LD - East Cambs - Care,Residential Care
Cambridgeshire County Council,12-Nov-20,51301469078,"-1,145.94",CARE MANAGEMENT GROUP (64-66 CARLTON),CARE ESTABLISHMENT,LD - East Locality - Cost of Care,LD - East Cambs - Care,Residential Care
Cambridgeshire County Council,12-Nov-20,51301469078,"-1,145.94",CARE MANAGEMENT GROUP (64-66 CARLTON),CARE ESTABLISHMENT,LD - East Locality - Cost of Care,LD - East Cambs - Care,Residential Care
Cambridgeshire County Council,12-Nov-20,51301469078,"-1,145.94",CARE MANAGEMENT GROUP (64-66 CARLTON),CARE ESTABLISHMENT,LD - East Locality - Cost of Care,LD - East Cambs - Care,Residential Care
Cambridgeshire County Council,12-Nov-20,51301469078,"-1,145.94",CARE MANAGEMENT GROUP (64-66 CARLTON),CARE ESTABLISHMENT,LD - East Locality - Cost of Care,LD - East Cambs - Care,Residential Care
Cambridgeshire County Council,12-Nov-20,51301469078,"-1,145.94",CARE MANAGEMENT GROUP (64-66 CARLTON),CARE ESTABLISHMENT,LD - East Locality - Cost of Care,LD - East Cambs - Care,Residential Care
Cambridgeshire County Council,12-Nov-20,51301469078,"-1,145.94",CARE MANAGEMENT GROUP (64-66 CARLTON),CARE ESTABLISHMENT,LD - East Locality - Cost of Care,LD - East Cambs - Care,Residential Care
Cambridgeshire County Council,12-Nov-20,51301469078,"-1,145.94",CARE MANAGEMENT GROUP (64-66 CARLTON),CARE ESTABLISHMENT,LD - East Locality - Cost of Care,LD - East Cambs - Care,Residential Care
Cambridgeshire County Council,12-Nov-20,51301469078,"-1,145.94",CARE MANAGEMENT GROUP (64-66 CARLTON),CARE ESTABLISHMENT,LD - East Locality - Cost of Care,LD - East Cambs - Care,Residential Care
Cambridgeshire County Council,12-Nov-20,51301469078,"-1,145.94",CARE MANAGEMENT GROUP (64-66 CARLTON),CARE ESTABLISHMENT,LD - East Locality - Cost of Care,LD - East Cambs - Care,Residential Care
Cambridgeshire County Council,12-Nov-20,51301469078,"-1,145.94",CARE MANAGEMENT GROUP (64-66 CARLTON),CARE ESTABLISHMENT,LD - East Locality - Cost of Care,LD - East Cambs - Care,Residential Care
Cambridgeshire County Council,12-Nov-20,51301469078,"-1,145.94",CARE MANAGEMENT GROUP (64-66 CARLTON),CARE ESTABLISHMENT,LD - East Locality - Cost of Care,LD - East Cambs - Care,Residential Care
Cambridgeshire County Council,12-Nov-20,51301469078,"-1,145.94",CARE MANAGEMENT GROUP (64-66 CARLTON),CARE ESTABLISHMENT,LD - East Locality - Cost of Care,LD - East Cambs - Care,Residential Care
Cambridgeshire County Council,12-Nov-20,51301469078,"-1,145.94",CARE MANAGEMENT GROUP (64-66 CARLTON),CARE ESTABLISHMENT,LD - East Locality - Cost of Care,LD - East Cambs - Care,Residential Care
Cambridgeshire County Council,12-Nov-20,51301469078,"-1,145.94",CARE MANAGEMENT GROUP (64-66 CARLTON),CARE ESTABLISHMENT,LD - East Locality - Cost of Care,LD - East Cambs - Care,Residential Care
Cambridgeshire County Council,12-Nov-20,51301469078,"-1,145.94",CARE MANAGEMENT GROUP (64-66 CARLTON),CARE ESTABLISHMENT,LD - East Locality - Cost of Care,LD - East Cambs - Care,Residential Care
Cambridgeshire County Council,12-Nov-20,51301469078,"-1,145.94",CARE MANAGEMENT GROUP (64-66 CARLTON),CARE ESTABLISHMENT,LD - East Locality - Cost of Care,LD - East Cambs - Care,Residential Care
Cambridgeshire County Council,12-Nov-20,51301469078,"-1,145.94",CARE MANAGEMENT GROUP (64-66 CARLTON),CARE ESTABLISHMENT,LD - East Locality - Cost of Care,LD - East Cambs - Care,Residential Care
Cambridgeshire County Council,12-Nov-20,51301469078,"-1,145.94",CARE MANAGEMENT GROUP (64-66 CARLTON),CARE ESTABLISHMENT,LD - East Locality - Cost of Care,LD - East Cambs - Care,Residential Care
Cambridgeshire County Council,12-Nov-20,51301469078,"-1,145.94",CARE MANAGEMENT GROUP (64-66 CARLTON),CARE ESTABLISHMENT,LD - East Locality - Cost of Care,LD - East Cambs - Care,Residential Care
Cambridgeshire County Council,12-Nov-20,51301469078,"-1,145.94",CARE MANAGEMENT GROUP (64-66 CARLTON),CARE ESTABLISHMENT,LD - East Locality - Cost of Care,LD - East Cambs - Care,Residential Care
Cambridgeshire County Council,12-Nov-20,51301469078,"-1,145.94",CARE MANAGEMENT GROUP (64-66 CARLTON),CARE ESTABLISHMENT,LD - East Locality - Cost of Care,LD - East Cambs - Care,Residential Care
Cambridgeshire County Council,12-Nov-20,51301469078,"-1,145.94",CARE MANAGEMENT GROUP (64-66 CARLTON),CARE ESTABLISHMENT,LD - East Locality - Cost of Care,LD - East Cambs - Care,Residential Care
Cambridgeshire County Council,12-Nov-20,51301469078,"-1,145.94",CARE MANAGEMENT GROUP (64-66 CARLTON),CARE ESTABLISHMENT,LD - East Locality - Cost of Care,LD - East Cambs - Care,Residential Care
Cambridgeshire County Council,12-Nov-20,51301469078,"-1,145.94",CARE MANAGEMENT GROUP (64-66 CARLTON),CARE ESTABLISHMENT,LD - East Locality - Cost of Care,LD - East Cambs - Care,Residential Care
Cambridgeshire County Council,12-Nov-20,51301469078,"-1,145.94",CARE MANAGEMENT GROUP (64-66 CARLTON),CARE ESTABLISHMENT,LD - East Locality - Cost of Care,LD - East Cambs - Care,Residential Care
Cambridgeshire County Council,12-Nov-20,51301469078,"-1,145.94",CARE MANAGEMENT GROUP (64-66 CARLTON),CARE ESTABLISHMENT,LD - East Locality - Cost of Care,LD - East Cambs - Care,Residential Care
Cambridgeshire County Council,12-Nov-20,51301469078,"-1,145.94",CARE MANAGEMENT GROUP (64-66 CARLTON),CARE ESTABLISHMENT,LD - East Locality - Cost of Care,LD - East Cambs - Care,Residential Care
Cambridgeshire County Council,12-Nov-20,51301469078,"-1,145.94",CARE MANAGEMENT GROUP (64-66 CARLTON),CARE ESTABLISHMENT,LD - East Locality - Cost of Care,LD - East Cambs - Care,Residential Care
Cambridgeshire County Council,12-Nov-20,51301469078,"-1,145.94",CARE MANAGEMENT GROUP (64-66 CARLTON),CARE ESTABLISHMENT,LD - East Locality - Cost of Care,LD - East Cambs - Care,Residential Care
Cambridgeshire County Council,12-Nov-20,51301469078,"-1,145.94",CARE MANAGEMENT GROUP (64-66 CARLTON),CARE ESTABLISHMENT,LD - East Locality - Cost of Care,LD - East Cambs - Care,Residential Care
Cambridgeshire County Council,12-Nov-20,51301469078,"-1,145.94",CARE MANAGEMENT GROUP (64-66 CARLTON),CARE ESTABLISHMENT,LD - East Locality - Cost of Care,LD - East Cambs - Care,Residential Care
Cambridgeshire County Council,12-Nov-20,51301469078,"-1,145.94",CARE MANAGEMENT GROUP (64-66 CARLTON),CARE ESTABLISHMENT,LD - East Locality - Cost of Care,LD - East Cambs - Care,Residential Care
Cambridgeshire County Council,12-Nov-20,51301469078,"-1,145.94",CARE MANAGEMENT GROUP (64-66 CARLTON),CARE ESTABLISHMENT,LD - East Locality - Cost of Care,LD - East Cambs - Care,Residential Care
Cambridgeshire County Council,12-Nov-20,51301469078,"-1,145.94",CARE MANAGEMENT GROUP (64-66 CARLTON),CARE ESTABLISHMENT,LD - East Locality - Cost of Care,LD - East Cambs - Care,Residential Care
Cambridgeshire County Council,12-Nov-20,51301469078,"-1,145.94",CARE MANAGEMENT GROUP (64-66 CARLTON),CARE ESTABLISHMENT,LD - East Locality - Cost of Care,LD - East Cambs - Care,Residential Care
Cambridgeshire County Council,12-Nov-20,51301469078,"-1,145.94",CARE MANAGEMENT GROUP (64-66 CARLTON),CARE ESTABLISHMENT,LD - East Locality - Cost of Care,LD - East Cambs - Care,Residential Care
Cambridgeshire County Council,12-Nov-20,51301469078,"-1,145.94",CARE MANAGEMENT GROUP (64-66 CARLTON),CARE ESTABLISHMENT,LD - East Locality - Cost of Care,LD - East Cambs - Care,Residential Care
Cambridgeshire County Council,12-Nov-20,51301469078,"-1,145.94",CARE MANAGEMENT GROUP (64-66 CARLTON),CARE ESTABLISHMENT,LD - East Locality - Cost of Care,LD - East Cambs - Care,Residential Care
Cambridgeshire County Council,12-Nov-20,51301469078,"-1,145.94",CARE MANAGEMENT GROUP (64-66 CARLTON),CARE ESTABLISHMENT,LD - East Locality - Cost of Care,LD - East Cambs - Care,Residential Care
Cambridgeshire County Council,12-Nov-20,51301469078,"-1,145.94",CARE MANAGEMENT GROUP (64-66 CARLTON),CARE ESTABLISHMENT,LD - East Locality - Cost of Care,LD - East Cambs - Care,Residential Care
Cambridgeshire County Council,12-Nov-20,51301469078,"-1,145.94",CARE MANAGEMENT GROUP (64-66 CARLTON),CARE ESTABLISHMENT,LD - East Locality - Cost of Care,LD - East Cambs - Care,Residential Care
Cambridgeshire County Council,12-Nov-20,51301469078,"-1,145.94",CARE MANAGEMENT GROUP (64-66 CARLTON),CARE ESTABLISHMENT,LD - East Locality - Cost of Care,LD - East Cambs - Care,Residential Care
Cambridgeshire County Council,12-Nov-20,51301469078,"-1,145.94",CARE MANAGEMENT GROUP (64-66 CARLTON),CARE ESTABLISHMENT,LD - East Locality - Cost of Care,LD - East Cambs - Care,Residential Care
Cambridgeshire County Council,12-Nov-20,51301469078,"-1,145.94",CARE MANAGEMENT GROUP (64-66 CARLTON),CARE ESTABLISHMENT,LD - East Locality - Cost of Care,LD - East Cambs - Care,Residential Care
Cambridgeshire County Council,12-Nov-20,51301469078,"-1,145.94",CARE MANAGEMENT GROUP (64-66 CARLTON),CARE ESTABLISHMENT,LD - East Locality - Cost of Care,LD - East Cambs - Care,Residential Care
Cambridgeshire County Council,12-Nov-20,51301469078,"-1,145.94",CARE MANAGEMENT GROUP (64-66 CARLTON),CARE ESTABLISHMENT,LD - East Locality - Cost of Care,LD - East Cambs - Care,Residential Care
Cambridgeshire County Council,12-Nov-20,51301469078,"-1,145.94",CARE MANAGEMENT GROUP (64-66 CARLTON),CARE ESTABLISHMENT,LD - East Locality - Cost of Care,LD - East Cambs - Care,Residential Care
Cambridgeshire County Council,12-Nov-20,51301469078,"-1,145.94",CARE MANAGEMENT GROUP (64-66 CARLTON),CARE ESTABLISHMENT,LD - East Locality - Cost of Care,LD - East Cambs - Care,Residential Care
Cambridgeshire County Council,12-Nov-20,51301469078,"-1,145.94",CARE MANAGEMENT GROUP (64-66 CARLTON),CARE ESTABLISHMENT,LD - East Locality - Cost of Care,LD - East Cambs - Care,Residential Care
Cambridgeshire County Council,12-Nov-20,51301469078,"-1,145.94",CARE MANAGEMENT GROUP (64-66 CARLTON),CARE ESTABLISHMENT,LD - East Locality - Cost of Care,LD - East Cambs - Care,Residential Care
Cambridgeshire County Council,12-Nov-20,51301469078,"-1,145.94",CARE MANAGEMENT GROUP (64-66 CARLTON),CARE ESTABLISHMENT,LD - East Locality - Cost of Care,LD - East Cambs - Care,Residential Care
Cambridgeshire County Council,12-Nov-20,51301469078,"-1,145.94",CARE MANAGEMENT GROUP (64-66 CARLTON),CARE ESTABLISHMENT,LD - East Locality - Cost of Care,LD - East Cambs - Care,Residential Care
Cambridgeshire County Council,12-Nov-20,51301469078,"-1,145.94",CARE MANAGEMENT GROUP (64-66 CARLTON),CARE ESTABLISHMENT,LD - East Locality - Cost of Care,LD - East Cambs - Care,Residential Care
Cambridgeshire County Council,12-Nov-20,51301469078,"-1,145.94",CARE MANAGEMENT GROUP (64-66 CARLTON),CARE ESTABLISHMENT,LD - East Locality - Cost of Care,LD - East Cambs - Care,Residential Care
Cambridgeshire County Council,12-Nov-20,51301469078,"-1,145.94",CARE MANAGEMENT GROUP (64-66 CARLTON),CARE ESTABLISHMENT,LD - East Locality - Cost of Care,LD - East Cambs - Care,Residential Care
Cambridgeshire County Council,12-Nov-20,51301469078,"-1,145.94",CARE MANAGEMENT GROUP (64-66 CARLTON),CARE ESTABLISHMENT,LD - East Locality - Cost of Care,LD - East Cambs - Care,Residential Care
Cambridgeshire County Council,12-Nov-20,51301469078,"-1,145.94",CARE MANAGEMENT GROUP (64-66 CARLTON),CARE ESTABLISHMENT,LD - East Locality - Cost of Care,LD - East Cambs - Care,Residential Care
Cambridgeshire County Council,26-Nov-20,51301478685,"-1,131.43",HC-ONE,CARE ESTABLISHMENT,OP - Hunts Locality - Cost of Care,Hunts OP Team - Care,Nursing Care
Cambridgeshire County Council,12-Nov-20,51301469078,"-1,129.00",CARE MANAGEMENT GROUP (64-66 CARLTON),CARE ESTABLISHMENT,LD - East Locality - Cost of Care,LD - East Cambs - Care,Residential Care
Cambridgeshire County Council,12-Nov-20,51301469078,"-1,129.00",CARE MANAGEMENT GROUP (64-66 CARLTON),CARE ESTABLISHMENT,LD - East Locality - Cost of Care,LD - East Cambs - Care,Residential Care
Cambridgeshire County Council,12-Nov-20,51301469078,"-1,129.00",CARE MANAGEMENT GROUP (64-66 CARLTON),CARE ESTABLISHMENT,LD - East Locality - Cost of Care,LD - East Cambs - Care,Residential Care
Cambridgeshire County Council,12-Nov-20,51301469078,"-1,129.00",CARE MANAGEMENT GROUP (64-66 CARLTON),CARE ESTABLISHMENT,LD - East Locality - Cost of Care,LD - East Cambs - Care,Residential Care
Cambridgeshire County Council,12-Nov-20,51301469078,"-1,129.00",CARE MANAGEMENT GROUP (64-66 CARLTON),CARE ESTABLISHMENT,LD - East Locality - Cost of Care,LD - East Cambs - Care,Residential Care
Cambridgeshire County Council,12-Nov-20,51301469078,"-1,129.00",CARE MANAGEMENT GROUP (64-66 CARLTON),CARE ESTABLISHMENT,LD - East Locality - Cost of Care,LD - East Cambs - Care,Residential Care
Cambridgeshire County Council,12-Nov-20,51301469078,"-1,129.00",CARE MANAGEMENT GROUP (64-66 CARLTON),CARE ESTABLISHMENT,LD - East Locality - Cost of Care,LD - East Cambs - Care,Residential Care
Cambridgeshire County Council,12-Nov-20,51301469078,"-1,129.00",CARE MANAGEMENT GROUP (64-66 CARLTON),CARE ESTABLISHMENT,LD - East Locality - Cost of Care,LD - East Cambs - Care,Residential Care
Cambridgeshire County Council,12-Nov-20,51301469078,"-1,129.00",CARE MANAGEMENT GROUP (64-66 CARLTON),CARE ESTABLISHMENT,LD - East Locality - Cost of Care,LD - East Cambs - Care,Residential Care
Cambridgeshire County Council,12-Nov-20,51301469078,"-1,129.00",CARE MANAGEMENT GROUP (64-66 CARLTON),CARE ESTABLISHMENT,LD - East Locality - Cost of Care,LD - East Cambs - Care,Residential Care
Cambridgeshire County Council,12-Nov-20,51301469078,"-1,129.00",CARE MANAGEMENT GROUP (64-66 CARLTON),CARE ESTABLISHMENT,LD - East Locality - Cost of Care,LD - East Cambs - Care,Residential Care
Cambridgeshire County Council,12-Nov-20,51301469078,"-1,129.00",CARE MANAGEMENT GROUP (64-66 CARLTON),CARE ESTABLISHMENT,LD - East Locality - Cost of Care,LD - East Cambs - Care,Residential Care
Cambridgeshire County Council,12-Nov-20,51301469078,"-1,129.00",CARE MANAGEMENT GROUP (64-66 CARLTON),CARE ESTABLISHMENT,LD - East Locality - Cost of Care,LD - East Cambs - Care,Residential Care
Cambridgeshire County Council,12-Nov-20,51301469078,"-1,129.00",CARE MANAGEMENT GROUP (64-66 CARLTON),CARE ESTABLISHMENT,LD - East Locality - Cost of Care,LD - East Cambs - Care,Residential Care
Cambridgeshire County Council,12-Nov-20,51301469078,"-1,129.00",CARE MANAGEMENT GROUP (64-66 CARLTON),CARE ESTABLISHMENT,LD - East Locality - Cost of Care,LD - East Cambs - Care,Residential Care
Cambridgeshire County Council,12-Nov-20,51301469078,"-1,129.00",CARE MANAGEMENT GROUP (64-66 CARLTON),CARE ESTABLISHMENT,LD - East Locality - Cost of Care,LD - East Cambs - Care,Residential Care
Cambridgeshire County Council,12-Nov-20,51301469078,"-1,129.00",CARE MANAGEMENT GROUP (64-66 CARLTON),CARE ESTABLISHMENT,LD - East Locality - Cost of Care,LD - East Cambs - Care,Residential Care
Cambridgeshire County Council,12-Nov-20,51301469078,"-1,129.00",CARE MANAGEMENT GROUP (64-66 CARLTON),CARE ESTABLISHMENT,LD - East Locality - Cost of Care,LD - East Cambs - Care,Residential Care
Cambridgeshire County Council,12-Nov-20,51301469078,"-1,129.00",CARE MANAGEMENT GROUP (64-66 CARLTON),CARE ESTABLISHMENT,LD - East Locality - Cost of Care,LD - East Cambs - Care,Residential Care
Cambridgeshire County Council,20-Nov-20,51301471172,"-1,114.68",24/7 Support UK Limited,CARE ESTABLISHMENT,Unaccompanied Asylum Seeking Children,Unaccompanied Asylum Seeking Children <18,Asylum Seekers
Cambridgeshire County Council,20-Nov-20,51301471166,"-1,114.68",24/7 Support UK Limited,CARE ESTABLISHMENT,Unaccompanied Asylum Seeking Children,Unaccompanied Asylum Seeking Children <18,Asylum Seekers
Cambridgeshire County Council,06-Nov-20,51301462880,"-1,101.80",BROAD OAKS (MENCAP),CARE ESTABLISHMENT,OP - Fenland Locality - Cost of Care,Older People - Fenland - Care,Residential Care
Cambridgeshire County Council,06-Nov-20,51301462880,"-1,101.80",BROAD OAKS (MENCAP),CARE ESTABLISHMENT,OP - Fenland Locality - Cost of Care,Older People - Fenland - Care,Residential Care
Cambridgeshire County Council,06-Nov-20,51301462880,"-1,101.80",BROAD OAKS (MENCAP),CARE ESTABLISHMENT,OP - Fenland Locality - Cost of Care,Older People - Fenland - Care,Residential Care
Cambridgeshire County Council,06-Nov-20,51301462880,"-1,101.80",BROAD OAKS (MENCAP),CARE ESTABLISHMENT,OP - Fenland Locality - Cost of Care,Older People - Fenland - Care,Residential Care
Cambridgeshire County Council,06-Nov-20,51301462880,"-1,101.80",BROAD OAKS (MENCAP),CARE ESTABLISHMENT,OP - Fenland Locality - Cost of Care,Older People - Fenland - Care,Residential Care
Cambridgeshire County Council,06-Nov-20,51301462880,"-1,101.80",BROAD OAKS (MENCAP),CARE ESTABLISHMENT,OP - Fenland Locality - Cost of Care,Older People - Fenland - Care,Residential Care
Cambridgeshire County Council,06-Nov-20,51301462880,"-1,101.80",BROAD OAKS (MENCAP),CARE ESTABLISHMENT,OP - Fenland Locality - Cost of Care,Older People - Fenland - Care,Residential Care
Cambridgeshire County Council,06-Nov-20,51301462880,"-1,101.80",BROAD OAKS (MENCAP),CARE ESTABLISHMENT,OP - Fenland Locality - Cost of Care,Older People - Fenland - Care,Residential Care
Cambridgeshire County Council,06-Nov-20,51301462880,"-1,101.80",BROAD OAKS (MENCAP),CARE ESTABLISHMENT,OP - Fenland Locality - Cost of Care,Older People - Fenland - Care,Residential Care
Cambridgeshire County Council,06-Nov-20,51301462880,"-1,101.80",BROAD OAKS (MENCAP),CARE ESTABLISHMENT,OP - Fenland Locality - Cost of Care,Older People - Fenland - Care,Residential Care
Cambridgeshire County Council,06-Nov-20,51301462880,"-1,101.80",BROAD OAKS (MENCAP),CARE ESTABLISHMENT,OP - Fenland Locality - Cost of Care,Older People - Fenland - Care,Residential Care
Cambridgeshire County Council,06-Nov-20,51301462880,"-1,101.80",BROAD OAKS (MENCAP),CARE ESTABLISHMENT,OP - Fenland Locality - Cost of Care,Older People - Fenland - Care,Residential Care
Cambridgeshire County Council,26-Nov-20,51301477838,"-1,100.00",BETTER HEALTHCARE SERVICES LTD,CARE ESTABLISHMENT,OP - Fenland Locality - Cost of Care,Older People - Fenland - Care,Domiciliary Care
Cambridgeshire County Council,26-Nov-20,51301477838,"-1,100.00",BETTER HEALTHCARE SERVICES LTD,CARE ESTABLISHMENT,OP - Fenland Locality - Cost of Care,Older People - Fenland - Care,Domiciliary Care
Cambridgeshire County Council,26-Nov-20,51301477838,"-1,100.00",BETTER HEALTHCARE SERVICES LTD,CARE ESTABLISHMENT,OP - Fenland Locality - Cost of Care,Older People - Fenland - Care,Domiciliary Care
Cambridgeshire County Council,26-Nov-20,51301477838,"-1,100.00",BETTER HEALTHCARE SERVICES LTD,CARE ESTABLISHMENT,OP - Fenland Locality - Cost of Care,Older People - Fenland - Care,Domiciliary Care
Cambridgeshire County Council,26-Nov-20,51301477838,"-1,100.00",BETTER HEALTHCARE SERVICES LTD,CARE ESTABLISHMENT,OP - Fenland Locality - Cost of Care,Older People - Fenland - Care,Domiciliary Care
Cambridgeshire County Council,26-Nov-20,51301477838,"-1,100.00",BETTER HEALTHCARE SERVICES LTD,CARE ESTABLISHMENT,OP - Fenland Locality - Cost of Care,Older People - Fenland - Care,Domiciliary Care
Cambridgeshire County Council,26-Nov-20,51301477838,"-1,100.00",BETTER HEALTHCARE SERVICES LTD,CARE ESTABLISHMENT,OP - Fenland Locality - Cost of Care,Older People - Fenland - Care,Domiciliary Care
Cambridgeshire County Council,26-Nov-20,51301477838,"-1,100.00",BETTER HEALTHCARE SERVICES LTD,CARE ESTABLISHMENT,OP - Fenland Locality - Cost of Care,Older People - Fenland - Care,Domiciliary Care
Cambridgeshire County Council,26-Nov-20,51301477838,"-1,100.00",BETTER HEALTHCARE SERVICES LTD,CARE ESTABLISHMENT,OP - Fenland Locality - Cost of Care,Older People - Fenland - Care,Domiciliary Care
Cambridgeshire County Council,26-Nov-20,51301474010,"-1,100.00",The Orchards (Greensleeves),CARE ESTABLISHMENT,OP - East Cambs Locality - Cost of Care,East Cambs - O P Team - Care,Residential Care
Cambridgeshire County Council,26-Nov-20,51301474010,"-1,100.00",The Orchards (Greensleeves),CARE ESTABLISHMENT,OP - East Cambs Locality - Cost of Care,East Cambs - O P Team - Care,Residential Care
Cambridgeshire County Council,26-Nov-20,51301479460,"-1,100.00",GRACEFIELD NURSING AND RESIDENTIAL HOME,CARE ESTABLISHMENT,OP - Hunts Locality - Cost of Care,Hunts OP Team - Care,Nursing Care
Cambridgeshire County Council,26-Nov-20,51301479460,"-1,100.00",GRACEFIELD NURSING AND RESIDENTIAL HOME,CARE ESTABLISHMENT,OP - Hunts Locality - Cost of Care,Hunts OP Team - Care,Nursing Care
Cambridgeshire County Council,26-Nov-20,51301479460,"-1,100.00",GRACEFIELD NURSING AND RESIDENTIAL HOME,CARE ESTABLISHMENT,OP - Hunts Locality - Cost of Care,Hunts OP Team - Care,Nursing Care
Cambridgeshire County Council,26-Nov-20,51301479460,"-1,100.00",GRACEFIELD NURSING AND RESIDENTIAL HOME,CARE ESTABLISHMENT,OP - Hunts Locality - Cost of Care,Hunts OP Team - Care,Nursing Care
Cambridgeshire County Council,26-Nov-20,51301477762,"-1,100.00",BETTER HEALTHCARE SERVICES LTD,CARE ESTABLISHMENT,OPMH - City & South,Older People Mental Health City & South,Homecare
Cambridgeshire County Council,26-Nov-20,51301477762,"-1,100.00",BETTER HEALTHCARE SERVICES LTD,CARE ESTABLISHMENT,OPMH - City & South,Older People Mental Health City & South,Homecare
Cambridgeshire County Council,26-Nov-20,51301477762,"-1,100.00",BETTER HEALTHCARE SERVICES LTD,CARE ESTABLISHMENT,OPMH - City & South,Older People Mental Health City & South,Homecare
Cambridgeshire County Council,26-Nov-20,51301477762,"-1,100.00",BETTER HEALTHCARE SERVICES LTD,CARE ESTABLISHMENT,OPMH - City & South,Older People Mental Health City & South,Homecare
Cambridgeshire County Council,26-Nov-20,51301477762,"-1,100.00",BETTER HEALTHCARE SERVICES LTD,CARE ESTABLISHMENT,OPMH - City & South,Older People Mental Health City & South,Homecare
Cambridgeshire County Council,16-Nov-20,51301469862,"-1,095.27",KISIMUL SCHOOL,CARE ESTABLISHMENT,LD - Young Adults Team,LD - Young Adults - Care,Residential Care
Cambridgeshire County Council,26-Nov-20,51301469003,"-1,088.46",CONSULTUS CARE AND NURSING,CARE ESTABLISHMENT,LD - Hunts Locality - Cost of Care,LD - Huntingdonshire - Care,Short Term Other
Cambridgeshire County Council,26-Nov-20,51301469003,"-1,088.46",CONSULTUS CARE AND NURSING,CARE ESTABLISHMENT,LD - Hunts Locality - Cost of Care,LD - Huntingdonshire - Care,Short Term Other
Cambridgeshire County Council,26-Nov-20,51301469003,"-1,088.46",CONSULTUS CARE AND NURSING,CARE ESTABLISHMENT,LD - Hunts Locality - Cost of Care,LD - Huntingdonshire - Care,Short Term Other
Cambridgeshire County Council,26-Nov-20,51301469003,"-1,088.46",CONSULTUS CARE AND NURSING,CARE ESTABLISHMENT,LD - Hunts Locality - Cost of Care,LD - Huntingdonshire - Care,Short Term Other
Cambridgeshire County Council,26-Nov-20,51301469003,"-1,088.46",CONSULTUS CARE AND NURSING,CARE ESTABLISHMENT,LD - Hunts Locality - Cost of Care,LD - Huntingdonshire - Care,Short Term Other
Cambridgeshire County Council,26-Nov-20,51301469003,"-1,088.46",CONSULTUS CARE AND NURSING,CARE ESTABLISHMENT,LD - Hunts Locality - Cost of Care,LD - Huntingdonshire - Care,Short Term Other
Cambridgeshire County Council,26-Nov-20,51301469003,"-1,088.46",CONSULTUS CARE AND NURSING,CARE ESTABLISHMENT,LD - Hunts Locality - Cost of Care,LD - Huntingdonshire - Care,Short Term Other
Cambridgeshire County Council,26-Nov-20,51301469003,"-1,088.46",CONSULTUS CARE AND NURSING,CARE ESTABLISHMENT,LD - Hunts Locality - Cost of Care,LD - Huntingdonshire - Care,Short Term Other
Cambridgeshire County Council,26-Nov-20,51301469003,"-1,088.46",CONSULTUS CARE AND NURSING,CARE ESTABLISHMENT,LD - Hunts Locality - Cost of Care,LD - Huntingdonshire - Care,Short Term Other
Cambridgeshire County Council,26-Nov-20,51301469003,"-1,088.46",CONSULTUS CARE AND NURSING,CARE ESTABLISHMENT,LD - Hunts Locality - Cost of Care,LD - Huntingdonshire - Care,Short Term Other
Cambridgeshire County Council,26-Nov-20,51301469003,"-1,088.46",CONSULTUS CARE AND NURSING,CARE ESTABLISHMENT,LD - Hunts Locality - Cost of Care,LD - Huntingdonshire - Care,Short Term Other
Cambridgeshire County Council,26-Nov-20,51301469003,"-1,088.46",CONSULTUS CARE AND NURSING,CARE ESTABLISHMENT,LD - Hunts Locality - Cost of Care,LD - Huntingdonshire - Care,Short Term Other
Cambridgeshire County Council,26-Nov-20,51301469003,"-1,088.46",CONSULTUS CARE AND NURSING,CARE ESTABLISHMENT,LD - Hunts Locality - Cost of Care,LD - Huntingdonshire - Care,Short Term Other
Cambridgeshire County Council,26-Nov-20,51301469003,"-1,088.46",CONSULTUS CARE AND NURSING,CARE ESTABLISHMENT,LD - Hunts Locality - Cost of Care,LD - Huntingdonshire - Care,Short Term Other
Cambridgeshire County Council,26-Nov-20,51301469003,"-1,088.46",CONSULTUS CARE AND NURSING,CARE ESTABLISHMENT,LD - Hunts Locality - Cost of Care,LD - Huntingdonshire - Care,Short Term Other
Cambridgeshire County Council,26-Nov-20,51301469003,"-1,088.46",CONSULTUS CARE AND NURSING,CARE ESTABLISHMENT,LD - Hunts Locality - Cost of Care,LD - Huntingdonshire - Care,Short Term Other
Cambridgeshire County Council,26-Nov-20,51301469003,"-1,088.46",CONSULTUS CARE AND NURSING,CARE ESTABLISHMENT,LD - Hunts Locality - Cost of Care,LD - Huntingdonshire - Care,Short Term Other
Cambridgeshire County Council,26-Nov-20,51301469003,"-1,088.46",CONSULTUS CARE AND NURSING,CARE ESTABLISHMENT,LD - Hunts Locality - Cost of Care,LD - Huntingdonshire - Care,Short Term Other
Cambridgeshire County Council,26-Nov-20,51301469003,"-1,088.46",CONSULTUS CARE AND NURSING,CARE ESTABLISHMENT,LD - Hunts Locality - Cost of Care,LD - Huntingdonshire - Care,Short Term Other
Cambridgeshire County Council,26-Nov-20,51301469003,"-1,088.46",CONSULTUS CARE AND NURSING,CARE ESTABLISHMENT,LD - Hunts Locality - Cost of Care,LD - Huntingdonshire - Care,Short Term Other
Cambridgeshire County Council,26-Nov-20,51301469003,"-1,088.46",CONSULTUS CARE AND NURSING,CARE ESTABLISHMENT,LD - Hunts Locality - Cost of Care,LD - Huntingdonshire - Care,Short Term Other
Cambridgeshire County Council,26-Nov-20,51301469003,"-1,088.46",CONSULTUS CARE AND NURSING,CARE ESTABLISHMENT,LD - Hunts Locality - Cost of Care,LD - Huntingdonshire - Care,Short Term Other
Cambridgeshire County Council,26-Nov-20,51301469003,"-1,088.46",CONSULTUS CARE AND NURSING,CARE ESTABLISHMENT,LD - Hunts Locality - Cost of Care,LD - Huntingdonshire - Care,Short Term Other
Cambridgeshire County Council,26-Nov-20,51301469003,"-1,088.46",CONSULTUS CARE AND NURSING,CARE ESTABLISHMENT,LD - Hunts Locality - Cost of Care,LD - Huntingdonshire - Care,Short Term Other
Cambridgeshire County Council,26-Nov-20,51301469003,"-1,088.46",CONSULTUS CARE AND NURSING,CARE ESTABLISHMENT,LD - Hunts Locality - Cost of Care,LD - Huntingdonshire - Care,Short Term Other
Cambridgeshire County Council,26-Nov-20,51301469003,"-1,088.46",CONSULTUS CARE AND NURSING,CARE ESTABLISHMENT,LD - Hunts Locality - Cost of Care,LD - Huntingdonshire - Care,Short Term Other
Cambridgeshire County Council,26-Nov-20,51301469003,"-1,088.46",CONSULTUS CARE AND NURSING,CARE ESTABLISHMENT,LD - Hunts Locality - Cost of Care,LD - Huntingdonshire - Care,Short Term Other
Cambridgeshire County Council,26-Nov-20,51301469003,"-1,088.46",CONSULTUS CARE AND NURSING,CARE ESTABLISHMENT,LD - Hunts Locality - Cost of Care,LD - Huntingdonshire - Care,Short Term Other
Cambridgeshire County Council,26-Nov-20,51301469003,"-1,088.46",CONSULTUS CARE AND NURSING,CARE ESTABLISHMENT,LD - Hunts Locality - Cost of Care,LD - Huntingdonshire - Care,Short Term Other
Cambridgeshire County Council,26-Nov-20,51301469003,"-1,088.46",CONSULTUS CARE AND NURSING,CARE ESTABLISHMENT,LD - Hunts Locality - Cost of Care,LD - Huntingdonshire - Care,Short Term Other
Cambridgeshire County Council,26-Nov-20,51301469003,"-1,088.46",CONSULTUS CARE AND NURSING,CARE ESTABLISHMENT,LD - Hunts Locality - Cost of Care,LD - Huntingdonshire - Care,Short Term Other
Cambridgeshire County Council,26-Nov-20,51301469003,"-1,088.46",CONSULTUS CARE AND NURSING,CARE ESTABLISHMENT,LD - Hunts Locality - Cost of Care,LD - Huntingdonshire - Care,Short Term Other
Cambridgeshire County Council,26-Nov-20,51301469003,"-1,088.46",CONSULTUS CARE AND NURSING,CARE ESTABLISHMENT,LD - Hunts Locality - Cost of Care,LD - Huntingdonshire - Care,Short Term Other
Cambridgeshire County Council,26-Nov-20,51301469003,"-1,088.46",CONSULTUS CARE AND NURSING,CARE ESTABLISHMENT,LD - Hunts Locality - Cost of Care,LD - Huntingdonshire - Care,Short Term Other
Cambridgeshire County Council,26-Nov-20,51301469003,"-1,088.46",CONSULTUS CARE AND NURSING,CARE ESTABLISHMENT,LD - Hunts Locality - Cost of Care,LD - Huntingdonshire - Care,Short Term Other
Cambridgeshire County Council,26-Nov-20,51301469003,"-1,088.46",CONSULTUS CARE AND NURSING,CARE ESTABLISHMENT,LD - Hunts Locality - Cost of Care,LD - Huntingdonshire - Care,Short Term Other
Cambridgeshire County Council,26-Nov-20,51301469003,"-1,088.46",CONSULTUS CARE AND NURSING,CARE ESTABLISHMENT,LD - Hunts Locality - Cost of Care,LD - Huntingdonshire - Care,Short Term Other
Cambridgeshire County Council,26-Nov-20,51301469003,"-1,088.46",CONSULTUS CARE AND NURSING,CARE ESTABLISHMENT,LD - Hunts Locality - Cost of Care,LD - Huntingdonshire - Care,Short Term Other
Cambridgeshire County Council,26-Nov-20,51301469003,"-1,088.46",CONSULTUS CARE AND NURSING,CARE ESTABLISHMENT,LD - Hunts Locality - Cost of Care,LD - Huntingdonshire - Care,Short Term Other
Cambridgeshire County Council,26-Nov-20,51301469003,"-1,088.46",CONSULTUS CARE AND NURSING,CARE ESTABLISHMENT,LD - Hunts Locality - Cost of Care,LD - Huntingdonshire - Care,Short Term Other
Cambridgeshire County Council,26-Nov-20,51301469003,"-1,088.46",CONSULTUS CARE AND NURSING,CARE ESTABLISHMENT,LD - Hunts Locality - Cost of Care,LD - Huntingdonshire - Care,Short Term Other
Cambridgeshire County Council,26-Nov-20,51301469003,"-1,088.46",CONSULTUS CARE AND NURSING,CARE ESTABLISHMENT,LD - Hunts Locality - Cost of Care,LD - Huntingdonshire - Care,Short Term Other
Cambridgeshire County Council,26-Nov-20,51301469003,"-1,088.46",CONSULTUS CARE AND NURSING,CARE ESTABLISHMENT,LD - Hunts Locality - Cost of Care,LD - Huntingdonshire - Care,Short Term Other
Cambridgeshire County Council,26-Nov-20,51301469003,"-1,088.46",CONSULTUS CARE AND NURSING,CARE ESTABLISHMENT,LD - Hunts Locality - Cost of Care,LD - Huntingdonshire - Care,Short Term Other
Cambridgeshire County Council,26-Nov-20,51301469003,"-1,088.46",CONSULTUS CARE AND NURSING,CARE ESTABLISHMENT,LD - Hunts Locality - Cost of Care,LD - Huntingdonshire - Care,Short Term Other
Cambridgeshire County Council,26-Nov-20,51301469003,"-1,088.46",CONSULTUS CARE AND NURSING,CARE ESTABLISHMENT,LD - Hunts Locality - Cost of Care,LD - Huntingdonshire - Care,Short Term Other
Cambridgeshire County Council,26-Nov-20,51301469003,"-1,088.46",CONSULTUS CARE AND NURSING,CARE ESTABLISHMENT,LD - Hunts Locality - Cost of Care,LD - Huntingdonshire - Care,Short Term Other
Cambridgeshire County Council,26-Nov-20,51301469003,"-1,088.46",CONSULTUS CARE AND NURSING,CARE ESTABLISHMENT,LD - Hunts Locality - Cost of Care,LD - Huntingdonshire - Care,Short Term Other
Cambridgeshire County Council,26-Nov-20,51301469003,"-1,088.46",CONSULTUS CARE AND NURSING,CARE ESTABLISHMENT,LD - Hunts Locality - Cost of Care,LD - Huntingdonshire - Care,Short Term Other
Cambridgeshire County Council,26-Nov-20,51301469003,"-1,088.46",CONSULTUS CARE AND NURSING,CARE ESTABLISHMENT,LD - Hunts Locality - Cost of Care,LD - Huntingdonshire - Care,Short Term Other
Cambridgeshire County Council,26-Nov-20,51301469003,"-1,088.46",CONSULTUS CARE AND NURSING,CARE ESTABLISHMENT,LD - Hunts Locality - Cost of Care,LD - Huntingdonshire - Care,Short Term Other
Cambridgeshire County Council,26-Nov-20,51301469003,"-1,088.46",CONSULTUS CARE AND NURSING,CARE ESTABLISHMENT,LD - Hunts Locality - Cost of Care,LD - Huntingdonshire - Care,Short Term Other
Cambridgeshire County Council,26-Nov-20,51301469003,"-1,088.46",CONSULTUS CARE AND NURSING,CARE ESTABLISHMENT,LD - Hunts Locality - Cost of Care,LD - Huntingdonshire - Care,Short Term Other
Cambridgeshire County Council,26-Nov-20,51301469003,"-1,088.46",CONSULTUS CARE AND NURSING,CARE ESTABLISHMENT,LD - Hunts Locality - Cost of Care,LD - Huntingdonshire - Care,Short Term Other
Cambridgeshire County Council,26-Nov-20,51301469003,"-1,088.46",CONSULTUS CARE AND NURSING,CARE ESTABLISHMENT,LD - Hunts Locality - Cost of Care,LD - Huntingdonshire - Care,Short Term Other
Cambridgeshire County Council,26-Nov-20,51301469003,"-1,088.46",CONSULTUS CARE AND NURSING,CARE ESTABLISHMENT,LD - Hunts Locality - Cost of Care,LD - Huntingdonshire - Care,Short Term Other
Cambridgeshire County Council,26-Nov-20,51301469003,"-1,088.46",CONSULTUS CARE AND NURSING,CARE ESTABLISHMENT,LD - Hunts Locality - Cost of Care,LD - Huntingdonshire - Care,Short Term Other
Cambridgeshire County Council,26-Nov-20,51301469003,"-1,088.46",CONSULTUS CARE AND NURSING,CARE ESTABLISHMENT,LD - Hunts Locality - Cost of Care,LD - Huntingdonshire - Care,Short Term Other
Cambridgeshire County Council,26-Nov-20,51301475561,"-1,075.83",THERA EAST ANGLIA,CARE ESTABLISHMENT,LD - East Locality - Cost of Care,LD - East Cambs - Care,Domiciliary Care
Cambridgeshire County Council,26-Nov-20,51301475561,"-1,075.83",THERA EAST ANGLIA,CARE ESTABLISHMENT,LD - East Locality - Cost of Care,LD - East Cambs - Care,Domiciliary Care
Cambridgeshire County Council,26-Nov-20,51301475561,"-1,075.83",THERA EAST ANGLIA,CARE ESTABLISHMENT,LD - East Locality - Cost of Care,LD - East Cambs - Care,Domiciliary Care
Cambridgeshire County Council,26-Nov-20,51301475561,"-1,075.83",THERA EAST ANGLIA,CARE ESTABLISHMENT,LD - East Locality - Cost of Care,LD - East Cambs - Care,Domiciliary Care
Cambridgeshire County Council,26-Nov-20,51301475561,"-1,075.83",THERA EAST ANGLIA,CARE ESTABLISHMENT,LD - East Locality - Cost of Care,LD - East Cambs - Care,Domiciliary Care
Cambridgeshire County Council,26-Nov-20,51301475561,"-1,075.83",THERA EAST ANGLIA,CARE ESTABLISHMENT,LD - East Locality - Cost of Care,LD - East Cambs - Care,Domiciliary Care
Cambridgeshire County Council,26-Nov-20,51301475561,"-1,075.83",THERA EAST ANGLIA,CARE ESTABLISHMENT,LD - East Locality - Cost of Care,LD - East Cambs - Care,Domiciliary Care
Cambridgeshire County Council,26-Nov-20,51301475561,"-1,075.83",THERA EAST ANGLIA,CARE ESTABLISHMENT,LD - East Locality - Cost of Care,LD - East Cambs - Care,Domiciliary Care
Cambridgeshire County Council,26-Nov-20,51301475561,"-1,075.83",THERA EAST ANGLIA,CARE ESTABLISHMENT,LD - East Locality - Cost of Care,LD - East Cambs - Care,Domiciliary Care
Cambridgeshire County Council,26-Nov-20,51301478108,"-1,070.15",DIMENSIONS (UK) LTD,CARE ESTABLISHMENT,LD - South Locality - Cost of Care,LD - South Cambs - Care,Supported Living
Cambridgeshire County Council,26-Nov-20,51301478108,"-1,070.15",DIMENSIONS (UK) LTD,CARE ESTABLISHMENT,LD - South Locality - Cost of Care,LD - South Cambs - Care,Supported Living
Cambridgeshire County Council,26-Nov-20,51301478084,"-1,057.04",DIMENSIONS (UK) LTD,CARE ESTABLISHMENT,LD - South Locality - Cost of Care,LD - South Cambs - Care,Supported Living
Cambridgeshire County Council,26-Nov-20,51301478084,"-1,057.04",DIMENSIONS (UK) LTD,CARE ESTABLISHMENT,LD - South Locality - Cost of Care,LD - South Cambs - Care,Supported Living
Cambridgeshire County Council,26-Nov-20,51301478084,"-1,057.04",DIMENSIONS (UK) LTD,CARE ESTABLISHMENT,LD - South Locality - Cost of Care,LD - South Cambs - Care,Supported Living
Cambridgeshire County Council,26-Nov-20,51301478084,"-1,057.04",DIMENSIONS (UK) LTD,CARE ESTABLISHMENT,LD - South Locality - Cost of Care,LD - South Cambs - Care,Supported Living
Cambridgeshire County Council,26-Nov-20,51301478084,"-1,057.04",DIMENSIONS (UK) LTD,CARE ESTABLISHMENT,LD - South Locality - Cost of Care,LD - South Cambs - Care,Supported Living
Cambridgeshire County Council,26-Nov-20,51301478084,"-1,057.04",DIMENSIONS (UK) LTD,CARE ESTABLISHMENT,LD - South Locality - Cost of Care,LD - South Cambs - Care,Supported Living
Cambridgeshire County Council,26-Nov-20,51301478084,"-1,057.04",DIMENSIONS (UK) LTD,CARE ESTABLISHMENT,LD - South Locality - Cost of Care,LD - South Cambs - Care,Supported Living
Cambridgeshire County Council,26-Nov-20,51301478084,"-1,057.04",DIMENSIONS (UK) LTD,CARE ESTABLISHMENT,LD - South Locality - Cost of Care,LD - South Cambs - Care,Supported Living
Cambridgeshire County Council,26-Nov-20,51301478084,"-1,057.04",DIMENSIONS (UK) LTD,CARE ESTABLISHMENT,LD - South Locality - Cost of Care,LD - South Cambs - Care,Supported Living
Cambridgeshire County Council,26-Nov-20,51301478084,"-1,057.04",DIMENSIONS (UK) LTD,CARE ESTABLISHMENT,LD - South Locality - Cost of Care,LD - South Cambs - Care,Supported Living
Cambridgeshire County Council,26-Nov-20,51301478084,"-1,057.04",DIMENSIONS (UK) LTD,CARE ESTABLISHMENT,LD - South Locality - Cost of Care,LD - South Cambs - Care,Supported Living
Cambridgeshire County Council,26-Nov-20,51301478084,"-1,057.04",DIMENSIONS (UK) LTD,CARE ESTABLISHMENT,LD - South Locality - Cost of Care,LD - South Cambs - Care,Supported Living
Cambridgeshire County Council,26-Nov-20,51301478084,"-1,057.04",DIMENSIONS (UK) LTD,CARE ESTABLISHMENT,LD - South Locality - Cost of Care,LD - South Cambs - Care,Supported Living
Cambridgeshire County Council,26-Nov-20,51301478084,"-1,057.04",DIMENSIONS (UK) LTD,CARE ESTABLISHMENT,LD - South Locality - Cost of Care,LD - South Cambs - Care,Supported Living
Cambridgeshire County Council,26-Nov-20,51301474364,"-1,045.11",ETHELDRED HOUSE,CARE ESTABLISHMENT,OP - City & South Locality - Cost of Care,Older People - City & South - Care,Nursing Care
Cambridgeshire County Council,06-Nov-20,51301462918,"-1,041.86",BROAD OAKS (MENCAP),CARE ESTABLISHMENT,OP - Fenland Locality - Cost of Care,Older People - Fenland - Care,Residential Care
Cambridgeshire County Council,06-Nov-20,51301462918,"-1,041.86",BROAD OAKS (MENCAP),CARE ESTABLISHMENT,OP - Fenland Locality - Cost of Care,Older People - Fenland - Care,Residential Care
Cambridgeshire County Council,06-Nov-20,51301462918,"-1,041.86",BROAD OAKS (MENCAP),CARE ESTABLISHMENT,OP - Fenland Locality - Cost of Care,Older People - Fenland - Care,Residential Care
Cambridgeshire County Council,06-Nov-20,51301462918,"-1,041.86",BROAD OAKS (MENCAP),CARE ESTABLISHMENT,OP - Fenland Locality - Cost of Care,Older People - Fenland - Care,Residential Care
Cambridgeshire County Council,06-Nov-20,51301462918,"-1,041.86",BROAD OAKS (MENCAP),CARE ESTABLISHMENT,OP - Fenland Locality - Cost of Care,Older People - Fenland - Care,Residential Care
Cambridgeshire County Council,06-Nov-20,51301462918,"-1,041.86",BROAD OAKS (MENCAP),CARE ESTABLISHMENT,OP - Fenland Locality - Cost of Care,Older People - Fenland - Care,Residential Care
Cambridgeshire County Council,06-Nov-20,51301462918,"-1,041.86",BROAD OAKS (MENCAP),CARE ESTABLISHMENT,OP - Fenland Locality - Cost of Care,Older People - Fenland - Care,Residential Care
Cambridgeshire County Council,06-Nov-20,51301462918,"-1,041.86",BROAD OAKS (MENCAP),CARE ESTABLISHMENT,OP - Fenland Locality - Cost of Care,Older People - Fenland - Care,Residential Care
Cambridgeshire County Council,06-Nov-20,51301462918,"-1,041.86",BROAD OAKS (MENCAP),CARE ESTABLISHMENT,OP - Fenland Locality - Cost of Care,Older People - Fenland - Care,Residential Care
Cambridgeshire County Council,06-Nov-20,51301462918,"-1,041.86",BROAD OAKS (MENCAP),CARE ESTABLISHMENT,OP - Fenland Locality - Cost of Care,Older People - Fenland - Care,Residential Care
Cambridgeshire County Council,06-Nov-20,51301462918,"-1,041.86",BROAD OAKS (MENCAP),CARE ESTABLISHMENT,OP - Fenland Locality - Cost of Care,Older People - Fenland - Care,Residential Care
Cambridgeshire County Council,06-Nov-20,51301462918,"-1,041.86",BROAD OAKS (MENCAP),CARE ESTABLISHMENT,OP - Fenland Locality - Cost of Care,Older People - Fenland - Care,Residential Care
Cambridgeshire County Council,06-Nov-20,51301462894,"-1,041.86",BROAD OAKS (MENCAP),CARE ESTABLISHMENT,OP - Fenland Locality - Cost of Care,Older People - Fenland - Care,Residential Care
Cambridgeshire County Council,06-Nov-20,51301462894,"-1,041.86",BROAD OAKS (MENCAP),CARE ESTABLISHMENT,OP - Fenland Locality - Cost of Care,Older People - Fenland - Care,Residential Care
Cambridgeshire County Council,06-Nov-20,51301462894,"-1,041.86",BROAD OAKS (MENCAP),CARE ESTABLISHMENT,OP - Fenland Locality - Cost of Care,Older People - Fenland - Care,Residential Care
Cambridgeshire County Council,06-Nov-20,51301462894,"-1,041.86",BROAD OAKS (MENCAP),CARE ESTABLISHMENT,OP - Fenland Locality - Cost of Care,Older People - Fenland - Care,Residential Care
Cambridgeshire County Council,06-Nov-20,51301462894,"-1,041.86",BROAD OAKS (MENCAP),CARE ESTABLISHMENT,OP - Fenland Locality - Cost of Care,Older People - Fenland - Care,Residential Care
Cambridgeshire County Council,06-Nov-20,51301462894,"-1,041.86",BROAD OAKS (MENCAP),CARE ESTABLISHMENT,OP - Fenland Locality - Cost of Care,Older People - Fenland - Care,Residential Care
Cambridgeshire County Council,06-Nov-20,51301462894,"-1,041.86",BROAD OAKS (MENCAP),CARE ESTABLISHMENT,OP - Fenland Locality - Cost of Care,Older People - Fenland - Care,Residential Care
Cambridgeshire County Council,06-Nov-20,51301462894,"-1,041.86",BROAD OAKS (MENCAP),CARE ESTABLISHMENT,OP - Fenland Locality - Cost of Care,Older People - Fenland - Care,Residential Care
Cambridgeshire County Council,06-Nov-20,51301462894,"-1,041.86",BROAD OAKS (MENCAP),CARE ESTABLISHMENT,OP - Fenland Locality - Cost of Care,Older People - Fenland - Care,Residential Care
Cambridgeshire County Council,06-Nov-20,51301462894,"-1,041.86",BROAD OAKS (MENCAP),CARE ESTABLISHMENT,OP - Fenland Locality - Cost of Care,Older People - Fenland - Care,Residential Care
Cambridgeshire County Council,06-Nov-20,51301462894,"-1,041.86",BROAD OAKS (MENCAP),CARE ESTABLISHMENT,OP - Fenland Locality - Cost of Care,Older People - Fenland - Care,Residential Care
Cambridgeshire County Council,06-Nov-20,51301462894,"-1,041.86",BROAD OAKS (MENCAP),CARE ESTABLISHMENT,OP - Fenland Locality - Cost of Care,Older People - Fenland - Care,Residential Care
Cambridgeshire County Council,06-Nov-20,51301462896,"-1,041.86",BROAD OAKS (MENCAP),CARE ESTABLISHMENT,OP - Fenland Locality - Cost of Care,Older People - Fenland - Care,Residential Care
Cambridgeshire County Council,06-Nov-20,51301462896,"-1,041.86",BROAD OAKS (MENCAP),CARE ESTABLISHMENT,OP - Fenland Locality - Cost of Care,Older People - Fenland - Care,Residential Care
Cambridgeshire County Council,06-Nov-20,51301462896,"-1,041.86",BROAD OAKS (MENCAP),CARE ESTABLISHMENT,OP - Fenland Locality - Cost of Care,Older People - Fenland - Care,Residential Care
Cambridgeshire County Council,06-Nov-20,51301462896,"-1,041.86",BROAD OAKS (MENCAP),CARE ESTABLISHMENT,OP - Fenland Locality - Cost of Care,Older People - Fenland - Care,Residential Care
Cambridgeshire County Council,06-Nov-20,51301462896,"-1,041.86",BROAD OAKS (MENCAP),CARE ESTABLISHMENT,OP - Fenland Locality - Cost of Care,Older People - Fenland - Care,Residential Care
Cambridgeshire County Council,06-Nov-20,51301462896,"-1,041.86",BROAD OAKS (MENCAP),CARE ESTABLISHMENT,OP - Fenland Locality - Cost of Care,Older People - Fenland - Care,Residential Care
Cambridgeshire County Council,06-Nov-20,51301462896,"-1,041.86",BROAD OAKS (MENCAP),CARE ESTABLISHMENT,OP - Fenland Locality - Cost of Care,Older People - Fenland - Care,Residential Care
Cambridgeshire County Council,06-Nov-20,51301462896,"-1,041.86",BROAD OAKS (MENCAP),CARE ESTABLISHMENT,OP - Fenland Locality - Cost of Care,Older People - Fenland - Care,Residential Care
Cambridgeshire County Council,06-Nov-20,51301462896,"-1,041.86",BROAD OAKS (MENCAP),CARE ESTABLISHMENT,OP - Fenland Locality - Cost of Care,Older People - Fenland - Care,Residential Care
Cambridgeshire County Council,06-Nov-20,51301462896,"-1,041.86",BROAD OAKS (MENCAP),CARE ESTABLISHMENT,OP - Fenland Locality - Cost of Care,Older People - Fenland - Care,Residential Care
Cambridgeshire County Council,06-Nov-20,51301462896,"-1,041.86",BROAD OAKS (MENCAP),CARE ESTABLISHMENT,OP - Fenland Locality - Cost of Care,Older People - Fenland - Care,Residential Care
Cambridgeshire County Council,06-Nov-20,51301462896,"-1,041.86",BROAD OAKS (MENCAP),CARE ESTABLISHMENT,OP - Fenland Locality - Cost of Care,Older People - Fenland - Care,Residential Care
Cambridgeshire County Council,26-Nov-20,51301478685,"-1,028.57",HC-ONE,CARE ESTABLISHMENT,OP - Hunts Locality - Cost of Care,Hunts OP Team - Care,Nursing Care
Cambridgeshire County Council,26-Nov-20,51301478688,"-1,028.57",THE RED HOUSE RESIDENTIAL & NURSING HOME,CARE ESTABLISHMENT,OP - Hunts Locality - Cost of Care,Hunts OP Team - Care,Residential Care
Cambridgeshire County Council,23-Nov-20,51301465590,"-1,028.00",HC-ONE,CARE ESTABLISHMENT,OP - Fenland Locality - Cost of Care,Older People - Fenland - Care,Nursing Care
Cambridgeshire County Council,23-Nov-20,51301465590,"-1,028.00",HC-ONE,CARE ESTABLISHMENT,OP - Fenland Locality - Cost of Care,Older People - Fenland - Care,Nursing Care
Cambridgeshire County Council,23-Nov-20,51301465590,"-1,028.00",HC-ONE,CARE ESTABLISHMENT,OP - Fenland Locality - Cost of Care,Older People - Fenland - Care,Nursing Care
Cambridgeshire County Council,12-Nov-20,51301431250,"-1,024.26",HUNTINGDON MENCAP LTD,CARE ESTABLISHMENT,LD - Hunts Locality - Cost of Care,LD - Huntingdonshire - Care,Domiciliary Care
Cambridgeshire County Council,12-Nov-20,51301431250,"-1,019.69",HUNTINGDON MENCAP LTD,CARE ESTABLISHMENT,LD - Hunts Locality - Cost of Care,LD - Huntingdonshire - Care,Domiciliary Care
Cambridgeshire County Council,26-Nov-20,51301475567,"-1,019.02",THERA EAST ANGLIA,CARE ESTABLISHMENT,LD - East Locality - Cost of Care,LD - East Cambs - Care,Domiciliary Care
Cambridgeshire County Council,26-Nov-20,51301479466,"-1,000.00",AVERY HOUSE CARE HOME,CARE ESTABLISHMENT,OP - Hunts Locality - Cost of Care,Hunts OP Team - Care,Residential Care
Cambridgeshire County Council,26-Nov-20,51301479466,"-1,000.00",AVERY HOUSE CARE HOME,CARE ESTABLISHMENT,OP - Hunts Locality - Cost of Care,Hunts OP Team - Care,Residential Care
Cambridgeshire County Council,26-Nov-20,51301479466,"-1,000.00",AVERY HOUSE CARE HOME,CARE ESTABLISHMENT,OP - Hunts Locality - Cost of Care,Hunts OP Team - Care,Residential Care
Cambridgeshire County Council,26-Nov-20,51301479466,"-1,000.00",AVERY HOUSE CARE HOME,CARE ESTABLISHMENT,OP - Hunts Locality - Cost of Care,Hunts OP Team - Care,Residential Care
Cambridgeshire County Council,26-Nov-20,51301475168,"-1,000.00",LYNCROFT RESIDENTIAL HOME,CARE ESTABLISHMENT,OP - Fenland Locality - Cost of Care,Older People - Fenland - Care,Residential Care
Cambridgeshire County Council,26-Nov-20,51301479727,"-1,000.00",BARCHESTER HEALTHCARE HOMES LTD,CARE ESTABLISHMENT,OP - East Cambs Locality - Cost of Care,East Cambs - O P Team - Care,Nursing Care
Cambridgeshire County Council,26-Nov-20,51301479727,"-1,000.00",BARCHESTER HEALTHCARE HOMES LTD,CARE ESTABLISHMENT,OP - East Cambs Locality - Cost of Care,East Cambs - O P Team - Care,Nursing Care
Cambridgeshire County Council,26-Nov-20,51301479727,"-1,000.00",BARCHESTER HEALTHCARE HOMES LTD,CARE ESTABLISHMENT,OP - East Cambs Locality - Cost of Care,East Cambs - O P Team - Care,Nursing Care
Cambridgeshire County Council,26-Nov-20,51301479727,"-1,000.00",BARCHESTER HEALTHCARE HOMES LTD,CARE ESTABLISHMENT,OP - East Cambs Locality - Cost of Care,East Cambs - O P Team - Care,Nursing Care
Cambridgeshire County Council,26-Nov-20,51301479727,"-1,000.00",BARCHESTER HEALTHCARE HOMES LTD,CARE ESTABLISHMENT,OP - East Cambs Locality - Cost of Care,East Cambs - O P Team - Care,Nursing Care
Cambridgeshire County Council,26-Nov-20,51301479727,"-1,000.00",BARCHESTER HEALTHCARE HOMES LTD,CARE ESTABLISHMENT,OP - East Cambs Locality - Cost of Care,East Cambs - O P Team - Care,Nursing Care
Cambridgeshire County Council,26-Nov-20,51301479727,"-1,000.00",BARCHESTER HEALTHCARE HOMES LTD,CARE ESTABLISHMENT,OP - East Cambs Locality - Cost of Care,East Cambs - O P Team - Care,Nursing Care
Cambridgeshire County Council,26-Nov-20,51301479727,"-1,000.00",BARCHESTER HEALTHCARE HOMES LTD,CARE ESTABLISHMENT,OP - East Cambs Locality - Cost of Care,East Cambs - O P Team - Care,Nursing Care
Cambridgeshire County Council,26-Nov-20,51301479727,"-1,000.00",BARCHESTER HEALTHCARE HOMES LTD,CARE ESTABLISHMENT,OP - East Cambs Locality - Cost of Care,East Cambs - O P Team - Care,Nursing Care
Cambridgeshire County Council,26-Nov-20,51301479727,"-1,000.00",BARCHESTER HEALTHCARE HOMES LTD,CARE ESTABLISHMENT,OP - East Cambs Locality - Cost of Care,East Cambs - O P Team - Care,Nursing Care
Cambridgeshire County Council,26-Nov-20,51301479727,"-1,000.00",BARCHESTER HEALTHCARE HOMES LTD,CARE ESTABLISHMENT,OP - East Cambs Locality - Cost of Care,East Cambs - O P Team - Care,Nursing Care
Cambridgeshire County Council,26-Nov-20,51301479727,"-1,000.00",BARCHESTER HEALTHCARE HOMES LTD,CARE ESTABLISHMENT,OP - East Cambs Locality - Cost of Care,East Cambs - O P Team - Care,Nursing Care
Cambridgeshire County Council,26-Nov-20,51301479727,"-1,000.00",BARCHESTER HEALTHCARE HOMES LTD,CARE ESTABLISHMENT,OP - East Cambs Locality - Cost of Care,East Cambs - O P Team - Care,Nursing Care
Cambridgeshire County Council,26-Nov-20,51301465584,"-1,000.00",OAKLANDS CARE HOME,CARE ESTABLISHMENT,Strategic Management - Adults,Adults Assistant Director,Nursing Care
Cambridgeshire County Council,06-Nov-20,51301465648,"-1,000.00",WOODLANDS CARE CENTRE,CARE ESTABLISHMENT,Strategic Management - Adults,Adults Assistant Director,Nursing Care
Cambridgeshire County Council,26-Nov-20,51301465586,"-1,000.00",OAKLANDS CARE HOME,CARE ESTABLISHMENT,Strategic Management - Adults,Adults Assistant Director,Nursing Care
Cambridgeshire County Council,26-Nov-20,51301479705,"-1,000.00",WOODLANDS CARE CENTRE,CARE ESTABLISHMENT,Strategic Management - Adults,Adults Assistant Director,Nursing Care
Cambridgeshire County Council,26-Nov-20,51301465645,-992.64,BARCHESTER HEALTHCARE HOMES LTD,CARE ESTABLISHMENT,OPMH - City & South,Older People Mental Health City & South,Nursing Care
Cambridgeshire County Council,12-Nov-20,51301469078,-982.23,CARE MANAGEMENT GROUP (64-66 CARLTON),CARE ESTABLISHMENT,LD - East Locality - Cost of Care,LD - East Cambs - Care,Residential Care
Cambridgeshire County Council,26-Nov-20,51301479584,-975.02,WOODLANDS CARE CENTRE,CARE ESTABLISHMENT,OPMH - City & South,Older People Mental Health City & South,Nursing Care
Cambridgeshire County Council,26-Nov-20,51301479584,-975.02,WOODLANDS CARE CENTRE,CARE ESTABLISHMENT,OPMH - City & South,Older People Mental Health City & South,Nursing Care
Cambridgeshire County Council,26-Nov-20,51301479584,-975.02,WOODLANDS CARE CENTRE,CARE ESTABLISHMENT,OPMH - City & South,Older People Mental Health City & South,Nursing Care
Cambridgeshire County Council,26-Nov-20,51301479584,-975.02,WOODLANDS CARE CENTRE,CARE ESTABLISHMENT,OPMH - City & South,Older People Mental Health City & South,Nursing Care
Cambridgeshire County Council,26-Nov-20,51301479584,-975.02,WOODLANDS CARE CENTRE,CARE ESTABLISHMENT,OPMH - City & South,Older People Mental Health City & South,Nursing Care
Cambridgeshire County Council,26-Nov-20,51301479584,-975.02,WOODLANDS CARE CENTRE,CARE ESTABLISHMENT,OPMH - City & South,Older People Mental Health City & South,Nursing Care
Cambridgeshire County Council,26-Nov-20,51301479584,-975.02,WOODLANDS CARE CENTRE,CARE ESTABLISHMENT,OPMH - City & South,Older People Mental Health City & South,Nursing Care
Cambridgeshire County Council,26-Nov-20,51301479584,-975.02,WOODLANDS CARE CENTRE,CARE ESTABLISHMENT,OPMH - City & South,Older People Mental Health City & South,Nursing Care
Cambridgeshire County Council,26-Nov-20,51301479584,-975.02,WOODLANDS CARE CENTRE,CARE ESTABLISHMENT,OPMH - City & South,Older People Mental Health City & South,Nursing Care
Cambridgeshire County Council,26-Nov-20,51301479584,-975.02,WOODLANDS CARE CENTRE,CARE ESTABLISHMENT,OPMH - City & South,Older People Mental Health City & South,Nursing Care
Cambridgeshire County Council,26-Nov-20,51301479584,-975.02,WOODLANDS CARE CENTRE,CARE ESTABLISHMENT,OPMH - City & South,Older People Mental Health City & South,Nursing Care
Cambridgeshire County Council,26-Nov-20,51301479584,-975.02,WOODLANDS CARE CENTRE,CARE ESTABLISHMENT,OPMH - City & South,Older People Mental Health City & South,Nursing Care
Cambridgeshire County Council,26-Nov-20,51301479584,-975.02,WOODLANDS CARE CENTRE,CARE ESTABLISHMENT,OPMH - City & South,Older People Mental Health City & South,Nursing Care
Cambridgeshire County Council,26-Nov-20,51301479584,-975.02,WOODLANDS CARE CENTRE,CARE ESTABLISHMENT,OPMH - City & South,Older People Mental Health City & South,Nursing Care
Cambridgeshire County Council,26-Nov-20,51301479584,-975.02,WOODLANDS CARE CENTRE,CARE ESTABLISHMENT,OPMH - City & South,Older People Mental Health City & South,Nursing Care
Cambridgeshire County Council,26-Nov-20,51301479584,-975.02,WOODLANDS CARE CENTRE,CARE ESTABLISHMENT,OPMH - City & South,Older People Mental Health City & South,Nursing Care
Cambridgeshire County Council,26-Nov-20,51301479584,-975.02,WOODLANDS CARE CENTRE,CARE ESTABLISHMENT,OPMH - City & South,Older People Mental Health City & South,Nursing Care
Cambridgeshire County Council,26-Nov-20,51301479584,-975.02,WOODLANDS CARE CENTRE,CARE ESTABLISHMENT,OPMH - City & South,Older People Mental Health City & South,Nursing Care
Cambridgeshire County Council,26-Nov-20,51301479584,-975.02,WOODLANDS CARE CENTRE,CARE ESTABLISHMENT,OPMH - City & South,Older People Mental Health City & South,Nursing Care
Cambridgeshire County Council,26-Nov-20,51301479584,-975.02,WOODLANDS CARE CENTRE,CARE ESTABLISHMENT,OPMH - City & South,Older People Mental Health City & South,Nursing Care
Cambridgeshire County Council,26-Nov-20,51301479584,-975.02,WOODLANDS CARE CENTRE,CARE ESTABLISHMENT,OPMH - City & South,Older People Mental Health City & South,Nursing Care
Cambridgeshire County Council,26-Nov-20,51301479584,-975.02,WOODLANDS CARE CENTRE,CARE ESTABLISHMENT,OPMH - City & South,Older People Mental Health City & South,Nursing Care
Cambridgeshire County Council,26-Nov-20,51301479584,-975.02,WOODLANDS CARE CENTRE,CARE ESTABLISHMENT,OPMH - City & South,Older People Mental Health City & South,Nursing Care
Cambridgeshire County Council,26-Nov-20,51301479584,-975.02,WOODLANDS CARE CENTRE,CARE ESTABLISHMENT,OPMH - City & South,Older People Mental Health City & South,Nursing Care
Cambridgeshire County Council,26-Nov-20,51301479584,-975.02,WOODLANDS CARE CENTRE,CARE ESTABLISHMENT,OPMH - City & South,Older People Mental Health City & South,Nursing Care
Cambridgeshire County Council,26-Nov-20,51301479584,-975.02,WOODLANDS CARE CENTRE,CARE ESTABLISHMENT,OPMH - City & South,Older People Mental Health City & South,Nursing Care
Cambridgeshire County Council,26-Nov-20,51301479584,-975.02,WOODLANDS CARE CENTRE,CARE ESTABLISHMENT,OPMH - City & South,Older People Mental Health City & South,Nursing Care
Cambridgeshire County Council,26-Nov-20,51301479584,-975.02,WOODLANDS CARE CENTRE,CARE ESTABLISHMENT,OPMH - City & South,Older People Mental Health City & South,Nursing Care
Cambridgeshire County Council,26-Nov-20,51301479584,-975.02,WOODLANDS CARE CENTRE,CARE ESTABLISHMENT,OPMH - City & South,Older People Mental Health City & South,Nursing Care
Cambridgeshire County Council,26-Nov-20,51301479584,-975.02,WOODLANDS CARE CENTRE,CARE ESTABLISHMENT,OPMH - City & South,Older People Mental Health City & South,Nursing Care
Cambridgeshire County Council,26-Nov-20,51301479584,-975.02,WOODLANDS CARE CENTRE,CARE ESTABLISHMENT,OPMH - City & South,Older People Mental Health City & South,Nursing Care
Cambridgeshire County Council,26-Nov-20,51301479584,-975.02,WOODLANDS CARE CENTRE,CARE ESTABLISHMENT,OPMH - City & South,Older People Mental Health City & South,Nursing Care
Cambridgeshire County Council,26-Nov-20,51301479584,-975.02,WOODLANDS CARE CENTRE,CARE ESTABLISHMENT,OPMH - City & South,Older People Mental Health City & South,Nursing Care
Cambridgeshire County Council,26-Nov-20,51301479584,-975.02,WOODLANDS CARE CENTRE,CARE ESTABLISHMENT,OPMH - City & South,Older People Mental Health City & South,Nursing Care
Cambridgeshire County Council,26-Nov-20,51301479584,-975.02,WOODLANDS CARE CENTRE,CARE ESTABLISHMENT,OPMH - City & South,Older People Mental Health City & South,Nursing Care
Cambridgeshire County Council,26-Nov-20,51301479584,-975.02,WOODLANDS CARE CENTRE,CARE ESTABLISHMENT,OPMH - City & South,Older People Mental Health City & South,Nursing Care
Cambridgeshire County Council,26-Nov-20,51301479584,-975.02,WOODLANDS CARE CENTRE,CARE ESTABLISHMENT,OPMH - City & South,Older People Mental Health City & South,Nursing Care
Cambridgeshire County Council,26-Nov-20,51301479584,-975.02,WOODLANDS CARE CENTRE,CARE ESTABLISHMENT,OPMH - City & South,Older People Mental Health City & South,Nursing Care
Cambridgeshire County Council,26-Nov-20,51301479584,-975.02,WOODLANDS CARE CENTRE,CARE ESTABLISHMENT,OPMH - City & South,Older People Mental Health City & South,Nursing Care
Cambridgeshire County Council,26-Nov-20,51301479584,-975.02,WOODLANDS CARE CENTRE,CARE ESTABLISHMENT,OPMH - City & South,Older People Mental Health City & South,Nursing Care
Cambridgeshire County Council,26-Nov-20,51301479584,-975.02,WOODLANDS CARE CENTRE,CARE ESTABLISHMENT,OPMH - City & South,Older People Mental Health City & South,Nursing Care
Cambridgeshire County Council,26-Nov-20,51301479584,-975.02,WOODLANDS CARE CENTRE,CARE ESTABLISHMENT,OPMH - City & South,Older People Mental Health City & South,Nursing Care
Cambridgeshire County Council,26-Nov-20,51301479584,-975.02,WOODLANDS CARE CENTRE,CARE ESTABLISHMENT,OPMH - City & South,Older People Mental Health City & South,Nursing Care
Cambridgeshire County Council,26-Nov-20,51301479584,-975.02,WOODLANDS CARE CENTRE,CARE ESTABLISHMENT,OPMH - City & South,Older People Mental Health City & South,Nursing Care
Cambridgeshire County Council,26-Nov-20,51301479584,-975.02,WOODLANDS CARE CENTRE,CARE ESTABLISHMENT,OPMH - City & South,Older People Mental Health City & South,Nursing Care
Cambridgeshire County Council,26-Nov-20,51301479584,-975.02,WOODLANDS CARE CENTRE,CARE ESTABLISHMENT,OPMH - City & South,Older People Mental Health City & South,Nursing Care
Cambridgeshire County Council,26-Nov-20,51301479584,-975.02,WOODLANDS CARE CENTRE,CARE ESTABLISHMENT,OPMH - City & South,Older People Mental Health City & South,Nursing Care
Cambridgeshire County Council,26-Nov-20,51301479584,-975.02,WOODLANDS CARE CENTRE,CARE ESTABLISHMENT,OPMH - City & South,Older People Mental Health City & South,Nursing Care
Cambridgeshire County Council,26-Nov-20,51301479584,-975.02,WOODLANDS CARE CENTRE,CARE ESTABLISHMENT,OPMH - City & South,Older People Mental Health City & South,Nursing Care
Cambridgeshire County Council,26-Nov-20,51301479584,-975.02,WOODLANDS CARE CENTRE,CARE ESTABLISHMENT,OPMH - City & South,Older People Mental Health City & South,Nursing Care
Cambridgeshire County Council,26-Nov-20,51301479584,-975.02,WOODLANDS CARE CENTRE,CARE ESTABLISHMENT,OPMH - City & South,Older People Mental Health City & South,Nursing Care
Cambridgeshire County Council,26-Nov-20,51301479584,-975.02,WOODLANDS CARE CENTRE,CARE ESTABLISHMENT,OPMH - City & South,Older People Mental Health City & South,Nursing Care
Cambridgeshire County Council,26-Nov-20,51301479584,-975.02,WOODLANDS CARE CENTRE,CARE ESTABLISHMENT,OPMH - City & South,Older People Mental Health City & South,Nursing Care
Cambridgeshire County Council,26-Nov-20,51301479584,-975.02,WOODLANDS CARE CENTRE,CARE ESTABLISHMENT,OPMH - City & South,Older People Mental Health City & South,Nursing Care
Cambridgeshire County Council,26-Nov-20,51301479584,-975.02,WOODLANDS CARE CENTRE,CARE ESTABLISHMENT,OPMH - City & South,Older People Mental Health City & South,Nursing Care
Cambridgeshire County Council,26-Nov-20,51301479584,-975.02,WOODLANDS CARE CENTRE,CARE ESTABLISHMENT,OPMH - City & South,Older People Mental Health City & South,Nursing Care
Cambridgeshire County Council,26-Nov-20,51301479584,-975.02,WOODLANDS CARE CENTRE,CARE ESTABLISHMENT,OPMH - City & South,Older People Mental Health City & South,Nursing Care
Cambridgeshire County Council,26-Nov-20,51301479584,-975.02,WOODLANDS CARE CENTRE,CARE ESTABLISHMENT,OPMH - City & South,Older People Mental Health City & South,Nursing Care
Cambridgeshire County Council,26-Nov-20,51301479584,-975.02,WOODLANDS CARE CENTRE,CARE ESTABLISHMENT,OPMH - City & South,Older People Mental Health City & South,Nursing Care
Cambridgeshire County Council,26-Nov-20,51301479584,-975.02,WOODLANDS CARE CENTRE,CARE ESTABLISHMENT,OPMH - City & South,Older People Mental Health City & South,Nursing Care
Cambridgeshire County Council,26-Nov-20,51301479584,-975.02,WOODLANDS CARE CENTRE,CARE ESTABLISHMENT,OPMH - City & South,Older People Mental Health City & South,Nursing Care
Cambridgeshire County Council,26-Nov-20,51301479584,-975.02,WOODLANDS CARE CENTRE,CARE ESTABLISHMENT,OPMH - City & South,Older People Mental Health City & South,Nursing Care
Cambridgeshire County Council,26-Nov-20,51301479584,-975.02,WOODLANDS CARE CENTRE,CARE ESTABLISHMENT,OPMH - City & South,Older People Mental Health City & South,Nursing Care
Cambridgeshire County Council,26-Nov-20,51301479584,-975.02,WOODLANDS CARE CENTRE,CARE ESTABLISHMENT,OPMH - City & South,Older People Mental Health City & South,Nursing Care
Cambridgeshire County Council,26-Nov-20,51301479584,-975.02,WOODLANDS CARE CENTRE,CARE ESTABLISHMENT,OPMH - City & South,Older People Mental Health City & South,Nursing Care
Cambridgeshire County Council,26-Nov-20,51301479584,-975.02,WOODLANDS CARE CENTRE,CARE ESTABLISHMENT,OPMH - City & South,Older People Mental Health City & South,Nursing Care
Cambridgeshire County Council,26-Nov-20,51301479584,-975.02,WOODLANDS CARE CENTRE,CARE ESTABLISHMENT,OPMH - City & South,Older People Mental Health City & South,Nursing Care
Cambridgeshire County Council,26-Nov-20,51301479584,-975.02,WOODLANDS CARE CENTRE,CARE ESTABLISHMENT,OPMH - City & South,Older People Mental Health City & South,Nursing Care
Cambridgeshire County Council,26-Nov-20,51301479584,-975.02,WOODLANDS CARE CENTRE,CARE ESTABLISHMENT,OPMH - City & South,Older People Mental Health City & South,Nursing Care
Cambridgeshire County Council,26-Nov-20,51301479584,-975.02,WOODLANDS CARE CENTRE,CARE ESTABLISHMENT,OPMH - City & South,Older People Mental Health City & South,Nursing Care
Cambridgeshire County Council,26-Nov-20,51301479584,-975.02,WOODLANDS CARE CENTRE,CARE ESTABLISHMENT,OPMH - City & South,Older People Mental Health City & South,Nursing Care
Cambridgeshire County Council,26-Nov-20,51301479584,-975.02,WOODLANDS CARE CENTRE,CARE ESTABLISHMENT,OPMH - City & South,Older People Mental Health City & South,Nursing Care
Cambridgeshire County Council,26-Nov-20,51301479584,-975.02,WOODLANDS CARE CENTRE,CARE ESTABLISHMENT,OPMH - City & South,Older People Mental Health City & South,Nursing Care
Cambridgeshire County Council,26-Nov-20,51301479584,-975.02,WOODLANDS CARE CENTRE,CARE ESTABLISHMENT,OPMH - City & South,Older People Mental Health City & South,Nursing Care
Cambridgeshire County Council,26-Nov-20,51301479584,-975.02,WOODLANDS CARE CENTRE,CARE ESTABLISHMENT,OPMH - City & South,Older People Mental Health City & South,Nursing Care
Cambridgeshire County Council,26-Nov-20,51301479584,-975.02,WOODLANDS CARE CENTRE,CARE ESTABLISHMENT,OPMH - City & South,Older People Mental Health City & South,Nursing Care
Cambridgeshire County Council,26-Nov-20,51301479584,-975.02,WOODLANDS CARE CENTRE,CARE ESTABLISHMENT,OPMH - City & South,Older People Mental Health City & South,Nursing Care
Cambridgeshire County Council,26-Nov-20,51301479584,-975.02,WOODLANDS CARE CENTRE,CARE ESTABLISHMENT,OPMH - City & South,Older People Mental Health City & South,Nursing Care
Cambridgeshire County Council,26-Nov-20,51301479584,-975.02,WOODLANDS CARE CENTRE,CARE ESTABLISHMENT,OPMH - City & South,Older People Mental Health City & South,Nursing Care
Cambridgeshire County Council,26-Nov-20,51301479584,-975.02,WOODLANDS CARE CENTRE,CARE ESTABLISHMENT,OPMH - City & South,Older People Mental Health City & South,Nursing Care
Cambridgeshire County Council,26-Nov-20,51301479584,-975.02,WOODLANDS CARE CENTRE,CARE ESTABLISHMENT,OPMH - City & South,Older People Mental Health City & South,Nursing Care
Cambridgeshire County Council,26-Nov-20,51301479584,-975.02,WOODLANDS CARE CENTRE,CARE ESTABLISHMENT,OPMH - City & South,Older People Mental Health City & South,Nursing Care
Cambridgeshire County Council,26-Nov-20,51301479584,-975.02,WOODLANDS CARE CENTRE,CARE ESTABLISHMENT,OPMH - City & South,Older People Mental Health City & South,Nursing Care
Cambridgeshire County Council,26-Nov-20,51301479584,-975.02,WOODLANDS CARE CENTRE,CARE ESTABLISHMENT,OPMH - City & South,Older People Mental Health City & South,Nursing Care
Cambridgeshire County Council,26-Nov-20,51301479584,-975.02,WOODLANDS CARE CENTRE,CARE ESTABLISHMENT,OPMH - City & South,Older People Mental Health City & South,Nursing Care
Cambridgeshire County Council,26-Nov-20,51301479584,-975.02,WOODLANDS CARE CENTRE,CARE ESTABLISHMENT,OPMH - City & South,Older People Mental Health City & South,Nursing Care
Cambridgeshire County Council,26-Nov-20,51301479584,-975.02,WOODLANDS CARE CENTRE,CARE ESTABLISHMENT,OPMH - City & South,Older People Mental Health City & South,Nursing Care
Cambridgeshire County Council,26-Nov-20,51301479584,-975.02,WOODLANDS CARE CENTRE,CARE ESTABLISHMENT,OPMH - City & South,Older People Mental Health City & South,Nursing Care
Cambridgeshire County Council,26-Nov-20,51301479584,-975.02,WOODLANDS CARE CENTRE,CARE ESTABLISHMENT,OPMH - City & South,Older People Mental Health City & South,Nursing Care
Cambridgeshire County Council,26-Nov-20,51301479584,-975.02,WOODLANDS CARE CENTRE,CARE ESTABLISHMENT,OPMH - City & South,Older People Mental Health City & South,Nursing Care
Cambridgeshire County Council,26-Nov-20,51301479584,-975.02,WOODLANDS CARE CENTRE,CARE ESTABLISHMENT,OPMH - City & South,Older People Mental Health City & South,Nursing Care
Cambridgeshire County Council,26-Nov-20,51301479584,-975.02,WOODLANDS CARE CENTRE,CARE ESTABLISHMENT,OPMH - City & South,Older People Mental Health City & South,Nursing Care
Cambridgeshire County Council,26-Nov-20,51301479584,-975.02,WOODLANDS CARE CENTRE,CARE ESTABLISHMENT,OPMH - City & South,Older People Mental Health City & South,Nursing Care
Cambridgeshire County Council,26-Nov-20,51301479584,-975.02,WOODLANDS CARE CENTRE,CARE ESTABLISHMENT,OPMH - City & South,Older People Mental Health City & South,Nursing Care
Cambridgeshire County Council,26-Nov-20,51301479584,-975.02,WOODLANDS CARE CENTRE,CARE ESTABLISHMENT,OPMH - City & South,Older People Mental Health City & South,Nursing Care
Cambridgeshire County Council,26-Nov-20,51301479584,-975.02,WOODLANDS CARE CENTRE,CARE ESTABLISHMENT,OPMH - City & South,Older People Mental Health City & South,Nursing Care
Cambridgeshire County Council,26-Nov-20,51301479584,-975.02,WOODLANDS CARE CENTRE,CARE ESTABLISHMENT,OPMH - City & South,Older People Mental Health City & South,Nursing Care
Cambridgeshire County Council,26-Nov-20,51301479584,-975.02,WOODLANDS CARE CENTRE,CARE ESTABLISHMENT,OPMH - City & South,Older People Mental Health City & South,Nursing Care
Cambridgeshire County Council,26-Nov-20,51301479584,-975.02,WOODLANDS CARE CENTRE,CARE ESTABLISHMENT,OPMH - City & South,Older People Mental Health City & South,Nursing Care
Cambridgeshire County Council,26-Nov-20,51301479584,-975.02,WOODLANDS CARE CENTRE,CARE ESTABLISHMENT,OPMH - City & South,Older People Mental Health City & South,Nursing Care
Cambridgeshire County Council,26-Nov-20,51301474010,-942.86,The Orchards (Greensleeves),CARE ESTABLISHMENT,OP - East Cambs Locality - Cost of Care,East Cambs - O P Team - Care,Residential Care
Cambridgeshire County Council,26-Nov-20,51301479250,-937.00,MAYCROFT CARE HOME LTD,CARE ESTABLISHMENT,OP - City & South Locality - Cost of Care,Older People - City & South - Care,Residential Care
Cambridgeshire County Council,26-Nov-20,51301479250,-937.00,MAYCROFT CARE HOME LTD,CARE ESTABLISHMENT,OP - City & South Locality - Cost of Care,Older People - City & South - Care,Residential Care
Cambridgeshire County Council,26-Nov-20,51301479250,-937.00,MAYCROFT CARE HOME LTD,CARE ESTABLISHMENT,OP - City & South Locality - Cost of Care,Older People - City & South - Care,Residential Care
Cambridgeshire County Council,26-Nov-20,51301479250,-937.00,MAYCROFT CARE HOME LTD,CARE ESTABLISHMENT,OP - City & South Locality - Cost of Care,Older People - City & South - Care,Residential Care
Cambridgeshire County Council,26-Nov-20,51301479250,-937.00,MAYCROFT CARE HOME LTD,CARE ESTABLISHMENT,OP - City & South Locality - Cost of Care,Older People - City & South - Care,Residential Care
Cambridgeshire County Council,09-Nov-20,51301419150,-936.00,DUNCAN & TODD OPTICIANS LTD,TRADE SUPPLIER,"Health, Safety & Wellbeing",Eyecare Vouchers,Staff health & welfare Costs
Cambridgeshire County Council,26-Nov-20,51301479736,-916.08,WOODLANDS CARE CENTRE,CARE ESTABLISHMENT,OP - City & South Locality - Cost of Care,Older People - City & South - Care,Nursing Care
Cambridgeshire County Council,26-Nov-20,51301479736,-916.08,WOODLANDS CARE CENTRE,CARE ESTABLISHMENT,OP - City & South Locality - Cost of Care,Older People - City & South - Care,Nursing Care
Cambridgeshire County Council,26-Nov-20,51301479736,-916.08,WOODLANDS CARE CENTRE,CARE ESTABLISHMENT,OP - City & South Locality - Cost of Care,Older People - City & South - Care,Nursing Care
Cambridgeshire County Council,26-Nov-20,51301479736,-916.08,WOODLANDS CARE CENTRE,CARE ESTABLISHMENT,OP - City & South Locality - Cost of Care,Older People - City & South - Care,Nursing Care
Cambridgeshire County Council,26-Nov-20,51301479736,-916.08,WOODLANDS CARE CENTRE,CARE ESTABLISHMENT,OP - City & South Locality - Cost of Care,Older People - City & South - Care,Nursing Care
Cambridgeshire County Council,26-Nov-20,51301479736,-916.08,WOODLANDS CARE CENTRE,CARE ESTABLISHMENT,OP - City & South Locality - Cost of Care,Older People - City & South - Care,Nursing Care
Cambridgeshire County Council,26-Nov-20,51301479736,-916.08,WOODLANDS CARE CENTRE,CARE ESTABLISHMENT,OP - City & South Locality - Cost of Care,Older People - City & South - Care,Nursing Care
Cambridgeshire County Council,26-Nov-20,51301479736,-916.08,WOODLANDS CARE CENTRE,CARE ESTABLISHMENT,OP - City & South Locality - Cost of Care,Older People - City & South - Care,Nursing Care
Cambridgeshire County Council,26-Nov-20,51301479315,-915.06,PAULINE BURNETT HOUSE,CARE ESTABLISHMENT,LD - South Locality - Cost of Care,LD - South Cambs - Care,Residential Care
Cambridgeshire County Council,26-Nov-20,51301479315,-915.06,PAULINE BURNETT HOUSE,CARE ESTABLISHMENT,LD - South Locality - Cost of Care,LD - South Cambs - Care,Residential Care
Cambridgeshire County Council,26-Nov-20,51301479315,-915.06,PAULINE BURNETT HOUSE,CARE ESTABLISHMENT,LD - South Locality - Cost of Care,LD - South Cambs - Care,Residential Care
Cambridgeshire County Council,26-Nov-20,51301479315,-915.06,PAULINE BURNETT HOUSE,CARE ESTABLISHMENT,LD - South Locality - Cost of Care,LD - South Cambs - Care,Residential Care
Cambridgeshire County Council,16-Nov-20,51301469860,-914.64,KISIMUL SCHOOL,CARE ESTABLISHMENT,LD - Young Adults Team,LD - Young Adults - Care,Residential Care
Cambridgeshire County Council,26-Nov-20,51301459298,-912.86,EAGLE WOOD NEUROLOGICAL CARE,CARE ESTABLISHMENT,OPMH - City & South,Older People Mental Health E Cambs,Nursing Care
Cambridgeshire County Council,26-Nov-20,51301475170,-911.08,HOME CLOSE LTD,CARE ESTABLISHMENT,OP - City & South Locality - Cost of Care,Older People - City & South - Care,Nursing Care
Cambridgeshire County Council,26-Nov-20,51301475170,-911.08,HOME CLOSE LTD,CARE ESTABLISHMENT,OP - City & South Locality - Cost of Care,Older People - City & South - Care,Nursing Care
Cambridgeshire County Council,26-Nov-20,51301479572,-910.71,WOODLANDS CARE CENTRE,CARE ESTABLISHMENT,OPMH - City & South,Older People Mental Health City & South,Nursing Care
Cambridgeshire County Council,26-Nov-20,51301476345,-900.00,ETHELDRED HOUSE,CARE ESTABLISHMENT,OPMH - City & South,Older People Mental Health City & South,Short Term Other
Cambridgeshire County Council,26-Nov-20,51301476345,-900.00,ETHELDRED HOUSE,CARE ESTABLISHMENT,OPMH - City & South,Older People Mental Health City & South,Short Term Other
Cambridgeshire County Council,26-Nov-20,51301476744,-900.00,A CLASS CARE LTD,CARE ESTABLISHMENT,OP - City & South Locality - Cost of Care,Older People - City & South - Care,Homecare
Cambridgeshire County Council,26-Nov-20,51301476744,-900.00,A CLASS CARE LTD,CARE ESTABLISHMENT,OP - City & South Locality - Cost of Care,Older People - City & South - Care,Homecare
Cambridgeshire County Council,26-Nov-20,51301476744,-900.00,A CLASS CARE LTD,CARE ESTABLISHMENT,OP - City & South Locality - Cost of Care,Older People - City & South - Care,Homecare
Cambridgeshire County Council,26-Nov-20,51301476744,-900.00,A CLASS CARE LTD,CARE ESTABLISHMENT,OP - City & South Locality - Cost of Care,Older People - City & South - Care,Homecare
Cambridgeshire County Council,06-Nov-20,51301465588,-900.00,HATLEY COURT HAVEN LTD,CARE ESTABLISHMENT,OP - City & South Locality - Cost of Care,Older People - City & South - Care,Residential Care
Cambridgeshire County Council,06-Nov-20,51301465588,-900.00,HATLEY COURT HAVEN LTD,CARE ESTABLISHMENT,OP - City & South Locality - Cost of Care,Older People - City & South - Care,Residential Care
